Body Name,Body,Service Area Catergorisation,Service Division Catergorisation,Responsible Unit,Expenses Type,Detailed Expenses Type,Expenses Code,Date,Transaction Number,Amount,Capital / Revenue,Supplier Name,Supplier ID
NORTH EAST LINCOLNSHIRE COUNCIL,http://statistics.data.gov.uk/id/local-authority/00FC,Cap People And Communities,Cap Vulnerable Young People,Short Breaks,Cap Land/Build-Build Enh Wrk,Cap Land/Build-Build Enh Wrk,YA102,4/22/2014,275655,2796,CAPITAL,E S RUDKIN LTD,100632
NORTH EAST LINCOLNSHIRE COUNCIL,http://statistics.data.gov.uk/id/local-authority/00FC,Cap People And Communities,Cap Vulnerable Young People,Short Breaks,Cap Land/Build-Build Enh Wrk,Cap Land/Build-Build Enh Wrk,YA102,4/22/2014,275656,8295,CAPITAL,E S RUDKIN LTD,100632
NORTH EAST LINCOLNSHIRE COUNCIL,http://statistics.data.gov.uk/id/local-authority/00FC,Cap People And Communities,Cap Schools Capital,Devolved Formula Cap Grant,Cap Land/Build-Build Enh Wrk,Cap Land/Build-Build Enh Wrk,YA102,4/28/2014,276349,2380,CAPITAL,FABRIQUE SPECIALIST GLAZING SYSTEMS LTD,101314
NORTH EAST LINCOLNSHIRE COUNCIL,http://statistics.data.gov.uk/id/local-authority/00FC,Cap People And Communities,Cap Schools Capital,Devolved Formula Cap Grant,Cap Veh Plt Eqp-Purchase,Cap Veh Plt Eqp-Purchase,YB101,4/3/2014,270563,8494,CAPITAL,TECHNOLOGY SUPPORT SOLUTIONS LTD,119571
NORTH EAST LINCOLNSHIRE COUNCIL,http://statistics.data.gov.uk/id/local-authority/00FC,Cap People And Communities,Cap Schools Capital,Devolved Formula Cap Grant,Cap Land/Build-Build Enh Wrk,Cap Land/Build-Build Enh Wrk,YA102,4/3/2014,270889,103953.72,CAPITAL,G S KELSEY LIMITED,101154
NORTH EAST LINCOLNSHIRE COUNCIL,http://statistics.data.gov.uk/id/local-authority/00FC,Cap People And Communities,Cap Schools Capital,Devolved Formula Cap Grant,Cap Land/Build-Purchase,Cap Land/Build-Purchase,YA101,4/1/2014,270019,5168,CAPITAL,REFRIGERATION (LINDUM) LTD,100558
NORTH EAST LINCOLNSHIRE COUNCIL,http://statistics.data.gov.uk/id/local-authority/00FC,Cap People And Communities,Cap Schools Capital,Devolved Formula Cap Grant,Cap Land/Build-Build Enh Wrk,Cap Land/Build-Build Enh Wrk,YA102,4/28/2014,276714,8764.13,CAPITAL,NEWBODY FITNESS LTD,124873
NORTH EAST LINCOLNSHIRE COUNCIL,http://statistics.data.gov.uk/id/local-authority/00FC,Cap People And Communities,Cap Schools Capital,Devolved Formula Cap Grant,Cap Land/Build-Prof Fees,Cap Land/Build-Prof Fees,YA103,4/3/2014,270395,10232,CAPITAL,TECHNOLOGY SUPPORT SOLUTIONS LTD,119571
NORTH EAST LINCOLNSHIRE COUNCIL,http://statistics.data.gov.uk/id/local-authority/00FC,Cap People And Communities,Cap Schools Capital,Schools - Capital Allocation,Cap Land/Build-Build Enh Wrk,Cap Land/Build-Build Enh Wrk,YA102,4/16/2014,275200,52960.2,CAPITAL,SANGWIN,104041
NORTH EAST LINCOLNSHIRE COUNCIL,http://statistics.data.gov.uk/id/local-authority/00FC,Cap People And Communities,Cap Schools Capital,Schools - Capital Allocation,Cap Land/Build-Build Enh Wrk,Cap Land/Build-Build Enh Wrk,YA102,4/8/2014,272523,2380,CAPITAL,ETON-LINCS LIMITED,101510
NORTH EAST LINCOLNSHIRE COUNCIL,http://statistics.data.gov.uk/id/local-authority/00FC,Cap People And Communities,Cap Schools Capital,Schools - Capital Allocation,Cap Land/Build-Build Enh Wrk,Cap Land/Build-Build Enh Wrk,YA102,4/22/2014,275653,1365,CAPITAL,JAMES BRATTON & CO LTD,100714
NORTH EAST LINCOLNSHIRE COUNCIL,http://statistics.data.gov.uk/id/local-authority/00FC,Cap People And Communities,Cap Schools Capital,Schools - Basic Needs,Cap Land/Build-Build Enh Wrk,Cap Land/Build-Build Enh Wrk,YA102,4/16/2014,275149,316.65,CAPITAL,EXCELL ELECTRICAL CONTRACTORS,100601
NORTH EAST LINCOLNSHIRE COUNCIL,http://statistics.data.gov.uk/id/local-authority/00FC,Cap People And Communities,Cap Schools Capital,Schools - Basic Needs,Cap Land/Build-Build Enh Wrk,Cap Land/Build-Build Enh Wrk,YA102,4/14/2014,273909,350,CAPITAL,EXTRASPACE (UK) LTD,119622
NORTH EAST LINCOLNSHIRE COUNCIL,http://statistics.data.gov.uk/id/local-authority/00FC,Cap People And Communities,Cap Schools Capital,Schools - Basic Needs,Cap Land/Build-Build Enh Wrk,Cap Land/Build-Build Enh Wrk,YA102,4/22/2014,273999,2037,CAPITAL,MANDERS HI-FI LTD,104225
NORTH EAST LINCOLNSHIRE COUNCIL,http://statistics.data.gov.uk/id/local-authority/00FC,Cap People And Communities,Cap Schools Capital,Schools - Basic Needs,Cap Land/Build-Build Enh Wrk,Cap Land/Build-Build Enh Wrk,YA102,4/25/2014,276249,82973.98,CAPITAL,F PARKINSON LTD,123944
NORTH EAST LINCOLNSHIRE COUNCIL,http://statistics.data.gov.uk/id/local-authority/00FC,Cap People And Communities,Cap Schools Capital,Primary Capital Programme,Cap Land/Build-Build Enh Wrk,Cap Land/Build-Build Enh Wrk,YA102,4/16/2014,275193,32065.55,CAPITAL,GEO HOULTON & SONS LTD,102697
NORTH EAST LINCOLNSHIRE COUNCIL,http://statistics.data.gov.uk/id/local-authority/00FC,Cap People And Communities,Cap Schools Capital,Primary Capital Programme,Cap Land/Build-Build Enh Wrk,Cap Land/Build-Build Enh Wrk,YA102,4/22/2014,275886,2093,CAPITAL,A F SWITCHGEAR LTD,125593
NORTH EAST LINCOLNSHIRE COUNCIL,http://statistics.data.gov.uk/id/local-authority/00FC,Cap People And Communities,Cap Schools Capital,Primary Capital Programme,Cap Land/Build-Build Enh Wrk,Cap Land/Build-Build Enh Wrk,YA102,4/15/2014,274846,590151.19,CAPITAL,BUILT OFFSITE LIMITED,123685
NORTH EAST LINCOLNSHIRE COUNCIL,http://statistics.data.gov.uk/id/local-authority/00FC,Cap Resources,Cap Commission & Inform System,Childcare Mgmt System (Ics),Cap Intangible Assets,Cap Intangible Assets,YH101,4/10/2014,273072,900,CAPITAL,JOHN BURWELL EDUCATION CONSULTANT LTD,123758
NORTH EAST LINCOLNSHIRE COUNCIL,http://statistics.data.gov.uk/id/local-authority/00FC,Cap Resources,Cap Commission & Inform System,Ict Design Fwk &I Ct Strategy,Cap Intangible Assets,Cap Intangible Assets,YH101,4/1/2014,269985,27750.35,CAPITAL,SOPRA GROUP LTD,124753
NORTH EAST LINCOLNSHIRE COUNCIL,http://statistics.data.gov.uk/id/local-authority/00FC,Cap Resources,Cap Commission & Inform System,Ict Refresh / Refurbishment,Cap Veh Plt Eqp-Purchase,Cap Veh Plt Eqp-Purchase,YB101,4/1/2014,267289,372.5,CAPITAL,SAFE CONTROL LTD,100989
NORTH EAST LINCOLNSHIRE COUNCIL,http://statistics.data.gov.uk/id/local-authority/00FC,Cap Resources,Cap Commission & Inform System,Ict Refresh / Refurbishment,Cap Veh Plt Eqp-Purchase,Cap Veh Plt Eqp-Purchase,YB101,4/1/2014,267289,438.5,CAPITAL,SAFE CONTROL LTD,100989
NORTH EAST LINCOLNSHIRE COUNCIL,http://statistics.data.gov.uk/id/local-authority/00FC,Cap Resources,Cap Commission & Inform System,Ict Refresh / Refurbishment,Cap Veh Plt Eqp-Purchase,Cap Veh Plt Eqp-Purchase,YB101,4/3/2014,270059,660,CAPITAL,SAFE CONTROL LTD,100989
NORTH EAST LINCOLNSHIRE COUNCIL,http://statistics.data.gov.uk/id/local-authority/00FC,Cap Resources,Cap Commission & Inform System,Ict Refresh / Refurbishment,Cap Veh Plt Eqp-Purchase,Cap Veh Plt Eqp-Purchase,YB101,4/22/2014,275183,3825,CAPITAL,NTA MONITOR LTD,103458
NORTH EAST LINCOLNSHIRE COUNCIL,http://statistics.data.gov.uk/id/local-authority/00FC,Cap Resources,Cap Commission & Inform System,Ict Refresh / Refurbishment,Cap Veh Plt Eqp-Purchase,Cap Veh Plt Eqp-Purchase,YB101,4/22/2014,275183,4125,CAPITAL,NTA MONITOR LTD,103458
NORTH EAST LINCOLNSHIRE COUNCIL,http://statistics.data.gov.uk/id/local-authority/00FC,Cap Resources,Cap Commission & Inform System,Ict Refresh / Refurbishment,Cap Veh Plt Eqp-Purchase,Cap Veh Plt Eqp-Purchase,YB101,4/22/2014,275183,1800,CAPITAL,NTA MONITOR LTD,103458
NORTH EAST LINCOLNSHIRE COUNCIL,http://statistics.data.gov.uk/id/local-authority/00FC,Cap Economy Env And Housing,Cap Neighbourhood Services,Fleet,Cap Veh Plt Eqp-Purchase,Cap Veh Plt Eqp-Purchase,YB101,4/28/2014,275567,1800,CAPITAL,PINECROFT LIMITED,103426
NORTH EAST LINCOLNSHIRE COUNCIL,http://statistics.data.gov.uk/id/local-authority/00FC,Cap Economy Env And Housing,Cap Neighbourhood Services,Fleet,Cap Veh Plt Eqp-Purchase,Cap Veh Plt Eqp-Purchase,YB101,4/3/2014,270145,2990,CAPITAL,VISION TECHNIQUES ( UK) LTD,108488
NORTH EAST LINCOLNSHIRE COUNCIL,http://statistics.data.gov.uk/id/local-authority/00FC,Cap Economy Env And Housing,Cap Neighbourhood Services,Fleet,Cap Veh Plt Eqp-Purchase,Cap Veh Plt Eqp-Purchase,YB101,4/3/2014,270146,2990,CAPITAL,VISION TECHNIQUES ( UK) LTD,108488
NORTH EAST LINCOLNSHIRE COUNCIL,http://statistics.data.gov.uk/id/local-authority/00FC,Cap Economy Env And Housing,Cap Neighbourhood Services,Fleet,Cap Veh Plt Eqp-Purchase,Cap Veh Plt Eqp-Purchase,YB101,4/14/2014,272978,16794.47,CAPITAL,MIDLANDS CO-OPERATIVE MOTOR GROUP,124203
NORTH EAST LINCOLNSHIRE COUNCIL,http://statistics.data.gov.uk/id/local-authority/00FC,Cap Economy Env And Housing,Cap Neighbourhood Services,Fleet,Cap Veh Plt Eqp-Purchase,Cap Veh Plt Eqp-Purchase,YB101,4/22/2014,272985,275,CAPITAL,POLAR FORD BARNSLEY,123505
NORTH EAST LINCOLNSHIRE COUNCIL,http://statistics.data.gov.uk/id/local-authority/00FC,Cap Economy Env And Housing,Cap Neighbourhood Services,Fleet,Cap Veh Plt Eqp-Purchase,Cap Veh Plt Eqp-Purchase,YB101,4/22/2014,272994,275,CAPITAL,POLAR FORD BARNSLEY,123505
NORTH EAST LINCOLNSHIRE COUNCIL,http://statistics.data.gov.uk/id/local-authority/00FC,Cap Economy Env And Housing,Cap Neighbourhood Services,Fleet,Cap Veh Plt Eqp-Purchase,Cap Veh Plt Eqp-Purchase,YB101,4/28/2014,275586,10000,CAPITAL,VESTATE AUTOMOTIVE DISTRIBUTION LTD,123923
NORTH EAST LINCOLNSHIRE COUNCIL,http://statistics.data.gov.uk/id/local-authority/00FC,Cap Economy Env And Housing,Cap Neighbourhood Services,Fleet,Cap Veh Plt Eqp-Purchase,Cap Veh Plt Eqp-Purchase,YB101,4/28/2014,275611,10000,CAPITAL,VESTATE AUTOMOTIVE DISTRIBUTION LTD,123923
NORTH EAST LINCOLNSHIRE COUNCIL,http://statistics.data.gov.uk/id/local-authority/00FC,Cap Economy Env And Housing,Cap Neighbourhood Services,Fleet,Cap Veh Plt Eqp-Purchase,Cap Veh Plt Eqp-Purchase,YB101,4/28/2014,275612,10000,CAPITAL,VESTATE AUTOMOTIVE DISTRIBUTION LTD,123923
NORTH EAST LINCOLNSHIRE COUNCIL,http://statistics.data.gov.uk/id/local-authority/00FC,Cap Economy Env And Housing,Cap Neighbourhood Services,Fleet,Cap Veh Plt Eqp-Purchase,Cap Veh Plt Eqp-Purchase,YB101,4/29/2014,276256,10000,CAPITAL,VESTATE AUTOMOTIVE DISTRIBUTION LTD,123923
NORTH EAST LINCOLNSHIRE COUNCIL,http://statistics.data.gov.uk/id/local-authority/00FC,Cap Economy Env And Housing,Cap Neighbourhood Services,Fleet,Cap Veh Plt Eqp-Purchase,Cap Veh Plt Eqp-Purchase,YB101,4/29/2014,276257,10000,CAPITAL,VESTATE AUTOMOTIVE DISTRIBUTION LTD,123923
NORTH EAST LINCOLNSHIRE COUNCIL,http://statistics.data.gov.uk/id/local-authority/00FC,Cap Economy Env And Housing,Cap Neighbourhood Services,Fleet,Cap Veh Plt Eqp-Purchase,Cap Veh Plt Eqp-Purchase,YB101,4/3/2014,270124,4800,CAPITAL,FLEET LINE MARKERS LIMITED,100595
NORTH EAST LINCOLNSHIRE COUNCIL,http://statistics.data.gov.uk/id/local-authority/00FC,Cap Economy Env And Housing,Cap Neighbourhood Services,Fleet,Cap Veh Plt Eqp-Purchase,Cap Veh Plt Eqp-Purchase,YB101,4/7/2014,271892,-36363,,ENZA MOTORS LTD,107976
NORTH EAST LINCOLNSHIRE COUNCIL,http://statistics.data.gov.uk/id/local-authority/00FC,Cap Economy Env And Housing,Cap Neighbourhood Services,Fleet,Cap Veh Plt Eqp-Purchase,Cap Veh Plt Eqp-Purchase,YB101,4/7/2014,270028,38808,CAPITAL,ENZA MOTORS LTD,107976
NORTH EAST LINCOLNSHIRE COUNCIL,http://statistics.data.gov.uk/id/local-authority/00FC,Cap Economy Env And Housing,Cap Neighbourhood Services,Fleet,Cap Veh Plt Eqp-Purchase,Cap Veh Plt Eqp-Purchase,YB101,4/22/2014,272985,24021.65,CAPITAL,POLAR FORD BARNSLEY,123505
NORTH EAST LINCOLNSHIRE COUNCIL,http://statistics.data.gov.uk/id/local-authority/00FC,Cap Economy Env And Housing,Cap Neighbourhood Services,Fleet,Cap Veh Plt Eqp-Purchase,Cap Veh Plt Eqp-Purchase,YB101,4/22/2014,272994,24021.65,CAPITAL,POLAR FORD BARNSLEY,123505
NORTH EAST LINCOLNSHIRE COUNCIL,http://statistics.data.gov.uk/id/local-authority/00FC,Cap Economy Env And Housing,Cap Neighbourhood Services,Scartho Cemetry Road Scheme,Cap Land/Build-Build Enh Wrk,Cap Land/Build-Build Enh Wrk,YA102,4/1/2014,270009,1477,CAPITAL,ABSOLUTE FABRICATIONS & GATES CO (UK) LTD,122022
NORTH EAST LINCOLNSHIRE COUNCIL,http://statistics.data.gov.uk/id/local-authority/00FC,Cap Economy Env And Housing,Cap Neighbourhood Services,Scartho Cemetry Road Scheme,Cap Land/Build-Build Enh Wrk,Cap Land/Build-Build Enh Wrk,YA102,4/30/2014,275832,1250,CAPITAL,FTP ECO-COFFINS LTD,124727
NORTH EAST LINCOLNSHIRE COUNCIL,http://statistics.data.gov.uk/id/local-authority/00FC,Cap Economy Env And Housing,Cap Neighbourhood Services,Scartho Cemetry Road Scheme,Cap Land/Build-Build Enh Wrk,Cap Land/Build-Build Enh Wrk,YA102,4/22/2014,275690,71027.92,CAPITAL,JEMBUILD LTD,116707
NORTH EAST LINCOLNSHIRE COUNCIL,http://statistics.data.gov.uk/id/local-authority/00FC,Cap Economy Env And Housing,Cap Development,Hps-Disabled Fac. Grants,Cap Grants To O/Side Sources,Cap Grants To O/Side Sources,YJ101,4/22/2014,275320,3932,CAPITAL,M J QUICKFALL,102499
NORTH EAST LINCOLNSHIRE COUNCIL,http://statistics.data.gov.uk/id/local-authority/00FC,Cap Economy Env And Housing,Cap Development,Hps-Disabled Fac. Grants,Cap Grants To O/Side Sources,Cap Grants To O/Side Sources,YJ101,4/3/2014,270487,4590,CAPITAL,CLEVELAND JOINERY,102580
NORTH EAST LINCOLNSHIRE COUNCIL,http://statistics.data.gov.uk/id/local-authority/00FC,Cap Economy Env And Housing,Cap Development,Hps-Disabled Fac. Grants,Cap Grants To O/Side Sources,Cap Grants To O/Side Sources,YJ101,4/7/2014,270517,5322,CAPITAL,HANDICARE ACCESSIIBILITY LTD,102647
NORTH EAST LINCOLNSHIRE COUNCIL,http://statistics.data.gov.uk/id/local-authority/00FC,Cap Economy Env And Housing,Cap Development,Hps-Disabled Fac. Grants,Cap Grants To O/Side Sources,Cap Grants To O/Side Sources,YJ101,4/22/2014,275306,5165,CAPITAL,CLEVELAND JOINERY,102580
NORTH EAST LINCOLNSHIRE COUNCIL,http://statistics.data.gov.uk/id/local-authority/00FC,Cap Economy Env And Housing,Cap Development,Hps-Disabled Fac. Grants,Cap Grants To O/Side Sources,Cap Grants To O/Side Sources,YJ101,4/22/2014,275518,1435.65,CAPITAL,MOVEMENT2 PRISM MEDICAL UK,108486
NORTH EAST LINCOLNSHIRE COUNCIL,http://statistics.data.gov.uk/id/local-authority/00FC,Cap Economy Env And Housing,Cap Development,Hps-Disabled Fac. Grants,Cap Grants To O/Side Sources,Cap Grants To O/Side Sources,YJ101,4/22/2014,275312,9710,CAPITAL,E J PARMENTER,100924
NORTH EAST LINCOLNSHIRE COUNCIL,http://statistics.data.gov.uk/id/local-authority/00FC,Cap Economy Env And Housing,Cap Development,Hps-Disabled Fac. Grants,Cap Grants To O/Side Sources,Cap Grants To O/Side Sources,YJ101,4/10/2014,272910,4494.85,CAPITAL,KES BUILDING MAINTENANCE LIMITED,100786
NORTH EAST LINCOLNSHIRE COUNCIL,http://statistics.data.gov.uk/id/local-authority/00FC,Cap Economy Env And Housing,Cap Development,Hps-Disabled Fac. Grants,Cap Grants To O/Side Sources,Cap Grants To O/Side Sources,YJ101,4/22/2014,275310,4230,CAPITAL,MARK BENNETT,101838
NORTH EAST LINCOLNSHIRE COUNCIL,http://statistics.data.gov.uk/id/local-authority/00FC,Cap Economy Env And Housing,Cap Development,Hps-Disabled Fac. Grants,Cap Grants To O/Side Sources,Cap Grants To O/Side Sources,YJ101,4/22/2014,275255,12045,CAPITAL,CLEVELAND JOINERY,102580
NORTH EAST LINCOLNSHIRE COUNCIL,http://statistics.data.gov.uk/id/local-authority/00FC,Cap Economy Env And Housing,Cap Development,Hps-Disabled Fac. Grants,Cap Grants To O/Side Sources,Cap Grants To O/Side Sources,YJ101,4/25/2014,275313,9280,CAPITAL,DOLPHIN MOBILITY EAST MIDLANDS LTD,101317
NORTH EAST LINCOLNSHIRE COUNCIL,http://statistics.data.gov.uk/id/local-authority/00FC,Cap Economy Env And Housing,Cap Development,Hps-Disabled Fac. Grants,Cap Grants To O/Side Sources,Cap Grants To O/Side Sources,YJ101,4/28/2014,275257,5676.32,CAPITAL,MARK BENNETT,101838
NORTH EAST LINCOLNSHIRE COUNCIL,http://statistics.data.gov.uk/id/local-authority/00FC,Cap Economy Env And Housing,Cap Development,Hps-Disabled Fac. Grants,Cap Grants To O/Side Sources,Cap Grants To O/Side Sources,YJ101,4/22/2014,275321,4835.7,CAPITAL,E J PARMENTER,100924
NORTH EAST LINCOLNSHIRE COUNCIL,http://statistics.data.gov.uk/id/local-authority/00FC,Cap Economy Env And Housing,Cap Development,Hps-Disabled Fac. Grants,Cap Grants To O/Side Sources,Cap Grants To O/Side Sources,YJ101,4/22/2014,275322,601.69,CAPITAL,MANTA BRC LTD,102230
NORTH EAST LINCOLNSHIRE COUNCIL,http://statistics.data.gov.uk/id/local-authority/00FC,Cap Economy Env And Housing,Cap Development,Hps-Disabled Fac. Grants,Cap Grants To O/Side Sources,Cap Grants To O/Side Sources,YJ101,4/16/2014,274827,2529,CAPITAL,MARK BENNETT,101838
NORTH EAST LINCOLNSHIRE COUNCIL,http://statistics.data.gov.uk/id/local-authority/00FC,Cap Economy Env And Housing,Cap Development,Hps-Disabled Fac. Grants,Cap Grants To O/Side Sources,Cap Grants To O/Side Sources,YJ101,4/3/2014,270876,4500,CAPITAL,VIC HANSEN BUILDING & JOINERY LTD,103981
NORTH EAST LINCOLNSHIRE COUNCIL,http://statistics.data.gov.uk/id/local-authority/00FC,Cap Economy Env And Housing,Cap Development,Hps-Disabled Fac. Grants,Cap Grants To O/Side Sources,Cap Grants To O/Side Sources,YJ101,4/28/2014,275265,4926,CAPITAL,M J QUICKFALL,102499
NORTH EAST LINCOLNSHIRE COUNCIL,http://statistics.data.gov.uk/id/local-authority/00FC,Cap Economy Env And Housing,Cap Development,Hps-Disabled Fac. Grants,Cap Grants To O/Side Sources,Cap Grants To O/Side Sources,YJ101,4/3/2014,270015,10186.84,CAPITAL,M J QUICKFALL,102499
NORTH EAST LINCOLNSHIRE COUNCIL,http://statistics.data.gov.uk/id/local-authority/00FC,Cap Economy Env And Housing,Cap Development,Hps-Disabled Fac. Grants,Cap Grants To O/Side Sources,Cap Grants To O/Side Sources,YJ101,4/22/2014,274749,10000,CAPITAL,BECKETT CONTRACTING,122683
NORTH EAST LINCOLNSHIRE COUNCIL,http://statistics.data.gov.uk/id/local-authority/00FC,Cap Economy Env And Housing,Cap Development,Hps-Disabled Fac. Grants,Cap Grants To O/Side Sources,Cap Grants To O/Side Sources,YJ101,4/25/2014,274746,250,CAPITAL,DOLPHIN MOBILITY EAST MIDLANDS LTD,101317
NORTH EAST LINCOLNSHIRE COUNCIL,http://statistics.data.gov.uk/id/local-authority/00FC,Cap Economy Env And Housing,Cap Development,Hps-Disabled Fac. Grants,Cap Grants To O/Side Sources,Cap Grants To O/Side Sources,YJ101,4/7/2014,270920,2198,CAPITAL,AIDSERVICE LTD,105495
NORTH EAST LINCOLNSHIRE COUNCIL,http://statistics.data.gov.uk/id/local-authority/00FC,Cap Economy Env And Housing,Cap Development,Hps-Disabled Fac. Grants,Cap Grants To O/Side Sources,Cap Grants To O/Side Sources,YJ101,4/28/2014,275252,5382,CAPITAL,HANDICARE ACCESSIIBILITY LTD,102647
NORTH EAST LINCOLNSHIRE COUNCIL,http://statistics.data.gov.uk/id/local-authority/00FC,Cap Economy Env And Housing,Cap Development,Hps-Disabled Fac. Grants,Cap Grants To O/Side Sources,Cap Grants To O/Side Sources,YJ101,4/22/2014,275251,9508,CAPITAL,LINCS PLUMBING & HEATING CO,102584
NORTH EAST LINCOLNSHIRE COUNCIL,http://statistics.data.gov.uk/id/local-authority/00FC,Cap Economy Env And Housing,Cap Development,Hps-Disabled Fac. Grants,Cap Grants To O/Side Sources,Cap Grants To O/Side Sources,YJ101,4/3/2014,270440,4140,CAPITAL,MARK BENNETT,101838
NORTH EAST LINCOLNSHIRE COUNCIL,http://statistics.data.gov.uk/id/local-authority/00FC,Cap Economy Env And Housing,Cap Development,Hps-Disabled Fac. Grants,Cap Grants To O/Side Sources,Cap Grants To O/Side Sources,YJ101,4/22/2014,272765,460.54,CAPITAL,HUGH STEEPER LIMITED,101616
NORTH EAST LINCOLNSHIRE COUNCIL,http://statistics.data.gov.uk/id/local-authority/00FC,Cap Economy Env And Housing,Cap Development,Hps-Disabled Fac. Grants,Cap Grants To O/Side Sources,Cap Grants To O/Side Sources,YJ101,4/16/2014,274759,712.8,CAPITAL,STEVE BENNETT ARCHITECTURAL DESIGN,103819
NORTH EAST LINCOLNSHIRE COUNCIL,http://statistics.data.gov.uk/id/local-authority/00FC,Cap Economy Env And Housing,Cap Development,Local Transport Plan,Cap Infrastr-Build Enh Wrk,Cap Infrastr-Build Enh Wrk,YC102,4/14/2014,272560,309.35,CAPITAL,NORTHERN POWERGRID (YORKSHIRE) PLC,108328
NORTH EAST LINCOLNSHIRE COUNCIL,http://statistics.data.gov.uk/id/local-authority/00FC,Cap Economy Env And Housing,Cap Development,Local Transport Plan,Cap Infrastr-Build Enh Wrk,Cap Infrastr-Build Enh Wrk,YC102,4/25/2014,275759,298.44,CAPITAL,J MCCANN & CO LTD,100841
NORTH EAST LINCOLNSHIRE COUNCIL,http://statistics.data.gov.uk/id/local-authority/00FC,Cap Economy Env And Housing,Cap Development,Local Transport Plan,Cap Infrastr-Build Enh Wrk,Cap Infrastr-Build Enh Wrk,YC102,4/25/2014,275759,1583.03,CAPITAL,J MCCANN & CO LTD,100841
NORTH EAST LINCOLNSHIRE COUNCIL,http://statistics.data.gov.uk/id/local-authority/00FC,Cap Economy Env And Housing,Cap Development,Local Transport Plan,Cap Infrastr-Build Enh Wrk,Cap Infrastr-Build Enh Wrk,YC102,4/25/2014,275759,582.89,CAPITAL,J MCCANN & CO LTD,100841
NORTH EAST LINCOLNSHIRE COUNCIL,http://statistics.data.gov.uk/id/local-authority/00FC,Cap Economy Env And Housing,Cap Development,Local Transport Plan,Cap Infrastr-Build Enh Wrk,Cap Infrastr-Build Enh Wrk,YC102,4/10/2014,272616,478.78,CAPITAL,J MCCANN & CO LTD,100841
NORTH EAST LINCOLNSHIRE COUNCIL,http://statistics.data.gov.uk/id/local-authority/00FC,Cap Economy Env And Housing,Cap Development,Local Transport Plan,Cap Infrastr-Build Enh Wrk,Cap Infrastr-Build Enh Wrk,YC102,4/25/2014,275759,403.47,CAPITAL,J MCCANN & CO LTD,100841
NORTH EAST LINCOLNSHIRE COUNCIL,http://statistics.data.gov.uk/id/local-authority/00FC,Cap Economy Env And Housing,Cap Development,Local Transport Plan,Cap Infrastr-Build Enh Wrk,Cap Infrastr-Build Enh Wrk,YC102,4/25/2014,275759,264.11,CAPITAL,J MCCANN & CO LTD,100841
NORTH EAST LINCOLNSHIRE COUNCIL,http://statistics.data.gov.uk/id/local-authority/00FC,Cap Economy Env And Housing,Cap Development,Local Transport Plan,Cap Infrastr-Build Enh Wrk,Cap Infrastr-Build Enh Wrk,YC102,4/25/2014,275759,416.56,CAPITAL,J MCCANN & CO LTD,100841
NORTH EAST LINCOLNSHIRE COUNCIL,http://statistics.data.gov.uk/id/local-authority/00FC,Cap Economy Env And Housing,Cap Development,Local Transport Plan,Cap Infrastr-Build Enh Wrk,Cap Infrastr-Build Enh Wrk,YC102,4/25/2014,275759,1168.98,CAPITAL,J MCCANN & CO LTD,100841
NORTH EAST LINCOLNSHIRE COUNCIL,http://statistics.data.gov.uk/id/local-authority/00FC,Cap Economy Env And Housing,Cap Development,Local Transport Plan,Cap Land/Build-Build Enh Wrk,Cap Land/Build-Build Enh Wrk,YA102,4/10/2014,272039,36593.98,CAPITAL,P H CONSTRUCTION SERVICES LTD,102107
NORTH EAST LINCOLNSHIRE COUNCIL,http://statistics.data.gov.uk/id/local-authority/00FC,Cap Economy Env And Housing,Cap Development,Local Transport Plan,Cap Land/Build-Build Enh Wrk,Cap Land/Build-Build Enh Wrk,YA102,4/28/2014,276128,336.1,CAPITAL,NORTHERN POWERGRID (YORKSHIRE) PLC,108328
NORTH EAST LINCOLNSHIRE COUNCIL,http://statistics.data.gov.uk/id/local-authority/00FC,Cap Economy Env And Housing,Cap Development,Local Transport Plan,Cap Land/Build-Build Enh Wrk,Cap Land/Build-Build Enh Wrk,YA102,4/14/2014,272543,1256.78,CAPITAL,NORTHERN POWERGRID (YORKSHIRE) PLC,108328
NORTH EAST LINCOLNSHIRE COUNCIL,http://statistics.data.gov.uk/id/local-authority/00FC,Cap Economy Env And Housing,Cap Development,Local Transport Plan,Cap Land/Build-Build Enh Wrk,Cap Land/Build-Build Enh Wrk,YA102,4/25/2014,276245,5335.52,CAPITAL,J MCCANN & CO LTD,100841
NORTH EAST LINCOLNSHIRE COUNCIL,http://statistics.data.gov.uk/id/local-authority/00FC,Cap Economy Env And Housing,Cap Development,Local Transport Plan,Cap Land/Build-Build Enh Wrk,Cap Land/Build-Build Enh Wrk,YA102,4/29/2014,277349,66871.64,CAPITAL,C R REYNOLDS (CONSTRUCTION) LTD,103021
NORTH EAST LINCOLNSHIRE COUNCIL,http://statistics.data.gov.uk/id/local-authority/00FC,Cap Economy Env And Housing,Cap Development,Local Transport Plan,Cap Infrastr-Build Enh Wrk,Cap Infrastr-Build Enh Wrk,YC102,4/10/2014,273019,1000,CAPITAL,CHOCOLATE CREATIVE LTD,106314
NORTH EAST LINCOLNSHIRE COUNCIL,http://statistics.data.gov.uk/id/local-authority/00FC,Cap Economy Env And Housing,Cap Development,Local Transport Plan,Cap Infrastr-Build Enh Wrk,Cap Infrastr-Build Enh Wrk,YC102,4/25/2014,275843,46267.84,CAPITAL,C R REYNOLDS (CONSTRUCTION) LTD,103021
NORTH EAST LINCOLNSHIRE COUNCIL,http://statistics.data.gov.uk/id/local-authority/00FC,Cap Economy Env And Housing,Cap Development,Local Transport Plan,Cap Infrastr-Purchase,Cap Infrastr-Purchase,YC101,4/10/2014,272187,60503.71,CAPITAL,NIMBUS JOURNEY INFORMATION LTD,124772
NORTH EAST LINCOLNSHIRE COUNCIL,http://statistics.data.gov.uk/id/local-authority/00FC,Cap Economy Env And Housing,Cap Development,Local Transport Plan,Cap Infrastr-Purchase,Cap Infrastr-Purchase,YC101,4/10/2014,272098,60503.71,CAPITAL,NIMBUS JOURNEY INFORMATION LTD,124772
NORTH EAST LINCOLNSHIRE COUNCIL,http://statistics.data.gov.uk/id/local-authority/00FC,Cap Economy Env And Housing,Cap Development,Local Transport Plan,Cap Infrastr-Build Enh Wrk,Cap Infrastr-Build Enh Wrk,YC102,4/25/2014,275674,2810,CAPITAL,ROAD TRAFFIC SOLUTIONS LIMITED,110409
NORTH EAST LINCOLNSHIRE COUNCIL,http://statistics.data.gov.uk/id/local-authority/00FC,Cap Economy Env And Housing,Cap Development,Local Transport Plan,Cap Infrastr-Build Enh Wrk,Cap Infrastr-Build Enh Wrk,YC102,4/14/2014,273065,4847.7,CAPITAL,SPECIALIST SURFACING LIMITED,100579
NORTH EAST LINCOLNSHIRE COUNCIL,http://statistics.data.gov.uk/id/local-authority/00FC,Cap Economy Env And Housing,Cap Development,Local Transport Plan,Cap Infrastr-Build Enh Wrk,Cap Infrastr-Build Enh Wrk,YC102,4/25/2014,276245,996.62,CAPITAL,J MCCANN & CO LTD,100841
NORTH EAST LINCOLNSHIRE COUNCIL,http://statistics.data.gov.uk/id/local-authority/00FC,Cap Economy Env And Housing,Cap Development,Local Transport Plan,Cap Infrastr-Build Enh Wrk,Cap Infrastr-Build Enh Wrk,YC102,4/14/2014,272687,776,CAPITAL,J MCCANN & CO LTD,100841
NORTH EAST LINCOLNSHIRE COUNCIL,http://statistics.data.gov.uk/id/local-authority/00FC,Cap Economy Env And Housing,Cap Development,Local Transport Plan,Cap Infrastr-Build Enh Wrk,Cap Infrastr-Build Enh Wrk,YC102,4/14/2014,272687,700,CAPITAL,J MCCANN & CO LTD,100841
NORTH EAST LINCOLNSHIRE COUNCIL,http://statistics.data.gov.uk/id/local-authority/00FC,Cap Economy Env And Housing,Cap Development,Local Transport Plan,Cap Infrastr-Build Enh Wrk,Cap Infrastr-Build Enh Wrk,YC102,4/14/2014,272687,400,CAPITAL,J MCCANN & CO LTD,100841
NORTH EAST LINCOLNSHIRE COUNCIL,http://statistics.data.gov.uk/id/local-authority/00FC,Cap Economy Env And Housing,Cap Development,Local Transport Plan,Cap Infrastr-Build Enh Wrk,Cap Infrastr-Build Enh Wrk,YC102,4/25/2014,275712,3013,CAPITAL,LOCAL TRANSPORT PROJECTS LTD,121248
NORTH EAST LINCOLNSHIRE COUNCIL,http://statistics.data.gov.uk/id/local-authority/00FC,Cap Economy Env And Housing,Cap Development,Local Transport Plan,Cap Infrastr-Build Enh Wrk,Cap Infrastr-Build Enh Wrk,YC102,4/10/2014,272527,1215.05,CAPITAL,NETWORK RAIL,103407
NORTH EAST LINCOLNSHIRE COUNCIL,http://statistics.data.gov.uk/id/local-authority/00FC,Cap Economy Env And Housing,Cap Development,Local Transport Plan,Cap Land/Build-Build Enh Wrk,Cap Land/Build-Build Enh Wrk,YA102,4/25/2014,276245,23832.8,CAPITAL,J MCCANN & CO LTD,100841
NORTH EAST LINCOLNSHIRE COUNCIL,http://statistics.data.gov.uk/id/local-authority/00FC,Cap Economy Env And Housing,Cap Development,Local Transport Plan,Cap Land/Build-Build Enh Wrk,Cap Land/Build-Build Enh Wrk,YA102,4/28/2014,276136,1008.3,CAPITAL,NORTHERN POWERGRID (YORKSHIRE) PLC,108328
NORTH EAST LINCOLNSHIRE COUNCIL,http://statistics.data.gov.uk/id/local-authority/00FC,Cap Economy Env And Housing,Cap Development,Local Transport Plan,Cap Land/Build-Build Enh Wrk,Cap Land/Build-Build Enh Wrk,YA102,4/28/2014,276134,672.2,CAPITAL,NORTHERN POWERGRID (YORKSHIRE) PLC,108328
NORTH EAST LINCOLNSHIRE COUNCIL,http://statistics.data.gov.uk/id/local-authority/00FC,Cap Economy Env And Housing,Cap Development,Local Transport Plan,Cap Land/Build-Build Enh Wrk,Cap Land/Build-Build Enh Wrk,YA102,4/28/2014,276157,672.2,CAPITAL,NORTHERN POWERGRID (YORKSHIRE) PLC,108328
NORTH EAST LINCOLNSHIRE COUNCIL,http://statistics.data.gov.uk/id/local-authority/00FC,Cap Economy Env And Housing,Cap Development,Local Transport Plan,Cap Land/Build-Build Enh Wrk,Cap Land/Build-Build Enh Wrk,YA102,4/28/2014,276135,1344.4,CAPITAL,NORTHERN POWERGRID (YORKSHIRE) PLC,108328
NORTH EAST LINCOLNSHIRE COUNCIL,http://statistics.data.gov.uk/id/local-authority/00FC,Cap Economy Env And Housing,Cap Development,Local Transport Plan,Cap Land/Build-Build Enh Wrk,Cap Land/Build-Build Enh Wrk,YA102,4/28/2014,276133,2352.7,CAPITAL,NORTHERN POWERGRID (YORKSHIRE) PLC,108328
NORTH EAST LINCOLNSHIRE COUNCIL,http://statistics.data.gov.uk/id/local-authority/00FC,Cap Economy Env And Housing,Cap Development,Local Transport Plan,Cap Land/Build-Build Enh Wrk,Cap Land/Build-Build Enh Wrk,YA102,4/28/2014,276158,1008.3,CAPITAL,NORTHERN POWERGRID (YORKSHIRE) PLC,108328
NORTH EAST LINCOLNSHIRE COUNCIL,http://statistics.data.gov.uk/id/local-authority/00FC,Cap Economy Env And Housing,Cap Development,Local Transport Plan,Cap Infrastr-Purchase,Cap Infrastr-Purchase,YC101,4/10/2014,272051,2280,CAPITAL,SYSTEMATIC PRINT MANAGEMENT LTD,101147
NORTH EAST LINCOLNSHIRE COUNCIL,http://statistics.data.gov.uk/id/local-authority/00FC,Cap Economy Env And Housing,Cap Development,Local Transport Plan,Cap Infrastr-Build Enh Wrk,Cap Infrastr-Build Enh Wrk,YC102,4/29/2014,277352,300,CAPITAL,LOCK IT SAFE LTD,101779
NORTH EAST LINCOLNSHIRE COUNCIL,http://statistics.data.gov.uk/id/local-authority/00FC,Cap Economy Env And Housing,Cap Development,Local Transport Plan,Cap Infrastr-Build Enh Wrk,Cap Infrastr-Build Enh Wrk,YC102,4/29/2014,277351,3725,CAPITAL,LOCK IT SAFE LTD,101779
NORTH EAST LINCOLNSHIRE COUNCIL,http://statistics.data.gov.uk/id/local-authority/00FC,Cap Economy Env And Housing,Cap Development,Local Transport Plan,Cap Infrastr-Build Enh Wrk,Cap Infrastr-Build Enh Wrk,YC102,4/22/2014,275548,30663.68,CAPITAL,C E SMITH & SONS,104444
NORTH EAST LINCOLNSHIRE COUNCIL,http://statistics.data.gov.uk/id/local-authority/00FC,Cap Economy Env And Housing,Cap Development,Local Transport Plan,Cap Infrastr-Build Enh Wrk,Cap Infrastr-Build Enh Wrk,YC102,4/3/2014,270497,20890.34,CAPITAL,THOMAS BOW LTD,102567
NORTH EAST LINCOLNSHIRE COUNCIL,http://statistics.data.gov.uk/id/local-authority/00FC,Cap Economy Env And Housing,Cap Development,Local Transport Plan,Cap Infrastr-Build Enh Wrk,Cap Infrastr-Build Enh Wrk,YC102,4/22/2014,275559,23689.84,CAPITAL,C E SMITH & SONS,104444
NORTH EAST LINCOLNSHIRE COUNCIL,http://statistics.data.gov.uk/id/local-authority/00FC,Cap Economy Env And Housing,Cap Development,Local Transport Plan,Cap Infrastr-Build Enh Wrk,Cap Infrastr-Build Enh Wrk,YC102,4/15/2014,274323,37687.85,CAPITAL,WRIGHT CIVIL ENGINEERING LTD,100624
NORTH EAST LINCOLNSHIRE COUNCIL,http://statistics.data.gov.uk/id/local-authority/00FC,Cap Economy Env And Housing,Cap Development,Local Transport Plan,Cap Land/Build-Build Enh Wrk,Cap Land/Build-Build Enh Wrk,YA102,4/15/2014,272771,8280,CAPITAL,XPI SIMULATION LTD,124886
NORTH EAST LINCOLNSHIRE COUNCIL,http://statistics.data.gov.uk/id/local-authority/00FC,Cap Economy Env And Housing,Cap Development,Local Transport Plan,Cap Infrastr-Purchase,Cap Infrastr-Purchase,YC101,4/3/2014,270837,9244.9,CAPITAL,NEWAUTO LTD,109845
NORTH EAST LINCOLNSHIRE COUNCIL,http://statistics.data.gov.uk/id/local-authority/00FC,Cap Economy Env And Housing,Cap Development,Local Transport Plan,Cap Infrastr-Purchase,Cap Infrastr-Purchase,YC101,4/3/2014,270834,5388,CAPITAL,SIGNPOST SOLUTIONS LTD,103474
NORTH EAST LINCOLNSHIRE COUNCIL,http://statistics.data.gov.uk/id/local-authority/00FC,Cap Economy Env And Housing,Cap Development,Local Transport Plan,Cap Infrastr-Purchase,Cap Infrastr-Purchase,YC101,4/10/2014,272184,9150,CAPITAL,NEWAUTO LTD,109845
NORTH EAST LINCOLNSHIRE COUNCIL,http://statistics.data.gov.uk/id/local-authority/00FC,Cap Economy Env And Housing,Cap Development,Local Transport Plan,Cap Infrastr-Purchase,Cap Infrastr-Purchase,YC101,4/10/2014,272106,5510,CAPITAL,HORIZON SIGNS LTD,103466
NORTH EAST LINCOLNSHIRE COUNCIL,http://statistics.data.gov.uk/id/local-authority/00FC,Cap Economy Env And Housing,Cap Development,Local Transport Plan,Cap Infrastr-Purchase,Cap Infrastr-Purchase,YC101,4/16/2014,273781,1183,CAPITAL,BRISSCO (EQUIPMENT) LTD,104655
NORTH EAST LINCOLNSHIRE COUNCIL,http://statistics.data.gov.uk/id/local-authority/00FC,Cap Economy Env And Housing,Cap Development,Local Transport Plan,Cap Infrastr-Build Enh Wrk,Cap Infrastr-Build Enh Wrk,YC102,4/7/2014,271008,3339.93,CAPITAL,C R REYNOLDS (CONSTRUCTION) LTD,103021
NORTH EAST LINCOLNSHIRE COUNCIL,http://statistics.data.gov.uk/id/local-authority/00FC,Cap Economy Env And Housing,Cap Development,Local Transport Plan,Cap Infrastr-Build Enh Wrk,Cap Infrastr-Build Enh Wrk,YC102,4/7/2014,270954,2654.5,CAPITAL,HUMBERSIDE MATERIALS LABORATORY LTD,122103
NORTH EAST LINCOLNSHIRE COUNCIL,http://statistics.data.gov.uk/id/local-authority/00FC,Cap Economy Env And Housing,Cap Development,Local Transport Plan,Cap Infrastr-Build Enh Wrk,Cap Infrastr-Build Enh Wrk,YC102,4/16/2014,274035,85475.59,CAPITAL,DEREK LEWIS LTD,108385
NORTH EAST LINCOLNSHIRE COUNCIL,http://statistics.data.gov.uk/id/local-authority/00FC,Cap Economy Env And Housing,Cap Development,Local Transport Plan,Cap Infrastr-Build Enh Wrk,Cap Infrastr-Build Enh Wrk,YC102,4/3/2014,271005,1259.55,CAPITAL,C R REYNOLDS (CONSTRUCTION) LTD,103021
NORTH EAST LINCOLNSHIRE COUNCIL,http://statistics.data.gov.uk/id/local-authority/00FC,Cap Economy Env And Housing,Cap Development,Local Transport Plan,Cap Infrastr-Build Enh Wrk,Cap Infrastr-Build Enh Wrk,YC102,4/28/2014,276357,14926.14,CAPITAL,BUTTON PLANT & CONSTRUCTION LTD,100710
NORTH EAST LINCOLNSHIRE COUNCIL,http://statistics.data.gov.uk/id/local-authority/00FC,Cap Economy Env And Housing,Cap Development,Local Transport Plan,Cap Infrastr-Build Enh Wrk,Cap Infrastr-Build Enh Wrk,YC102,4/29/2014,275865,380.32,CAPITAL,BUTTON PLANT & CONSTRUCTION LTD,100710
NORTH EAST LINCOLNSHIRE COUNCIL,http://statistics.data.gov.uk/id/local-authority/00FC,Cap Economy Env And Housing,Cap Development,Freeman Street Regeneration,Cap Land/Build-Build Enh Wrk,Cap Land/Build-Build Enh Wrk,YA102,4/14/2014,274048,22138.44,CAPITAL,COFELY WORKPLACE LIMITED,123983
NORTH EAST LINCOLNSHIRE COUNCIL,http://statistics.data.gov.uk/id/local-authority/00FC,Cap Economy Env And Housing,Cap Development,Freeman Street Regeneration,Cap Land/Build-Build Enh Wrk,Cap Land/Build-Build Enh Wrk,YA102,4/3/2014,270765,1400,CAPITAL,FAZACKERLEY LTD,125101
NORTH EAST LINCOLNSHIRE COUNCIL,http://statistics.data.gov.uk/id/local-authority/00FC,Cap Economy Env And Housing,Cap Development,Freeman Street Regeneration,Cap Land/Build-Build Enh Wrk,Cap Land/Build-Build Enh Wrk,YA102,4/10/2014,272090,14193.45,CAPITAL,J MCCANN & CO LTD,100841
NORTH EAST LINCOLNSHIRE COUNCIL,http://statistics.data.gov.uk/id/local-authority/00FC,Cap Economy Env And Housing,Cap Development,Freeman Street Regeneration,Cap Land/Build-Build Enh Wrk,Cap Land/Build-Build Enh Wrk,YA102,4/14/2014,272870,103295.33,CAPITAL,BIRSE CIVILS LTD,121547
NORTH EAST LINCOLNSHIRE COUNCIL,http://statistics.data.gov.uk/id/local-authority/00FC,Cap Economy Env And Housing,Cap Development,Freeman Street Regeneration,Cap Land/Build-Build Enh Wrk,Cap Land/Build-Build Enh Wrk,YA102,4/10/2014,272200,280,CAPITAL,COFELY WORKPLACE LIMITED,123983
NORTH EAST LINCOLNSHIRE COUNCIL,http://statistics.data.gov.uk/id/local-authority/00FC,Cap Economy Env And Housing,Cap Development,Freeman Street Regeneration,Cap Land/Build-Build Enh Wrk,Cap Land/Build-Build Enh Wrk,YA102,4/10/2014,272210,250,CAPITAL,BALFOUR BEATTY,102595
NORTH EAST LINCOLNSHIRE COUNCIL,http://statistics.data.gov.uk/id/local-authority/00FC,Cap Economy Env And Housing,Cap Development,Freeman Street Regeneration,Cap Invest Prop-Build Enh Wrk,Cap Invest Prop-Build Enh Wrk,YE102,4/10/2014,272538,524.78,CAPITAL,NORTHERN POWERGRID (YORKSHIRE) PLC,108328
NORTH EAST LINCOLNSHIRE COUNCIL,http://statistics.data.gov.uk/id/local-authority/00FC,Cap Economy Env And Housing,Cap Development,Freeman Street Regeneration,Cap Invest Prop-Build Enh Wrk,Cap Invest Prop-Build Enh Wrk,YE102,4/10/2014,272554,336.1,CAPITAL,NORTHERN POWERGRID (YORKSHIRE) PLC,108328
NORTH EAST LINCOLNSHIRE COUNCIL,http://statistics.data.gov.uk/id/local-authority/00FC,Cap Economy Env And Housing,Cap Development,Freeman Street Regeneration,Cap Invest Prop-Build Enh Wrk,Cap Invest Prop-Build Enh Wrk,YE102,4/14/2014,272540,1381.02,CAPITAL,NORTHERN POWERGRID (YORKSHIRE) PLC,108328
NORTH EAST LINCOLNSHIRE COUNCIL,http://statistics.data.gov.uk/id/local-authority/00FC,Cap Economy Env And Housing,Cap Development,Freeman Street Regeneration,Cap Invest Prop-Build Enh Wrk,Cap Invest Prop-Build Enh Wrk,YE102,4/14/2014,272556,309.35,CAPITAL,NORTHERN POWERGRID (YORKSHIRE) PLC,108328
NORTH EAST LINCOLNSHIRE COUNCIL,http://statistics.data.gov.uk/id/local-authority/00FC,Cap Economy Env And Housing,Cap Development,Freeman Street Regeneration,Cap Invest Prop-Build Enh Wrk,Cap Invest Prop-Build Enh Wrk,YE102,4/10/2014,272552,309.35,CAPITAL,NORTHERN POWERGRID (YORKSHIRE) PLC,108328
NORTH EAST LINCOLNSHIRE COUNCIL,http://statistics.data.gov.uk/id/local-authority/00FC,Cap Economy Env And Housing,Cap Development,Freeman Street Regeneration,Cap Invest Prop-Build Enh Wrk,Cap Invest Prop-Build Enh Wrk,YE102,4/10/2014,272553,672.2,CAPITAL,NORTHERN POWERGRID (YORKSHIRE) PLC,108328
NORTH EAST LINCOLNSHIRE COUNCIL,http://statistics.data.gov.uk/id/local-authority/00FC,Cap Economy Env And Housing,Cap Development,Freeman Street Regeneration,Cap Invest Prop-Build Enh Wrk,Cap Invest Prop-Build Enh Wrk,YE102,4/10/2014,272919,2500,CAPITAL,NORMAN & MONICA BRASTED,125162
NORTH EAST LINCOLNSHIRE COUNCIL,http://statistics.data.gov.uk/id/local-authority/00FC,Cap Economy Env And Housing,Cap Development,Freeman Street Regeneration,Cap Invest Prop-Build Enh Wrk,Cap Invest Prop-Build Enh Wrk,YE102,4/10/2014,272915,2500,CAPITAL,NORMAN & MONICA BRASTED,125162
NORTH EAST LINCOLNSHIRE COUNCIL,http://statistics.data.gov.uk/id/local-authority/00FC,Cap Economy Env And Housing,Cap Development,Freeman Street Regeneration,Cap Invest Prop-Build Enh Wrk,Cap Invest Prop-Build Enh Wrk,YE102,4/10/2014,272909,2500,CAPITAL,NORMAN & MONICA BRASTED,125162
NORTH EAST LINCOLNSHIRE COUNCIL,http://statistics.data.gov.uk/id/local-authority/00FC,Cap Economy Env And Housing,Cap Development,Freeman Street Regeneration,Cap Invest Prop-Build Enh Wrk,Cap Invest Prop-Build Enh Wrk,YE102,4/10/2014,272911,2417.72,CAPITAL,NORMAN & MONICA BRASTED,125162
NORTH EAST LINCOLNSHIRE COUNCIL,http://statistics.data.gov.uk/id/local-authority/00FC,Cap Economy Env And Housing,Cap Development,East Marsh Renewal,Cap Land/Build-Build Enh Wrk,Cap Land/Build-Build Enh Wrk,YA102,4/10/2014,272208,905.46,CAPITAL,BALFOUR BEATTY,102595
NORTH EAST LINCOLNSHIRE COUNCIL,http://statistics.data.gov.uk/id/local-authority/00FC,Cap Economy Env And Housing,Cap Development,Housing Assistance,Cap Grants To O/Side Sources,Cap Grants To O/Side Sources,YJ101,4/3/2014,270490,3544,CAPITAL,VIC HANSEN BUILDING & JOINERY LTD,103981
NORTH EAST LINCOLNSHIRE COUNCIL,http://statistics.data.gov.uk/id/local-authority/00FC,Cap Economy Env And Housing,Cap Development,Housing Assistance,Cap Grants To O/Side Sources,Cap Grants To O/Side Sources,YJ101,4/16/2014,274756,940.8,CAPITAL,NEWGLAZE,100642
NORTH EAST LINCOLNSHIRE COUNCIL,http://statistics.data.gov.uk/id/local-authority/00FC,Cap Economy Env And Housing,Cap Development,Housing Assistance,Cap Grants To O/Side Sources,Cap Grants To O/Side Sources,YJ101,4/16/2014,274686,762,CAPITAL,J & J CRUMP & SON LTD,123902
NORTH EAST LINCOLNSHIRE COUNCIL,http://statistics.data.gov.uk/id/local-authority/00FC,Cap Economy Env And Housing,Cap Development,Housing Assistance,Cap Grants To O/Side Sources,Cap Grants To O/Side Sources,YJ101,4/25/2014,274691,7377.51,CAPITAL,A & H ROOFING SERVICES,124833
NORTH EAST LINCOLNSHIRE COUNCIL,http://statistics.data.gov.uk/id/local-authority/00FC,Cap Economy Env And Housing,Cap Development,Housing Assistance,Cap Grants To O/Side Sources,Cap Grants To O/Side Sources,YJ101,4/22/2014,275307,6679.2,CAPITAL,D THORPE PLUMBING & HEATING SERVICES,118800
NORTH EAST LINCOLNSHIRE COUNCIL,http://statistics.data.gov.uk/id/local-authority/00FC,Cap Economy Env And Housing,Cap Development,Housing Assistance,Cap Grants To O/Side Sources,Cap Grants To O/Side Sources,YJ101,4/3/2014,270489,6764,CAPITAL,VIC HANSEN BUILDING & JOINERY LTD,103981
NORTH EAST LINCOLNSHIRE COUNCIL,http://statistics.data.gov.uk/id/local-authority/00FC,Cap Economy Env And Housing,Cap Development,Housing Assistance,Cap Grants To O/Side Sources,Cap Grants To O/Side Sources,YJ101,4/16/2014,274640,1448.4,CAPITAL,D THORPE PLUMBING & HEATING SERVICES,118800
NORTH EAST LINCOLNSHIRE COUNCIL,http://statistics.data.gov.uk/id/local-authority/00FC,Cap Economy Env And Housing,Cap Development,Housing Assistance,Cap Grants To O/Side Sources,Cap Grants To O/Side Sources,YJ101,4/3/2014,270480,5890.8,CAPITAL,M J QUICKFALL,102499
NORTH EAST LINCOLNSHIRE COUNCIL,http://statistics.data.gov.uk/id/local-authority/00FC,Cap Economy Env And Housing,Cap Development,Housing Assistance,Cap Grants To O/Side Sources,Cap Grants To O/Side Sources,YJ101,4/28/2014,275582,1743,CAPITAL,ROSS DAVY LIMITED,101055
NORTH EAST LINCOLNSHIRE COUNCIL,http://statistics.data.gov.uk/id/local-authority/00FC,Cap Economy Env And Housing,Cap Development,Housing Assistance,Cap Grants To O/Side Sources,Cap Grants To O/Side Sources,YJ101,4/10/2014,272119,2119.2,CAPITAL,D THORPE PLUMBING & HEATING SERVICES,118800
NORTH EAST LINCOLNSHIRE COUNCIL,http://statistics.data.gov.uk/id/local-authority/00FC,Cap Economy Env And Housing,Cap Development,Housing Assistance,Cap Grants To O/Side Sources,Cap Grants To O/Side Sources,YJ101,4/28/2014,276716,4433.4,CAPITAL,QUICK FIX GLASS LTD,100969
NORTH EAST LINCOLNSHIRE COUNCIL,http://statistics.data.gov.uk/id/local-authority/00FC,Cap Economy Env And Housing,Cap Development,Housing Assistance,Cap Grants To O/Side Sources,Cap Grants To O/Side Sources,YJ101,4/16/2014,274680,9523.04,CAPITAL,VALAM BUILDERS LTD,100566
NORTH EAST LINCOLNSHIRE COUNCIL,http://statistics.data.gov.uk/id/local-authority/00FC,Cap Economy Env And Housing,Cap Development,Housing Assistance,Cap Grants To O/Side Sources,Cap Grants To O/Side Sources,YJ101,4/22/2014,275314,1166.4,CAPITAL,D THORPE PLUMBING & HEATING SERVICES,118800
NORTH EAST LINCOLNSHIRE COUNCIL,http://statistics.data.gov.uk/id/local-authority/00FC,Cap Economy Env And Housing,Cap Development,Housing Assistance,Cap Grants To O/Side Sources,Cap Grants To O/Side Sources,YJ101,4/16/2014,274639,3192,CAPITAL,STEVE KEIGHTLEY WINDOW COMPANY LTD,112138
NORTH EAST LINCOLNSHIRE COUNCIL,http://statistics.data.gov.uk/id/local-authority/00FC,Cap Economy Env And Housing,Cap Development,Housing Assistance,Cap Grants To O/Side Sources,Cap Grants To O/Side Sources,YJ101,4/28/2014,276750,1840,CAPITAL,QUICK FIX GLASS LTD,100969
NORTH EAST LINCOLNSHIRE COUNCIL,http://statistics.data.gov.uk/id/local-authority/00FC,Cap Economy Env And Housing,Cap Development,Housing Assistance,Cap Grants To O/Side Sources,Cap Grants To O/Side Sources,YJ101,4/3/2014,270369,1286.4,CAPITAL,MAYNE GAS HEATING LTD,101861
NORTH EAST LINCOLNSHIRE COUNCIL,http://statistics.data.gov.uk/id/local-authority/00FC,Cap Economy Env And Housing,Cap Development,Housing Assistance,Cap Grants To O/Side Sources,Cap Grants To O/Side Sources,YJ101,4/30/2014,276296,3540,CAPITAL,MAYNE GAS HEATING LTD,101861
NORTH EAST LINCOLNSHIRE COUNCIL,http://statistics.data.gov.uk/id/local-authority/00FC,Cap Economy Env And Housing,Cap Development,Housing Assistance,Cap Grants To O/Side Sources,Cap Grants To O/Side Sources,YJ101,4/10/2014,272102,3120,CAPITAL,BRIAN KING HEATING & PLUMBING LTD,112869
NORTH EAST LINCOLNSHIRE COUNCIL,http://statistics.data.gov.uk/id/local-authority/00FC,Cap Economy Env And Housing,Cap Development,Housing Assistance,Cap Grants To O/Side Sources,Cap Grants To O/Side Sources,YJ101,4/15/2014,274327,4323,CAPITAL,SCARTHO WINDOW CO,125252
NORTH EAST LINCOLNSHIRE COUNCIL,http://statistics.data.gov.uk/id/local-authority/00FC,Cap Economy Env And Housing,Cap Development,Housing Assistance,Cap Grants To O/Side Sources,Cap Grants To O/Side Sources,YJ101,4/15/2014,274341,2495,CAPITAL,INSIDEOUT LINCS LTD,125253
NORTH EAST LINCOLNSHIRE COUNCIL,http://statistics.data.gov.uk/id/local-authority/00FC,Cap Economy Env And Housing,Cap Development,Housing Assistance,Cap Grants To O/Side Sources,Cap Grants To O/Side Sources,YJ101,4/7/2014,271873,10933.33,CAPITAL,P SMITH SPECIALIST BUILDER,125167
NORTH EAST LINCOLNSHIRE COUNCIL,http://statistics.data.gov.uk/id/local-authority/00FC,Cap Economy Env And Housing,Cap Development,Housing Assistance,Cap Grants To O/Side Sources,Cap Grants To O/Side Sources,YJ101,4/22/2014,275449,22225,CAPITAL,MR BEN NICHOLLS,124417
NORTH EAST LINCOLNSHIRE COUNCIL,http://statistics.data.gov.uk/id/local-authority/00FC,Cap Economy Env And Housing,Cap Development,Housing Assistance,Cap Grants To O/Side Sources,Cap Grants To O/Side Sources,YJ101,4/16/2014,275154,24000,CAPITAL,SHEFFIELD CITY COUNCIL,119344
NORTH EAST LINCOLNSHIRE COUNCIL,http://statistics.data.gov.uk/id/local-authority/00FC,Cap Economy Env And Housing,Cap Development,Housing Assistance,Cap Grants To O/Side Sources,Cap Grants To O/Side Sources,YJ101,4/10/2014,272894,17550,CAPITAL,SHEFFIELD CITY COUNCIL,119344
NORTH EAST LINCOLNSHIRE COUNCIL,http://statistics.data.gov.uk/id/local-authority/00FC,Cap Economy Env And Housing,Cap Development,Housing Assistance,Cap Grants To O/Side Sources,Cap Grants To O/Side Sources,YJ101,4/16/2014,275154,5174,CAPITAL,SHEFFIELD CITY COUNCIL,119344
NORTH EAST LINCOLNSHIRE COUNCIL,http://statistics.data.gov.uk/id/local-authority/00FC,Cap Economy Env And Housing,Cap Development,Housing Assistance,Cap Grants To O/Side Sources,Cap Grants To O/Side Sources,YJ101,4/10/2014,271991,26045,CAPITAL,MR BEN NICHOLLS,124417
NORTH EAST LINCOLNSHIRE COUNCIL,http://statistics.data.gov.uk/id/local-authority/00FC,Cap Economy Env And Housing,Cap Development,Housing Assistance,Cap Grants To O/Side Sources,Cap Grants To O/Side Sources,YJ101,4/16/2014,274758,4804,CAPITAL,E-ON UK PLC,109083
NORTH EAST LINCOLNSHIRE COUNCIL,http://statistics.data.gov.uk/id/local-authority/00FC,Cap Economy Env And Housing,Cap Development,Housing Assistance,Cap Grants To O/Side Sources,Cap Grants To O/Side Sources,YJ101,4/14/2014,272905,2179,CAPITAL,E-ON UK PLC,109083
NORTH EAST LINCOLNSHIRE COUNCIL,http://statistics.data.gov.uk/id/local-authority/00FC,Cap Economy Env And Housing,Cap Development,Housing Assistance,Cap Grants To O/Side Sources,Cap Grants To O/Side Sources,YJ101,4/14/2014,272907,2179,CAPITAL,E-ON UK PLC,109083
NORTH EAST LINCOLNSHIRE COUNCIL,http://statistics.data.gov.uk/id/local-authority/00FC,Cap Economy Env And Housing,Cap Development,Derelict Land & Comm Prop,Cap Grants To O/Side Sources,Cap Grants To O/Side Sources,YJ101,4/3/2014,270842,3064.77,CAPITAL,SHEFFIELD CITY COUNCIL,119344
NORTH EAST LINCOLNSHIRE COUNCIL,http://statistics.data.gov.uk/id/local-authority/00FC,Cap Economy Env And Housing,Cap Development,Local Sustainable Trans Fund,Cap Infrastr-Build Enh Wrk,Cap Infrastr-Build Enh Wrk,YC102,4/28/2014,275571,22931,CAPITAL,WESSEX ARCHAEOLOGY,124933
NORTH EAST LINCOLNSHIRE COUNCIL,http://statistics.data.gov.uk/id/local-authority/00FC,Cap Economy Env And Housing,Cap Development,Local Sustainable Trans Fund,Cap Infrastr-Build Enh Wrk,Cap Infrastr-Build Enh Wrk,YC102,4/28/2014,276311,26173.81,CAPITAL,COFELY WORKPLACE LIMITED,123983
NORTH EAST LINCOLNSHIRE COUNCIL,http://statistics.data.gov.uk/id/local-authority/00FC,Cap Economy Env And Housing,Cap Development,Local Sustainable Trans Fund,Cap Infrastr-Build Enh Wrk,Cap Infrastr-Build Enh Wrk,YC102,4/10/2014,272559,336.1,CAPITAL,NORTHERN POWERGRID (YORKSHIRE) PLC,108328
NORTH EAST LINCOLNSHIRE COUNCIL,http://statistics.data.gov.uk/id/local-authority/00FC,Cap Economy Env And Housing,Cap Development,Local Sustainable Trans Fund,Cap Infrastr-Build Enh Wrk,Cap Infrastr-Build Enh Wrk,YC102,4/28/2014,276129,309.35,CAPITAL,NORTHERN POWERGRID (YORKSHIRE) PLC,108328
NORTH EAST LINCOLNSHIRE COUNCIL,http://statistics.data.gov.uk/id/local-authority/00FC,Cap Economy Env And Housing,Cap Development,Local Sustainable Trans Fund,Cap Infrastr-Build Enh Wrk,Cap Infrastr-Build Enh Wrk,YC102,4/10/2014,272546,618.7,CAPITAL,NORTHERN POWERGRID (YORKSHIRE) PLC,108328
NORTH EAST LINCOLNSHIRE COUNCIL,http://statistics.data.gov.uk/id/local-authority/00FC,Cap Economy Env And Housing,Cap Development,Local Sustainable Trans Fund,Cap Infrastr-Build Enh Wrk,Cap Infrastr-Build Enh Wrk,YC102,4/28/2014,276127,309.35,CAPITAL,NORTHERN POWERGRID (YORKSHIRE) PLC,108328
NORTH EAST LINCOLNSHIRE COUNCIL,http://statistics.data.gov.uk/id/local-authority/00FC,Cap Economy Env And Housing,Cap Development,Local Sustainable Trans Fund,Cap Infrastr-Build Enh Wrk,Cap Infrastr-Build Enh Wrk,YC102,4/14/2014,272536,704.29,CAPITAL,NORTHERN POWERGRID (YORKSHIRE) PLC,108328
NORTH EAST LINCOLNSHIRE COUNCIL,http://statistics.data.gov.uk/id/local-authority/00FC,Cap Economy Env And Housing,Cap Development,Local Sustainable Trans Fund,Cap Infrastr-Build Enh Wrk,Cap Infrastr-Build Enh Wrk,YC102,4/30/2014,276261,8348.26,CAPITAL,BRITISH TELECOMMUNICATIONS PLC,112750
NORTH EAST LINCOLNSHIRE COUNCIL,http://statistics.data.gov.uk/id/local-authority/00FC,Cap Economy Env And Housing,Cap Development,Local Sustainable Trans Fund,Cap Infrastr-Prof Fees,Cap Infrastr-Prof Fees,YC103,4/14/2014,273379,31561.78,CAPITAL,COFELY WORKPLACE LIMITED,123983
NORTH EAST LINCOLNSHIRE COUNCIL,http://statistics.data.gov.uk/id/local-authority/00FC,Cap Economy Env And Housing,Cap Development,A18 - A180 Link,Cap Infrastr-Build Enh Wrk,Cap Infrastr-Build Enh Wrk,YC102,4/7/2014,270380,82308.75,CAPITAL,BRITISH TELECOMMUNICATIONS PLC,100974
NORTH EAST LINCOLNSHIRE COUNCIL,http://statistics.data.gov.uk/id/local-authority/00FC,Cap Economy Env And Housing,Cap Development,A18 - A180 Link,Cap Infrastr-Build Enh Wrk,Cap Infrastr-Build Enh Wrk,YC102,4/25/2014,276399,42400.99,CAPITAL,BALFOUR BEATTY,102595
NORTH EAST LINCOLNSHIRE COUNCIL,http://statistics.data.gov.uk/id/local-authority/00FC,Cap Economy Env And Housing,Cap Development,A18 - A180 Link,Cap Infrastr-Build Enh Wrk,Cap Infrastr-Build Enh Wrk,YC102,4/14/2014,273382,146167.74,CAPITAL,COFELY WORKPLACE LIMITED,123983
NORTH EAST LINCOLNSHIRE COUNCIL,http://statistics.data.gov.uk/id/local-authority/00FC,Cap Economy Env And Housing,Cap Development,A18 - A180 Link,Cap Infrastr-Build Enh Wrk,Cap Infrastr-Build Enh Wrk,YC102,4/25/2014,276243,146167.74,CAPITAL,COFELY WORKPLACE LIMITED,123983
NORTH EAST LINCOLNSHIRE COUNCIL,http://statistics.data.gov.uk/id/local-authority/00FC,Cap Economy Env And Housing,Cap Development,A18 - A180 Link,Cap Infrastr-Build Enh Wrk,Cap Infrastr-Build Enh Wrk,YC102,4/28/2014,276813,-146167.74,,COFELY WORKPLACE LIMITED,123983
NORTH EAST LINCOLNSHIRE COUNCIL,http://statistics.data.gov.uk/id/local-authority/00FC,Cap Economy Env And Housing,Cap Development,A18 - A180 Link,Cap Infrastr-Build Enh Wrk,Cap Infrastr-Build Enh Wrk,YC102,4/14/2014,273390,28000,CAPITAL,COFELY WORKPLACE LIMITED,123983
NORTH EAST LINCOLNSHIRE COUNCIL,http://statistics.data.gov.uk/id/local-authority/00FC,Cap Economy Env And Housing,Cap Development,Energy Sol - Street Light Lant,Cap Land/Build-Build Enh Wrk,Cap Land/Build-Build Enh Wrk,YA102,4/3/2014,271150,39826,CAPITAL,COFELY WORKPLACE LIMITED,123983
NORTH EAST LINCOLNSHIRE COUNCIL,http://statistics.data.gov.uk/id/local-authority/00FC,Cap Economy Env And Housing,Cap Development,Energy Sol - Street Light Lant,Cap Land/Build-Build Enh Wrk,Cap Land/Build-Build Enh Wrk,YA102,4/28/2014,276132,12310.32,CAPITAL,COFELY WORKPLACE LIMITED,123983
NORTH EAST LINCOLNSHIRE COUNCIL,http://statistics.data.gov.uk/id/local-authority/00FC,Cap Economy Env And Housing,Cap Development,Energy Sol - Street Light Lant,Cap Land/Build-Build Enh Wrk,Cap Land/Build-Build Enh Wrk,YA102,4/28/2014,276139,89026.08,CAPITAL,COFELY WORKPLACE LIMITED,123983
NORTH EAST LINCOLNSHIRE COUNCIL,http://statistics.data.gov.uk/id/local-authority/00FC,Cap Economy Env And Housing,Cap Development,Energy Sol - Street Light Lant,Cap Land/Build-Build Enh Wrk,Cap Land/Build-Build Enh Wrk,YA102,4/28/2014,276149,6225.6,CAPITAL,COFELY WORKPLACE LIMITED,123983
NORTH EAST LINCOLNSHIRE COUNCIL,http://statistics.data.gov.uk/id/local-authority/00FC,Cap Economy Env And Housing,Cap Development,Energy Sol - Street Light Lant,Cap Land/Build-Build Enh Wrk,Cap Land/Build-Build Enh Wrk,YA102,4/15/2014,274845,273037.05,CAPITAL,COFELY WORKPLACE LIMITED,123983
NORTH EAST LINCOLNSHIRE COUNCIL,http://statistics.data.gov.uk/id/local-authority/00FC,Cap Economy Env And Housing,Cap Development,Energy Sol - Street Light Lant,Cap Land/Build-Build Enh Wrk,Cap Land/Build-Build Enh Wrk,YA102,4/25/2014,275229,56773.78,CAPITAL,J MCCANN & CO LTD,100841
NORTH EAST LINCOLNSHIRE COUNCIL,http://statistics.data.gov.uk/id/local-authority/00FC,Cap Economy Env And Housing,Cap Development,Affordable Housing (S106),Cap Land/Build-Prof Fees,Cap Land/Build-Prof Fees,YA103,4/14/2014,272172,6257,CAPITAL,SHORELINE HOUSING PARTNERSHIP LTD,100139
NORTH EAST LINCOLNSHIRE COUNCIL,http://statistics.data.gov.uk/id/local-authority/00FC,Cap Economy Env And Housing,Cap Development,Affordable Housing (S106),Cap Land/Build-Prof Fees,Cap Land/Build-Prof Fees,YA103,4/14/2014,272172,61548.94,CAPITAL,SHORELINE HOUSING PARTNERSHIP LTD,100139
NORTH EAST LINCOLNSHIRE COUNCIL,http://statistics.data.gov.uk/id/local-authority/00FC,Cap Economy Env And Housing,Cap Culture Leisure And Sport,Leisure/Library - Library,Cap Land/Build-Build Enh Wrk,Cap Land/Build-Build Enh Wrk,YA102,4/30/2014,275305,441.83,CAPITAL,GRESSWELL,101461
NORTH EAST LINCOLNSHIRE COUNCIL,http://statistics.data.gov.uk/id/local-authority/00FC,Cap Economy Env And Housing,Cap Culture Leisure And Sport,Grimsby Leisure Centre,Cap Land/Build-Build Enh Wrk,Cap Land/Build-Build Enh Wrk,YA102,4/22/2014,275786,10836,CAPITAL,H2O SERVICING LIMITED,122749
NORTH EAST LINCOLNSHIRE COUNCIL,http://statistics.data.gov.uk/id/local-authority/00FC,Cap Economy Env And Housing,Cap Culture Leisure And Sport,Grimsby Leisure Centre,Cap Comm Asset-Build Enh Wrk,Cap Comm Asset-Build Enh Wrk,YD102,4/10/2014,272190,20000,CAPITAL,COFELY WORKPLACE LIMITED,123983
NORTH EAST LINCOLNSHIRE COUNCIL,http://statistics.data.gov.uk/id/local-authority/00FC,Cap Economy Env And Housing,Cap Culture Leisure And Sport,Cleethorpes Leis Cent Refurb,Cap Land/Build-Build Enh Wrk,Cap Land/Build-Build Enh Wrk,YA102,4/16/2014,275127,2500,CAPITAL,VIVID ACOUSTIC SYSTEMS,102375
NORTH EAST LINCOLNSHIRE COUNCIL,http://statistics.data.gov.uk/id/local-authority/00FC,Cap Economy Env And Housing,Cap Culture Leisure And Sport,Cleethorpes Leis Cent Refurb,Cap Land/Build-Build Enh Wrk,Cap Land/Build-Build Enh Wrk,YA102,4/25/2014,276362,2160,CAPITAL,GLEN WILSON LTD,103600
NORTH EAST LINCOLNSHIRE COUNCIL,http://statistics.data.gov.uk/id/local-authority/00FC,Cap Economy Env And Housing,Cap Culture Leisure And Sport,Cleethorpes Leis Cent Refurb,Cap Land/Build-Build Enh Wrk,Cap Land/Build-Build Enh Wrk,YA102,4/22/2014,275227,820,CAPITAL,SEYMOUR & CASTLE LTD,125536
NORTH EAST LINCOLNSHIRE COUNCIL,http://statistics.data.gov.uk/id/local-authority/00FC,Cap Economy Env And Housing,Cap Eeh Assets,Backlog Maintenance,Cap Land/Build-Build Enh Wrk,Cap Land/Build-Build Enh Wrk,YA102,4/3/2014,271311,17235,CAPITAL,ABSOLUTE FABRICATIONS & GATES CO (UK) LTD,122022
NORTH EAST LINCOLNSHIRE COUNCIL,http://statistics.data.gov.uk/id/local-authority/00FC,Cap Economy Env And Housing,Cap Eeh Assets,Backlog Maintenance,Cap Land/Build-Build Enh Wrk,Cap Land/Build-Build Enh Wrk,YA102,4/16/2014,275198,940,CAPITAL,HIRST CONSERVATION,108145
NORTH EAST LINCOLNSHIRE COUNCIL,http://statistics.data.gov.uk/id/local-authority/00FC,Cap Economy Env And Housing,Cap Eeh Assets,Property Rationalisation,Cap Land/Build-Build Enh Wrk,Cap Land/Build-Build Enh Wrk,YA102,4/16/2014,275153,2679,CAPITAL,COMPLETE OFFICE SOLUTIONS (UK) LTD,123664
NORTH EAST LINCOLNSHIRE COUNCIL,http://statistics.data.gov.uk/id/local-authority/00FC,Cap Economy Env And Housing,Cap Eeh Assets,Property Rationalisation,Cap Land/Build-Build Enh Wrk,Cap Land/Build-Build Enh Wrk,YA102,4/16/2014,275150,1459.44,CAPITAL,SYLVESTER-KEAL LTD,100593
NORTH EAST LINCOLNSHIRE COUNCIL,http://statistics.data.gov.uk/id/local-authority/00FC,Cap Economy Env And Housing,Cap Eeh Assets,Property Rationalisation,Cap Land/Build-Build Enh Wrk,Cap Land/Build-Build Enh Wrk,YA102,4/16/2014,275151,882,CAPITAL,SAFE CONTROL LTD,100989
NORTH EAST LINCOLNSHIRE COUNCIL,http://statistics.data.gov.uk/id/local-authority/00FC,Cap Economy Env And Housing,Cap Eeh Assets,Property Rationalisation,Cap Land/Build-Build Enh Wrk,Cap Land/Build-Build Enh Wrk,YA102,4/22/2014,275797,2200.96,CAPITAL,ISIS COMMERCIAL ENVIRONMENTS,125557
NORTH EAST LINCOLNSHIRE COUNCIL,http://statistics.data.gov.uk/id/local-authority/00FC,Cap Economy Env And Housing,Cap Eeh Assets,Property Rationalisation,Cap Land/Build-Build Enh Wrk,Cap Land/Build-Build Enh Wrk,YA102,4/22/2014,275798,1046.75,CAPITAL,ISIS COMMERCIAL ENVIRONMENTS,125557
NORTH EAST LINCOLNSHIRE COUNCIL,http://statistics.data.gov.uk/id/local-authority/00FC,Cap Economy Env And Housing,Cap Eeh Assets,Property Rationalisation,Cap Infrastr-Purchase,Cap Infrastr-Purchase,YC101,4/3/2014,270735,1078.25,CAPITAL,MATRIX SCM LTD,108117
NORTH EAST LINCOLNSHIRE COUNCIL,http://statistics.data.gov.uk/id/local-authority/00FC,Cap Economy Env And Housing,Cap Eeh Assets,Property Rationalisation,Cap Infrastr-Purchase,Cap Infrastr-Purchase,YC101,4/14/2014,261779,10064.52,CAPITAL,VIRGIN MEDIA LTD,101831
NORTH EAST LINCOLNSHIRE COUNCIL,http://statistics.data.gov.uk/id/local-authority/00FC,Cap Economy Env And Housing,Cap Eeh Assets,Property Rationalisation,Cap Infrastr-Purchase,Cap Infrastr-Purchase,YC101,4/14/2014,261778,30046.06,CAPITAL,VIRGIN MEDIA LTD,101831
NORTH EAST LINCOLNSHIRE COUNCIL,http://statistics.data.gov.uk/id/local-authority/00FC,Cap Economy Env And Housing,Cap Eeh Assets,Property Rationalisation,Cap Infrastr-Purchase,Cap Infrastr-Purchase,YC101,4/1/2014,270414,1300,CAPITAL,BADENOCH & CLARK,101427
NORTH EAST LINCOLNSHIRE COUNCIL,http://statistics.data.gov.uk/id/local-authority/00FC,Cap Economy Env And Housing,Cap Eeh Assets,Property Rationalisation,Cap Infrastr-Purchase,Cap Infrastr-Purchase,YC101,4/1/2014,270415,1300,CAPITAL,BADENOCH & CLARK,101427
NORTH EAST LINCOLNSHIRE COUNCIL,http://statistics.data.gov.uk/id/local-authority/00FC,Cap Economy Env And Housing,Cap Eeh Assets,Property Rationalisation,Cap Infrastr-Purchase,Cap Infrastr-Purchase,YC101,4/1/2014,270416,1170,CAPITAL,BADENOCH & CLARK,101427
NORTH EAST LINCOLNSHIRE COUNCIL,http://statistics.data.gov.uk/id/local-authority/00FC,Cap Economy Env And Housing,Cap Eeh Assets,Property Rationalisation,Cap Infrastr-Purchase,Cap Infrastr-Purchase,YC101,4/1/2014,270418,1300,CAPITAL,BADENOCH & CLARK,101427
NORTH EAST LINCOLNSHIRE COUNCIL,http://statistics.data.gov.uk/id/local-authority/00FC,Cap Economy Env And Housing,Cap Eeh Assets,Property Rationalisation,Cap Infrastr-Purchase,Cap Infrastr-Purchase,YC101,4/22/2014,275167,1300,CAPITAL,BADENOCH & CLARK,101427
NORTH EAST LINCOLNSHIRE COUNCIL,http://statistics.data.gov.uk/id/local-authority/00FC,Cap Economy Env And Housing,Cap Eeh Assets,Property Rationalisation,Cap Infrastr-Purchase,Cap Infrastr-Purchase,YC101,4/22/2014,275168,1300,CAPITAL,BADENOCH & CLARK,101427
NORTH EAST LINCOLNSHIRE COUNCIL,http://statistics.data.gov.uk/id/local-authority/00FC,Cap Economy Env And Housing,Cap Eeh Assets,Property Rationalisation,Cap Infrastr-Purchase,Cap Infrastr-Purchase,YC101,4/7/2014,271882,1465.1,CAPITAL,COMPUTACENTER UK LTD,101303
NORTH EAST LINCOLNSHIRE COUNCIL,http://statistics.data.gov.uk/id/local-authority/00FC,Cap Economy Env And Housing,Cap Eeh Assets,Property Rationalisation,Cap Infrastr-Purchase,Cap Infrastr-Purchase,YC101,4/15/2014,274297,1818.84,CAPITAL,SPECIALIST COMPUTER CENTRES PLC,110715
NORTH EAST LINCOLNSHIRE COUNCIL,http://statistics.data.gov.uk/id/local-authority/00FC,Cap Economy Env And Housing,Cap Eeh Assets,Property Rationalisation,Cap Infrastr-Purchase,Cap Infrastr-Purchase,YC101,4/22/2014,275114,502.99,CAPITAL,MATRIX SCM LTD,108117
NORTH EAST LINCOLNSHIRE COUNCIL,http://statistics.data.gov.uk/id/local-authority/00FC,Cap Economy Env And Housing,Cap Eeh Assets,Property Rationalisation,Cap Infrastr-Purchase,Cap Infrastr-Purchase,YC101,4/3/2014,270958,1007.22,CAPITAL,MATRIX SCM LTD,108117
NORTH EAST LINCOLNSHIRE COUNCIL,http://statistics.data.gov.uk/id/local-authority/00FC,Cap Economy Env And Housing,Cap Eeh Assets,Property Rationalisation,Cap Infrastr-Purchase,Cap Infrastr-Purchase,YC101,4/7/2014,271867,534.75,CAPITAL,MATRIX SCM LTD,108117
NORTH EAST LINCOLNSHIRE COUNCIL,http://statistics.data.gov.uk/id/local-authority/00FC,Cap Economy Env And Housing,Cap Eeh Assets,Property Rationalisation,Cap Infrastr-Purchase,Cap Infrastr-Purchase,YC101,4/7/2014,271866,1084.5,CAPITAL,MATRIX SCM LTD,108117
NORTH EAST LINCOLNSHIRE COUNCIL,http://statistics.data.gov.uk/id/local-authority/00FC,Cap Economy Env And Housing,Cap Eeh Assets,Property Rationalisation,Cap Infrastr-Purchase,Cap Infrastr-Purchase,YC101,4/10/2014,272432,1089.78,CAPITAL,MATRIX SCM LTD,108117
NORTH EAST LINCOLNSHIRE COUNCIL,http://statistics.data.gov.uk/id/local-authority/00FC,Cap Economy Env And Housing,Cap Eeh Assets,Property Rationalisation,Cap Infrastr-Purchase,Cap Infrastr-Purchase,YC101,4/14/2014,261779,955.68,CAPITAL,VIRGIN MEDIA LTD,101831
NORTH EAST LINCOLNSHIRE COUNCIL,http://statistics.data.gov.uk/id/local-authority/00FC,Cap Economy Env And Housing,Cap Eeh Assets,Property Rationalisation,Cap Infrastr-Purchase,Cap Infrastr-Purchase,YC101,4/3/2014,270006,396.53,CAPITAL,COMPUTACENTER UK LTD,101303
NORTH EAST LINCOLNSHIRE COUNCIL,http://statistics.data.gov.uk/id/local-authority/00FC,Cap Economy Env And Housing,Cap Eeh Assets,Property Rationalisation,Cap Infrastr-Purchase,Cap Infrastr-Purchase,YC101,4/14/2014,261779,6020.56,CAPITAL,VIRGIN MEDIA LTD,101831
NORTH EAST LINCOLNSHIRE COUNCIL,http://statistics.data.gov.uk/id/local-authority/00FC,Cap Economy Env And Housing,Cap Eeh Assets,Property Rationalisation,Cap Infrastr-Purchase,Cap Infrastr-Purchase,YC101,4/14/2014,261779,1033.33,CAPITAL,VIRGIN MEDIA LTD,101831
NORTH EAST LINCOLNSHIRE COUNCIL,http://statistics.data.gov.uk/id/local-authority/00FC,Cap Economy Env And Housing,Cap Eeh Assets,Property Rationalisation,Cap Land/Build-Build Enh Wrk,Cap Land/Build-Build Enh Wrk,YA102,4/22/2014,275634,1530,CAPITAL,ETON-LINCS LIMITED,101510
NORTH EAST LINCOLNSHIRE COUNCIL,http://statistics.data.gov.uk/id/local-authority/00FC,Public Health,Public Health,Director Public Health,Indirect Employee Expenses,Pension P/Ment Early Retire,EB108,4/16/2014,275565,114634.45,REVENUE,NHS PENSIONS AGENCY BENEFITS ACCOUNT,102095
NORTH EAST LINCOLNSHIRE COUNCIL,http://statistics.data.gov.uk/id/local-authority/00FC,Public Health,Public Health,Director Public Health,Contributions To Provisions,Contributions - Third Sector,LK102,4/25/2014,275241,24721.9,REVENUE,GREEN FUTURES,102397
NORTH EAST LINCOLNSHIRE COUNCIL,http://statistics.data.gov.uk/id/local-authority/00FC,Public Health,Public Health,Director Public Health,Contributions To Provisions,Contributions - Third Sector,LK102,4/25/2014,276332,6500,REVENUE,TERTIA TRUST HUMBERSTON,114719
NORTH EAST LINCOLNSHIRE COUNCIL,http://statistics.data.gov.uk/id/local-authority/00FC,Public Health,Public Health,Director Public Health,Contributions To Provisions,Contributions - Third Sector,LK102,4/15/2014,273041,4460.4,REVENUE,WEST MARSH DEVELOPMENT TRUST,105846
NORTH EAST LINCOLNSHIRE COUNCIL,http://statistics.data.gov.uk/id/local-authority/00FC,Public Health,Public Health,Director Public Health,Health Authorities,Third Pp - Health Auth,PD101,4/25/2014,275756,2106,REVENUE,NHS NORTH YORKSHIRE AND HUMBER CSU,121292
NORTH EAST LINCOLNSHIRE COUNCIL,http://statistics.data.gov.uk/id/local-authority/00FC,Public Health,Public Health,Director Public Health,Private Contractors,Third Party Prov - Private,PH101,4/30/2014,277511,7550,REVENUE,MICROLIFE,124853
NORTH EAST LINCOLNSHIRE COUNCIL,http://statistics.data.gov.uk/id/local-authority/00FC,Public Health,Public Health,Director Public Health,Private Contractors,Third Party Prov - Private,PH101,4/30/2014,277512,-2665,,MICROLIFE,124853
NORTH EAST LINCOLNSHIRE COUNCIL,http://statistics.data.gov.uk/id/local-authority/00FC,Public Health,Public Health,Sexual Health,Voluntary Associations,Third Pp - Third Sector,PF101,4/22/2014,272948,777.23,REVENUE,POSITIVE HEALTH,125235
NORTH EAST LINCOLNSHIRE COUNCIL,http://statistics.data.gov.uk/id/local-authority/00FC,Public Health,Public Health,Sexual Health,Voluntary Associations,Third Pp - Third Sector,PF101,4/22/2014,272947,777.23,REVENUE,POSITIVE HEALTH,125235
NORTH EAST LINCOLNSHIRE COUNCIL,http://statistics.data.gov.uk/id/local-authority/00FC,Public Health,Public Health,Sexual Health,Private Contractors,Contract Payments,PH105,4/3/2014,270417,REDACTED COMMERCIALLY SENSITIVE,REVENUE,VIRGIN CARE SERVICES LTD,120538
NORTH EAST LINCOLNSHIRE COUNCIL,http://statistics.data.gov.uk/id/local-authority/00FC,Public Health,Public Health,Sexual Health,Private Contractors,Contract Payments,PH105,4/3/2014,270412,REDACTED COMMERCIALLY SENSITIVE,REVENUE,VIRGIN CARE SERVICES LTD,120538
NORTH EAST LINCOLNSHIRE COUNCIL,http://statistics.data.gov.uk/id/local-authority/00FC,Public Health,Public Health,Sexual Health,Private Contractors,Contract Payments,PH105,4/3/2014,270413,REDACTED COMMERCIALLY SENSITIVE,REVENUE,VIRGIN CARE SERVICES LTD,120538
NORTH EAST LINCOLNSHIRE COUNCIL,http://statistics.data.gov.uk/id/local-authority/00FC,Public Health,Public Health,Sexual Health,Private Contractors,Contract Payments,PH105,4/22/2014,272950,REDACTED COMMERCIALLY SENSITIVE,REVENUE,VIRGIN CARE SERVICES LTD,120538
NORTH EAST LINCOLNSHIRE COUNCIL,http://statistics.data.gov.uk/id/local-authority/00FC,Public Health,Public Health,Sexual Health,Private Contractors,Contract Payments,PH105,4/7/2014,270473,REDACTED COMMERCIALLY SENSITIVE,REVENUE,VIRGIN CARE SERVICES LTD,120538
NORTH EAST LINCOLNSHIRE COUNCIL,http://statistics.data.gov.uk/id/local-authority/00FC,Public Health,Public Health,Sexual Health,Private Contractors,Contract Payments,PH105,4/25/2014,274739,REDACTED COMMERCIALLY SENSITIVE,REVENUE,VIRGIN CARE SERVICES LTD,120538
NORTH EAST LINCOLNSHIRE COUNCIL,http://statistics.data.gov.uk/id/local-authority/00FC,Public Health,Public Health,Sexual Health,Private Contractors,Contract Payments,PH105,4/10/2014,272037,REDACTED COMMERCIALLY SENSITIVE,REVENUE,VIRGIN CARE SERVICES LTD,120538
NORTH EAST LINCOLNSHIRE COUNCIL,http://statistics.data.gov.uk/id/local-authority/00FC,Public Health,Public Health,Sexual Health,Private Contractors,Third Party Prov - Private,PH101,4/30/2014,276298,296.73,REVENUE,COTTINGHAM PHARMACY,104020
NORTH EAST LINCOLNSHIRE COUNCIL,http://statistics.data.gov.uk/id/local-authority/00FC,Public Health,Public Health,Sexual Health,Private Contractors,Third Party Prov - Private,PH101,4/1/2014,270060,383,REVENUE,EA BROADBURN DISPENSING CHEMIST,101135
NORTH EAST LINCOLNSHIRE COUNCIL,http://statistics.data.gov.uk/id/local-authority/00FC,Public Health,Public Health,Sexual Health,Private Contractors,Third Party Prov - Private,PH101,4/3/2014,270457,415.96,REVENUE,COTTINGHAM PHARMACY,104020
NORTH EAST LINCOLNSHIRE COUNCIL,http://statistics.data.gov.uk/id/local-authority/00FC,Public Health,Public Health,Sexual Health,Private Contractors,Third Party Prov - Private,PH101,4/10/2014,272035,571.13,REVENUE,PERIVILLE CHEMIST,103960
NORTH EAST LINCOLNSHIRE COUNCIL,http://statistics.data.gov.uk/id/local-authority/00FC,Public Health,Public Health,Sexual Health,Private Contractors,Third Party Prov - Private,PH101,4/25/2014,275820,266.19,REVENUE,EA BROADBURN DISPENSING CHEMIST,101135
NORTH EAST LINCOLNSHIRE COUNCIL,http://statistics.data.gov.uk/id/local-authority/00FC,Public Health,Public Health,Sexual Health,Other Agencies,Contract Plus,PJ135,4/10/2014,272047,276,REVENUE,PASANTE HEALTHCARE LTD,103011
NORTH EAST LINCOLNSHIRE COUNCIL,http://statistics.data.gov.uk/id/local-authority/00FC,Public Health,Public Health,Sexual Health,Other Agencies,Health Charges,PJ131,4/3/2014,270077,651,REVENUE,LINCS COMMUNITY HEALTH SERVICES NHST,124099
NORTH EAST LINCOLNSHIRE COUNCIL,http://statistics.data.gov.uk/id/local-authority/00FC,Public Health,Public Health,Sexual Health,Other Agencies,Health Charges,PJ131,4/3/2014,270419,REDACTED COMMERCIALLY SENSITIVE,REVENUE,VIRGIN CARE SERVICES LTD,120538
NORTH EAST LINCOLNSHIRE COUNCIL,http://statistics.data.gov.uk/id/local-authority/00FC,Public Health,Public Health,Sexual Health,Other Agencies,Health Charges,PJ131,4/3/2014,270421,REDACTED COMMERCIALLY SENSITIVE,REVENUE,VIRGIN CARE SERVICES LTD,120538
NORTH EAST LINCOLNSHIRE COUNCIL,http://statistics.data.gov.uk/id/local-authority/00FC,Public Health,Public Health,Sexual Health,Other Agencies,Health Charges,PJ131,4/3/2014,270451,250,REVENUE,SHEFFIELD TEACHING HOSPITALS NHS TRUST,101211
NORTH EAST LINCOLNSHIRE COUNCIL,http://statistics.data.gov.uk/id/local-authority/00FC,Public Health,Public Health,Sexual Health,Other Agencies,Health Charges,PJ131,4/7/2014,271112,321,REVENUE,CITY HEALTH CARE PARTNERSHIP CIC,110889
NORTH EAST LINCOLNSHIRE COUNCIL,http://statistics.data.gov.uk/id/local-authority/00FC,Public Health,Public Health,Sexual Health,Other Agencies,Health Charges,PJ131,4/10/2014,271109,515,REVENUE,CITY HEALTH CARE PARTNERSHIP CIC,110889
NORTH EAST LINCOLNSHIRE COUNCIL,http://statistics.data.gov.uk/id/local-authority/00FC,Public Health,Public Health,Sexual Health,Other Agencies,Health Charges,PJ131,4/16/2014,274738,272,REVENUE,LINCS COMMUNITY HEALTH SERVICES NHST,124099
NORTH EAST LINCOLNSHIRE COUNCIL,http://statistics.data.gov.uk/id/local-authority/00FC,Public Health,Public Health,Sexual Health,Other Agencies,Health Charges,PJ131,4/22/2014,273824,REDACTED COMMERCIALLY SENSITIVE,REVENUE,VIRGIN CARE SERVICES LTD,120538
NORTH EAST LINCOLNSHIRE COUNCIL,http://statistics.data.gov.uk/id/local-authority/00FC,Public Health,Public Health,Sexual Health,Other Agencies,Other,PJ121,4/3/2014,270078,560,REVENUE,CHURCH VIEW HEALTH CARE LIMITED,108912
NORTH EAST LINCOLNSHIRE COUNCIL,http://statistics.data.gov.uk/id/local-authority/00FC,Public Health,Public Health,Sexual Health,Other Agencies,Other,PJ121,4/3/2014,270082,7200,REVENUE,SCARTHO MEDICAL CENTRE,107570
NORTH EAST LINCOLNSHIRE COUNCIL,http://statistics.data.gov.uk/id/local-authority/00FC,Public Health,Public Health,Sexual Health,Other Agencies,Other,PJ121,4/3/2014,270084,1200,REVENUE,DR R K MATHEWS,121603
NORTH EAST LINCOLNSHIRE COUNCIL,http://statistics.data.gov.uk/id/local-authority/00FC,Public Health,Public Health,Sexual Health,Other Agencies,Other,PJ121,4/3/2014,271293,2080,REVENUE,RUTREB LTD,108587
NORTH EAST LINCOLNSHIRE COUNCIL,http://statistics.data.gov.uk/id/local-authority/00FC,Public Health,Public Health,Sexual Health,Other Agencies,Other,PJ121,4/10/2014,271111,8080,REVENUE,BEACON MEDICAL,109525
NORTH EAST LINCOLNSHIRE COUNCIL,http://statistics.data.gov.uk/id/local-authority/00FC,Public Health,Public Health,Sexual Health,Other Agencies,Other,PJ121,4/22/2014,272949,5600,REVENUE,RAJ MEDICAL CENTRE,121130
NORTH EAST LINCOLNSHIRE COUNCIL,http://statistics.data.gov.uk/id/local-authority/00FC,Public Health,Public Health,Sexual Health,Other Agencies,Other,PJ121,4/14/2014,273765,480,REVENUE,CLEE MEDICAL CENTRE,105319
NORTH EAST LINCOLNSHIRE COUNCIL,http://statistics.data.gov.uk/id/local-authority/00FC,Public Health,Public Health,Sexual Health,Other Agencies,Other,PJ121,4/22/2014,273825,720,REVENUE,WOODFORD MEDICAL CENTRE,107882
NORTH EAST LINCOLNSHIRE COUNCIL,http://statistics.data.gov.uk/id/local-authority/00FC,Public Health,Public Health,Sexual Health,Other Agencies,Other,PJ121,4/22/2014,273756,960,REVENUE,RAJ MEDICAL CENTRE,121130
NORTH EAST LINCOLNSHIRE COUNCIL,http://statistics.data.gov.uk/id/local-authority/00FC,Public Health,Public Health,Sexual Health,Other Agencies,Other,PJ121,4/22/2014,273823,7600,REVENUE,CLEE MEDICAL CENTRE,105319
NORTH EAST LINCOLNSHIRE COUNCIL,http://statistics.data.gov.uk/id/local-authority/00FC,Public Health,Public Health,Sexual Health,Other Agencies,Other,PJ121,4/22/2014,273836,7120,REVENUE,BIRKWOOD MEDICAL CENTRE,120420
NORTH EAST LINCOLNSHIRE COUNCIL,http://statistics.data.gov.uk/id/local-authority/00FC,Public Health,Public Health,Sexual Health,Other Agencies,Other,PJ121,4/22/2014,273850,12080,REVENUE,THE ROXTON PRACTICE,104395
NORTH EAST LINCOLNSHIRE COUNCIL,http://statistics.data.gov.uk/id/local-authority/00FC,Public Health,Public Health,Sexual Health,Other Agencies,Other,PJ121,4/25/2014,275863,560,REVENUE,BEACON MEDICAL,109525
NORTH EAST LINCOLNSHIRE COUNCIL,http://statistics.data.gov.uk/id/local-authority/00FC,Public Health,Public Health,Sexual Health,Other Agencies,Other,PJ121,4/25/2014,273857,320,REVENUE,PELHAM MEDICAL GROUP,104350
NORTH EAST LINCOLNSHIRE COUNCIL,http://statistics.data.gov.uk/id/local-authority/00FC,Public Health,Public Health,Sexual Health,Other Agencies,Other,PJ121,4/3/2014,270065,3760,REVENUE,LITTLEFIELDS HEALTH CENTRE,111683
NORTH EAST LINCOLNSHIRE COUNCIL,http://statistics.data.gov.uk/id/local-authority/00FC,Public Health,Public Health,Sexual Health,Other Agencies,Other,PJ121,4/15/2014,273183,480,REVENUE,LITTLEFIELDS HEALTH CENTRE,111683
NORTH EAST LINCOLNSHIRE COUNCIL,http://statistics.data.gov.uk/id/local-authority/00FC,Public Health,Public Health,Sexual Health,Other Agencies,Other,PJ121,4/16/2014,274736,880,REVENUE,DR K S KOONAR,110808
NORTH EAST LINCOLNSHIRE COUNCIL,http://statistics.data.gov.uk/id/local-authority/00FC,Public Health,Public Health,Tobacco,Private Contractors,Third Party Prov - Private,PH101,4/1/2014,270061,4790,REVENUE,MAGPIE CREATIVE COMMUNICATIONS LTD,111219
NORTH EAST LINCOLNSHIRE COUNCIL,http://statistics.data.gov.uk/id/local-authority/00FC,Public Health,Public Health,Tobacco,Private Contractors,Third Party Prov - Private,PH101,4/3/2014,271117,1000,REVENUE,INFORMATION BY DESIGN,125068
NORTH EAST LINCOLNSHIRE COUNCIL,http://statistics.data.gov.uk/id/local-authority/00FC,Public Health,Public Health,Tobacco,Private Contractors,Third Party Prov - Private,PH101,4/14/2014,273758,1691.5,REVENUE,N LINCS & GOOLE HOSPITALS NHS,111074
NORTH EAST LINCOLNSHIRE COUNCIL,http://statistics.data.gov.uk/id/local-authority/00FC,Public Health,Public Health,Tobacco,Private Contractors,Third Party Prov - Private,PH101,4/15/2014,274351,-1833,,N LINCS & GOOLE HOSPITALS NHS,111074
NORTH EAST LINCOLNSHIRE COUNCIL,http://statistics.data.gov.uk/id/local-authority/00FC,Public Health,Public Health,Tobacco,Private Contractors,Third Party Prov - Private,PH101,4/15/2014,274619,1833,REVENUE,N LINCS & GOOLE HOSPITALS NHS,111074
NORTH EAST LINCOLNSHIRE COUNCIL,http://statistics.data.gov.uk/id/local-authority/00FC,Other Corporate Budgets,Borrowing Costs,Misc Interest Bank Charges Etc,Miscellaneous Expenses,Legal Fees - General,LL103,4/3/2014,268254,1574.42,REVENUE,LOCAL GOVERNMENT ASSOCIATION,101113
NORTH EAST LINCOLNSHIRE COUNCIL,http://statistics.data.gov.uk/id/local-authority/00FC,Other Corporate Budgets,Borrowing Costs,Misc Interest Bank Charges Etc,Other Agencies,Fees Comm Clf Logotech Charges,PJ142,4/7/2014,270382,650,REVENUE,PSLIVE LTD,125043
NORTH EAST LINCOLNSHIRE COUNCIL,http://statistics.data.gov.uk/id/local-authority/00FC,Other Corporate Budgets,Borrowing Costs,Misc Interest Bank Charges Etc,Other Agencies,Fees Comm Clf Logotech Charges,PJ142,4/10/2014,273071,450,REVENUE,LOGOTECH SYSTEMS,102773
NORTH EAST LINCOLNSHIRE COUNCIL,http://statistics.data.gov.uk/id/local-authority/00FC,Other Corporate Budgets,Other Corporate Budgets,Appropriations,Miscellaneous Expenses,Other Interest Charged,LL124,4/7/2014,271954,939.35,REVENUE,HM REVENUE & CUSTOMS,124573
NORTH EAST LINCOLNSHIRE COUNCIL,http://statistics.data.gov.uk/id/local-authority/00FC,Other Corporate Budgets,Other Corporate Budgets,Appropriations,Indirect Employee Expenses,Ex B/Ferry Bc & Hcc Unfund Pen,EB107,4/3/2014,270447,7222.43,REVENUE,WEST YORKSHIRE PENSION FUND,101014
NORTH EAST LINCOLNSHIRE COUNCIL,http://statistics.data.gov.uk/id/local-authority/00FC,Other Corporate Budgets,Other Corporate Budgets,Appropriations,Indirect Employee Expenses,Pension P/Ment Pension Inc Act,EB105,4/10/2014,273054,5299.16,REVENUE,LINCOLNSHIRE COUNTY COUNCIL,100389
NORTH EAST LINCOLNSHIRE COUNCIL,http://statistics.data.gov.uk/id/local-authority/00FC,Other Corporate Budgets,Other Corporate Budgets,Appropriations,Indirect Employee Expenses,Pension P/Ment Pension Inc Act,EB105,4/15/2014,273055,966.64,REVENUE,LINCOLNSHIRE COUNTY COUNCIL,101224
NORTH EAST LINCOLNSHIRE COUNCIL,http://statistics.data.gov.uk/id/local-authority/00FC,Other Corporate Budgets,Other Corporate Budgets,Appropriations,Miscellaneous Expenses,Other Expenses General,LL119,4/14/2014,272684,2000,REVENUE,HYMANS ROBERTSON LLP,107021
NORTH EAST LINCOLNSHIRE COUNCIL,http://statistics.data.gov.uk/id/local-authority/00FC,People,Early Intervention,Integrated Youth Services,Equip / Furniture / Materials,Equipment - Purchase,LA101,4/3/2014,271044,358,REVENUE,EDGE INTERACTIVE LTD,105581
NORTH EAST LINCOLNSHIRE COUNCIL,http://statistics.data.gov.uk/id/local-authority/00FC,People,Early Intervention,Integrated Youth Services,Voluntary Associations,Third Pp - Third Sector,PF101,4/10/2014,272009,625,REVENUE,GRIMSBY TOWN FOOTBALL IN THE COMMUNITY,100978
NORTH EAST LINCOLNSHIRE COUNCIL,http://statistics.data.gov.uk/id/local-authority/00FC,People,Early Intervention,Integrated Youth Services,Voluntary Associations,Third Pp - Third Sector,PF101,4/1/2014,270194,3675,REVENUE,SCUNTHORPE UNITED TRUST,125060
NORTH EAST LINCOLNSHIRE COUNCIL,http://statistics.data.gov.uk/id/local-authority/00FC,People,Early Intervention,Integrated Youth Services,Voluntary Associations,Third Pp - Third Sector,PF101,4/3/2014,268458,2376.58,REVENUE,NORTH LINCOLNSHIRE COUNCIL,101186
NORTH EAST LINCOLNSHIRE COUNCIL,http://statistics.data.gov.uk/id/local-authority/00FC,People,Early Intervention,Integrated Youth Services,Voluntary Associations,Third Pp - Third Sector,PF101,4/3/2014,270738,-241.3,,NORTH LINCOLNSHIRE COUNCIL,101186
NORTH EAST LINCOLNSHIRE COUNCIL,http://statistics.data.gov.uk/id/local-authority/00FC,People,Early Intervention,Integrated Youth Services,Communications And Computing,Computer H/Ware - Purchases,LF105,4/7/2014,271312,329,REVENUE,TOTAL MERCHANDISE LTD,122798
NORTH EAST LINCOLNSHIRE COUNCIL,http://statistics.data.gov.uk/id/local-authority/00FC,People,Early Intervention,Integrated Youth Services,Rents,Rent,GC101,4/16/2014,274708,3000,REVENUE,REDACTED PERSONAL INFORMATION,REDACTED PERSONAL INFORMATION
NORTH EAST LINCOLNSHIRE COUNCIL,http://statistics.data.gov.uk/id/local-authority/00FC,People,Early Intervention,Integrated Youth Services,Equip / Furniture / Materials,Equipment - Purchase,LA101,4/22/2014,275617,2361,REVENUE,URBANROCK LTD,125100
NORTH EAST LINCOLNSHIRE COUNCIL,http://statistics.data.gov.uk/id/local-authority/00FC,People,Early Intervention,Integrated Youth Services,Grants And Subscriptions,Subscriptions,LJ101,4/16/2014,274706,300,REVENUE,OEAP TREASURER ESTCOTE,112017
NORTH EAST LINCOLNSHIRE COUNCIL,http://statistics.data.gov.uk/id/local-authority/00FC,People,Early Intervention,Integrated Youth Services,Direct Employee Expenses,Agency Staff,EA105,4/1/2014,270503,303.63,REVENUE,VOLUNTARY ACTION NORTH EAST LINCOLNSHIRE,103631
NORTH EAST LINCOLNSHIRE COUNCIL,http://statistics.data.gov.uk/id/local-authority/00FC,People,Early Intervention,Integrated Youth Services,Direct Employee Expenses,Agency Staff,EA105,4/1/2014,270506,1284.64,REVENUE,VOLUNTARY ACTION NORTH EAST LINCOLNSHIRE,103631
NORTH EAST LINCOLNSHIRE COUNCIL,http://statistics.data.gov.uk/id/local-authority/00FC,People,Early Intervention,Integrated Youth Services,Direct Employee Expenses,Agency Staff,EA105,4/3/2014,270981,1284.64,REVENUE,VOLUNTARY ACTION NORTH EAST LINCOLNSHIRE,103631
NORTH EAST LINCOLNSHIRE COUNCIL,http://statistics.data.gov.uk/id/local-authority/00FC,People,Early Intervention,Integrated Youth Services,Miscellaneous Expenses,Activities - Service Users,LL114,4/15/2014,274843,1960,REVENUE,PARK RETAIL LTD - LOVE2REWARD,111869
NORTH EAST LINCOLNSHIRE COUNCIL,http://statistics.data.gov.uk/id/local-authority/00FC,People,Early Intervention,Integrated Youth Services,Miscellaneous Expenses,Other Supplies & Services,LL110,4/15/2014,274322,1160.83,REVENUE,ALCREST (NORTHERN) LTD,103868
NORTH EAST LINCOLNSHIRE COUNCIL,http://statistics.data.gov.uk/id/local-authority/00FC,People,Early Intervention,Integrated Youth Services,Direct Transport Costs,Vehicles - Repairs And Maint,JA105,4/3/2014,270880,830,REVENUE,PLATINUM ENGINEERING LTD,125064
NORTH EAST LINCOLNSHIRE COUNCIL,http://statistics.data.gov.uk/id/local-authority/00FC,People,Early Intervention,Integrated Youth Services,Print Stationery / Gen Off Exp,Printing And Stationery,LD103,4/1/2014,268476,1190,REVENUE,EDGE INTERACTIVE LTD,105581
NORTH EAST LINCOLNSHIRE COUNCIL,http://statistics.data.gov.uk/id/local-authority/00FC,People,Early Intervention,Integrated Youth Services,Miscellaneous Expenses,Activities - Service Users,LL114,4/3/2014,271108,305,REVENUE,MILLMAN COACHES,100700
NORTH EAST LINCOLNSHIRE COUNCIL,http://statistics.data.gov.uk/id/local-authority/00FC,People,Early Intervention,Integrated Youth Services,Miscellaneous Expenses,Activities - Service Users,LL114,4/3/2014,271110,560,REVENUE,MILLMAN COACHES,100700
NORTH EAST LINCOLNSHIRE COUNCIL,http://statistics.data.gov.uk/id/local-authority/00FC,People,Early Intervention,Integrated Youth Services,Miscellaneous Expenses,Activities - Service Users,LL114,4/3/2014,271106,720,REVENUE,MILLMAN COACHES,100700
NORTH EAST LINCOLNSHIRE COUNCIL,http://statistics.data.gov.uk/id/local-authority/00FC,People,Early Intervention,Integrated Youth Services,Miscellaneous Expenses,Activities - Service Users,LL114,4/3/2014,270869,315,REVENUE,MILLMAN COACHES,100700
NORTH EAST LINCOLNSHIRE COUNCIL,http://statistics.data.gov.uk/id/local-authority/00FC,People,Early Intervention,Integrated Youth Services,Miscellaneous Expenses,Activities - Service Users,LL114,4/3/2014,271103,320,REVENUE,MILLMAN COACHES,100700
NORTH EAST LINCOLNSHIRE COUNCIL,http://statistics.data.gov.uk/id/local-authority/00FC,People,Early Intervention,Integrated Youth Services,Miscellaneous Expenses,Licences,LL116,4/22/2014,275590,1000,REVENUE,THE AWARD SCHEME LTD,109180
NORTH EAST LINCOLNSHIRE COUNCIL,http://statistics.data.gov.uk/id/local-authority/00FC,People,Early Intervention,Childrens Health Provision,Equip / Furniture / Materials,Equipment - Purchase,LA101,4/22/2014,273818,257.8,REVENUE,FINDEL EDUCATION LTD,101237
NORTH EAST LINCOLNSHIRE COUNCIL,http://statistics.data.gov.uk/id/local-authority/00FC,People,Early Intervention,Childrens Health Provision,Equip / Furniture / Materials,Equipment - Purchase,LA101,4/3/2014,270600,272.95,REVENUE,FINDEL EDUCATION LTD,101237
NORTH EAST LINCOLNSHIRE COUNCIL,http://statistics.data.gov.uk/id/local-authority/00FC,People,Early Intervention,Childrens Health Provision,Equip / Furniture / Materials,Equipment - Purchase,LA101,4/3/2014,271030,399.48,REVENUE,ERIC,108869
NORTH EAST LINCOLNSHIRE COUNCIL,http://statistics.data.gov.uk/id/local-authority/00FC,People,Early Intervention,Childrens Health Provision,Equip / Furniture / Materials,Equipment - Purchase,LA101,4/22/2014,275208,298,REVENUE,WILLIAMS MEDICAL SUPPLIES,106409
NORTH EAST LINCOLNSHIRE COUNCIL,http://statistics.data.gov.uk/id/local-authority/00FC,People,Early Intervention,Childrens Health Provision,Equip / Furniture / Materials,Equipment - Maintenance,LA104,4/22/2014,275068,-51.6,,WILLIAMS MEDICAL SUPPLIES,106409
NORTH EAST LINCOLNSHIRE COUNCIL,http://statistics.data.gov.uk/id/local-authority/00FC,People,Early Intervention,Childrens Health Provision,Private Contractors,Third Party Prov - Private,PH101,4/3/2014,270209,839.2,REVENUE,FINDEL EDUCATION LTD,101237
NORTH EAST LINCOLNSHIRE COUNCIL,http://statistics.data.gov.uk/id/local-authority/00FC,People,Early Intervention,Childrens Health Provision,Equip / Furniture / Materials,Equipment - Purchase,LA101,4/14/2014,273842,839.88,REVENUE,EXCELL BUSINESS SYSTEMS LTD,125065
NORTH EAST LINCOLNSHIRE COUNCIL,http://statistics.data.gov.uk/id/local-authority/00FC,People,Early Intervention,Childrens Centre Development,Rates,Rates,GD101,4/1/2014,270402,1201.2,REVENUE,NORTH EAST LINCOLNSHIRE COUNCIL,100894
NORTH EAST LINCOLNSHIRE COUNCIL,http://statistics.data.gov.uk/id/local-authority/00FC,People,Early Intervention,Childrens Centre Development,Rep Alterations Maint Building,Buildings - Repairs And Maint,GA102,4/3/2014,270502,1480,REVENUE,PORTLOCK PAINTING,101144
NORTH EAST LINCOLNSHIRE COUNCIL,http://statistics.data.gov.uk/id/local-authority/00FC,People,Early Intervention,Childrens Centre Development,Rep Alterations Maint Building,Buildings - Repairs And Maint,GA102,4/3/2014,270160,897.5,REVENUE,UNIBUILD BUILDING CONT LTD,101469
NORTH EAST LINCOLNSHIRE COUNCIL,http://statistics.data.gov.uk/id/local-authority/00FC,People,Early Intervention,Childrens Centre Development,Energy Costs,Electricity,GB102,4/3/2014,271292,2391.83,REVENUE,NPOWER LIMITED,101414
NORTH EAST LINCOLNSHIRE COUNCIL,http://statistics.data.gov.uk/id/local-authority/00FC,People,Early Intervention,Childrens Centre Development,Energy Costs,Electricity,GB102,4/25/2014,276221,816.31,REVENUE,NPOWER LIMITED,101414
NORTH EAST LINCOLNSHIRE COUNCIL,http://statistics.data.gov.uk/id/local-authority/00FC,People,Early Intervention,Childrens Centre Development,Energy Costs,Gas,GB101,4/22/2014,275489,1286.18,REVENUE,BRITISH GAS TRADING LTD,101507
NORTH EAST LINCOLNSHIRE COUNCIL,http://statistics.data.gov.uk/id/local-authority/00FC,People,Early Intervention,Childrens Centre Development,Energy Costs,Gas,GB101,4/1/2014,270276,1306.63,REVENUE,BRITISH GAS TRADING LTD,101507
NORTH EAST LINCOLNSHIRE COUNCIL,http://statistics.data.gov.uk/id/local-authority/00FC,People,Early Intervention,Childrens Centre Development,Rents,Service Charge,GC102,4/30/2014,276218,1399.77,REVENUE,SECOM PLC,100771
NORTH EAST LINCOLNSHIRE COUNCIL,http://statistics.data.gov.uk/id/local-authority/00FC,People,Early Intervention,Childrens Centre Development,Rents,Service Charge,GC102,4/3/2014,270136,260,REVENUE,HOUGH'S OF LINCOLNSHIRE,109758
NORTH EAST LINCOLNSHIRE COUNCIL,http://statistics.data.gov.uk/id/local-authority/00FC,People,Early Intervention,Childrens Centre Development,Rents,Service Charge,GC102,4/3/2014,270274,-260,,HOUGH'S OF LINCOLNSHIRE,109758
NORTH EAST LINCOLNSHIRE COUNCIL,http://statistics.data.gov.uk/id/local-authority/00FC,People,Early Intervention,Childrens Centre Development,Water Services,Water,GE101,4/28/2014,276641,251.74,REVENUE,ANGLIAN WATER,100508
NORTH EAST LINCOLNSHIRE COUNCIL,http://statistics.data.gov.uk/id/local-authority/00FC,People,Early Intervention,Childrens Centre Development,Cleaning And Domestic Supplies,Cleaning - Services,GH102,4/30/2014,276216,529,REVENUE,FUTURE CLEANING SERVICES LTD,102557
NORTH EAST LINCOLNSHIRE COUNCIL,http://statistics.data.gov.uk/id/local-authority/00FC,People,Early Intervention,Childrens Centre Development,Cleaning And Domestic Supplies,Cleaning - Services,GH102,4/3/2014,270113,529,REVENUE,FUTURE CLEANING SERVICES LTD,102557
NORTH EAST LINCOLNSHIRE COUNCIL,http://statistics.data.gov.uk/id/local-authority/00FC,People,Early Intervention,Childrens Centre Development,Cleaning And Domestic Supplies,Refuse Collection,GH104,4/14/2014,273388,356.98,REVENUE,BELL WASTE CONTROL,101433
NORTH EAST LINCOLNSHIRE COUNCIL,http://statistics.data.gov.uk/id/local-authority/00FC,People,Early Intervention,Childrens Centre Development,Grounds Maintenance Costs,Grounds Maintenance,GJ101,4/3/2014,270367,303.04,REVENUE,COUNTRYWIDE GROUNDS MAINTENANCE LTD,101063
NORTH EAST LINCOLNSHIRE COUNCIL,http://statistics.data.gov.uk/id/local-authority/00FC,People,Early Intervention,Childrens Centre Development,Contributions To Provisions,Contributions - Other,LK103,4/8/2014,265810,-26.98,,MWUK LTD TRADING AS ALEXANDRA,109705
NORTH EAST LINCOLNSHIRE COUNCIL,http://statistics.data.gov.uk/id/local-authority/00FC,People,Early Intervention,Childrens Centre Development,Contributions To Provisions,Contributions - Other,LK103,4/8/2014,267765,-13.49,,MWUK LTD TRADING AS ALEXANDRA,109705
NORTH EAST LINCOLNSHIRE COUNCIL,http://statistics.data.gov.uk/id/local-authority/00FC,People,Early Intervention,Childrens Centre Development,Other Agencies,Child Care Payments,PJ104,4/3/2014,270491,590.81,REVENUE,PRE SCHOOL LEARNING ALLIANCE,101437
NORTH EAST LINCOLNSHIRE COUNCIL,http://statistics.data.gov.uk/id/local-authority/00FC,People,Early Intervention,Childrens Centre Development,Other Agencies,Child Care Payments,PJ104,4/3/2014,270494,957.45,REVENUE,PRE SCHOOL LEARNING ALLIANCE,101437
NORTH EAST LINCOLNSHIRE COUNCIL,http://statistics.data.gov.uk/id/local-authority/00FC,People,Early Intervention,Childrens Centre Development,Other Agencies,Educational Visits,PJ152,4/3/2014,270864,6180,REVENUE,NEWBY LEISURE LTD,101227
NORTH EAST LINCOLNSHIRE COUNCIL,http://statistics.data.gov.uk/id/local-authority/00FC,People,Early Intervention,Childrens Centre Development,Rates,Rates,GD101,4/14/2014,273179,6240.75,REVENUE,NORTH EAST LINCOLNSHIRE COUNCIL,100894
NORTH EAST LINCOLNSHIRE COUNCIL,http://statistics.data.gov.uk/id/local-authority/00FC,People,Early Intervention,Childrens Centre Development,Cleaning And Domestic Supplies,Cleaning - Services,GH102,4/22/2014,273768,541,REVENUE,EASY CLEAN MARSHCHAPEL LTD,104531
NORTH EAST LINCOLNSHIRE COUNCIL,http://statistics.data.gov.uk/id/local-authority/00FC,People,Early Intervention,Childrens Centre Development,Equip / Furniture / Materials,Non-Teaching Resources,LA118,4/29/2014,276209,302,REVENUE,STAPLES BUSINESS ACCOUNT,101412
NORTH EAST LINCOLNSHIRE COUNCIL,http://statistics.data.gov.uk/id/local-authority/00FC,People,Early Intervention,Childrens Centre Development,Equip / Furniture / Materials,Non-Teaching Resources,LA118,4/16/2014,274834,-199.95,,TECHNOLOGY TEACHING SYSTEMS LTD,100996
NORTH EAST LINCOLNSHIRE COUNCIL,http://statistics.data.gov.uk/id/local-authority/00FC,People,Early Intervention,Childrens Centre Development,Other Agencies,Further Ed Emp & Training,PJ130,4/15/2014,274002,500,REVENUE,WOMENS AID,100326
NORTH EAST LINCOLNSHIRE COUNCIL,http://statistics.data.gov.uk/id/local-authority/00FC,People,Early Intervention,Childrens Centre Development,Indirect Employee Expenses,Pension P/Ment Early Retire,EB108,4/14/2014,274003,11348.14,REVENUE,EAST RIDING OF YORKSHIRE,100377
NORTH EAST LINCOLNSHIRE COUNCIL,http://statistics.data.gov.uk/id/local-authority/00FC,People,Early Intervention,Childrens Centre Development,Private Contractors,Third Party Prov - Private,PH101,4/10/2014,273111,1667,REVENUE,N LINCS & GOOLE HOSPITALS NHS,111074
NORTH EAST LINCOLNSHIRE COUNCIL,http://statistics.data.gov.uk/id/local-authority/00FC,People,Early Intervention,Childrens Centre Development,Private Contractors,Third Party Prov - Private,PH101,4/14/2014,273754,1667,REVENUE,N LINCS & GOOLE HOSPITALS NHS,111074
NORTH EAST LINCOLNSHIRE COUNCIL,http://statistics.data.gov.uk/id/local-authority/00FC,People,Early Intervention,Childrens Centre Development,Private Contractors,Third Party Prov - Private,PH101,4/3/2014,271127,300,REVENUE,PRE SCHOOL LEARNING ALLIANCE,101437
NORTH EAST LINCOLNSHIRE COUNCIL,http://statistics.data.gov.uk/id/local-authority/00FC,People,Early Intervention,Childrens Centre Development,Private Contractors,Third Party Prov - Private,PH101,4/28/2014,276957,9111,REVENUE,N LINCS & GOOLE HOSPITALS NHS,111074
NORTH EAST LINCOLNSHIRE COUNCIL,http://statistics.data.gov.uk/id/local-authority/00FC,People,Early Intervention,Childrens Centre Development,Energy Costs,Gas,GB101,4/10/2014,273107,376.52,REVENUE,MACAULAY PRIMARY ACADEMY,112680
NORTH EAST LINCOLNSHIRE COUNCIL,http://statistics.data.gov.uk/id/local-authority/00FC,People,Early Intervention,Childrens Centre Development,Rates,Rates,GD101,4/14/2014,273059,4003.5,REVENUE,NORTH EAST LINCOLNSHIRE COUNCIL,100894
NORTH EAST LINCOLNSHIRE COUNCIL,http://statistics.data.gov.uk/id/local-authority/00FC,People,Early Intervention,Childrens Centre Development,Cleaning And Domestic Supplies,Refuse Collection,GH104,4/15/2014,273292,329.29,REVENUE,BIFFA WASTE SERVICES LTD,100515
NORTH EAST LINCOLNSHIRE COUNCIL,http://statistics.data.gov.uk/id/local-authority/00FC,People,Early Intervention,Childrens Centre Development,Other Agencies,Child Care Payments,PJ104,4/22/2014,270221,1995,REVENUE,NO BUTTS BIN COMPANY LTD,107315
NORTH EAST LINCOLNSHIRE COUNCIL,http://statistics.data.gov.uk/id/local-authority/00FC,People,Early Intervention,Childrens Centre Development,Other Agencies,Child Care Payments,PJ104,4/15/2014,272746,435.25,REVENUE,LYRECO UK LIMITED,101120
NORTH EAST LINCOLNSHIRE COUNCIL,http://statistics.data.gov.uk/id/local-authority/00FC,People,Early Intervention,Childrens Centre Development,Other Agencies,Child Care Payments,PJ104,4/10/2014,273104,861.43,REVENUE,PRE SCHOOL LEARNING ALLIANCE,101437
NORTH EAST LINCOLNSHIRE COUNCIL,http://statistics.data.gov.uk/id/local-authority/00FC,People,Early Intervention,Childrens Centre Development,Other Agencies,Child Care Payments,PJ104,4/22/2014,270221,840,REVENUE,NO BUTTS BIN COMPANY LTD,107315
NORTH EAST LINCOLNSHIRE COUNCIL,http://statistics.data.gov.uk/id/local-authority/00FC,People,Early Intervention,Childrens Centre Development,Other Agencies,Child Care Payments,PJ104,4/10/2014,273121,1259.4,REVENUE,PRE SCHOOL LEARNING ALLIANCE,101437
NORTH EAST LINCOLNSHIRE COUNCIL,http://statistics.data.gov.uk/id/local-authority/00FC,People,Early Intervention,Childrens Centre Development,Rep Alterations Maint Building,Buildings - Repairs And Maint,GA102,4/3/2014,270538,3331.6,REVENUE,OXLEY SHUTTERS LIMITED,100931
NORTH EAST LINCOLNSHIRE COUNCIL,http://statistics.data.gov.uk/id/local-authority/00FC,People,Early Intervention,Childrens Centre Development,Rep Alterations Maint Building,Buildings - Repairs And Maint,GA102,4/16/2014,275132,355,REVENUE,BRIAN TYNAN LTD,104834
NORTH EAST LINCOLNSHIRE COUNCIL,http://statistics.data.gov.uk/id/local-authority/00FC,People,Early Intervention,Childrens Centre Development,Energy Costs,Electricity,GB102,4/3/2014,271204,280.69,REVENUE,EDWARD HENEAGE PRIMARY (ACADEMY),111742
NORTH EAST LINCOLNSHIRE COUNCIL,http://statistics.data.gov.uk/id/local-authority/00FC,People,Early Intervention,Childrens Centre Development,Energy Costs,Gas,GB101,4/3/2014,270444,362.26,REVENUE,BRITISH GAS TRADING LTD,101507
NORTH EAST LINCOLNSHIRE COUNCIL,http://statistics.data.gov.uk/id/local-authority/00FC,People,Early Intervention,Childrens Centre Development,Rates,Rates,GD101,4/28/2014,275604,5298.75,REVENUE,NORTH EAST LINCOLNSHIRE COUNCIL,100894
NORTH EAST LINCOLNSHIRE COUNCIL,http://statistics.data.gov.uk/id/local-authority/00FC,People,Early Intervention,Childrens Centre Development,Cleaning And Domestic Supplies,Cleaning - Services,GH102,4/3/2014,270126,288,REVENUE,FOR UNDER FIVES,101931
NORTH EAST LINCOLNSHIRE COUNCIL,http://statistics.data.gov.uk/id/local-authority/00FC,People,Early Intervention,Childrens Centre Development,Cleaning And Domestic Supplies,Cleaning - Services,GH102,4/7/2014,270391,652,REVENUE,FOR UNDER FIVES,101931
NORTH EAST LINCOLNSHIRE COUNCIL,http://statistics.data.gov.uk/id/local-authority/00FC,People,Early Intervention,Childrens Centre Development,Cleaning And Domestic Supplies,Refuse Collection,GH104,4/28/2014,275603,394.94,REVENUE,BELL WASTE CONTROL,101433
NORTH EAST LINCOLNSHIRE COUNCIL,http://statistics.data.gov.uk/id/local-authority/00FC,People,Early Intervention,Childrens Centre Development,Equip / Furniture / Materials,Non-Teaching Resources,LA118,4/8/2014,272842,262.16,REVENUE,PENNELLS,100956
NORTH EAST LINCOLNSHIRE COUNCIL,http://statistics.data.gov.uk/id/local-authority/00FC,People,Early Intervention,Childrens Centre Development,Other Agencies,Child Care Payments,PJ104,4/3/2014,270392,272.4,REVENUE,FOR UNDER FIVES,101931
NORTH EAST LINCOLNSHIRE COUNCIL,http://statistics.data.gov.uk/id/local-authority/00FC,People,Early Intervention,Childrens Centre Development,Other Agencies,Child Care Payments,PJ104,4/10/2014,272195,289.68,REVENUE,FOR UNDER FIVES,101931
NORTH EAST LINCOLNSHIRE COUNCIL,http://statistics.data.gov.uk/id/local-authority/00FC,People,Early Intervention,Childrens Centre Development,Other Agencies,Child Care Payments,PJ104,4/14/2014,272103,279.93,REVENUE,FOR UNDER FIVES,101931
NORTH EAST LINCOLNSHIRE COUNCIL,http://statistics.data.gov.uk/id/local-authority/00FC,People,Early Intervention,Childrens Centre Development,Other Agencies,Child Care Payments,PJ104,4/10/2014,272193,272.4,REVENUE,FOR UNDER FIVES,101931
NORTH EAST LINCOLNSHIRE COUNCIL,http://statistics.data.gov.uk/id/local-authority/00FC,People,Early Intervention,Childrens Centre Development,Other Agencies,Child Care Payments,PJ104,4/10/2014,272196,270.48,REVENUE,FOR UNDER FIVES,101931
NORTH EAST LINCOLNSHIRE COUNCIL,http://statistics.data.gov.uk/id/local-authority/00FC,People,Early Intervention,Childrens Centre Development,Other Agencies,Child Care Payments,PJ104,4/3/2014,270337,281.04,REVENUE,FOR UNDER FIVES,101931
NORTH EAST LINCOLNSHIRE COUNCIL,http://statistics.data.gov.uk/id/local-authority/00FC,People,Early Intervention,Childrens Centre Development,Other Agencies,Child Care Payments,PJ104,4/3/2014,270336,281.58,REVENUE,FOR UNDER FIVES,101931
NORTH EAST LINCOLNSHIRE COUNCIL,http://statistics.data.gov.uk/id/local-authority/00FC,People,Early Intervention,Childrens Centre Development,Energy Costs,Gas,GB101,4/28/2014,276732,476.22,REVENUE,BRITISH GAS TRADING LTD,101507
NORTH EAST LINCOLNSHIRE COUNCIL,http://statistics.data.gov.uk/id/local-authority/00FC,People,Early Intervention,Childrens Centre Development,Energy Costs,Gas,GB101,4/28/2014,276733,-428.25,,BRITISH GAS TRADING LTD,101507
NORTH EAST LINCOLNSHIRE COUNCIL,http://statistics.data.gov.uk/id/local-authority/00FC,People,Early Intervention,Childrens Centre Development,Rates,Rates,GD101,4/30/2014,274825,6358.5,REVENUE,NORTH EAST LINCOLNSHIRE COUNCIL,100894
NORTH EAST LINCOLNSHIRE COUNCIL,http://statistics.data.gov.uk/id/local-authority/00FC,People,Early Intervention,Childrens Centre Development,Equip / Furniture / Materials,Non-Teaching Resources,LA118,4/1/2014,270213,284.95,REVENUE,TECHNOLOGY TEACHING SYSTEMS LTD,100996
NORTH EAST LINCOLNSHIRE COUNCIL,http://statistics.data.gov.uk/id/local-authority/00FC,People,Early Intervention,Childrens Centre Development,Other Agencies,Child Care Payments,PJ104,4/30/2014,271990,289.34,REVENUE,HOMEBASE LTD,108406
NORTH EAST LINCOLNSHIRE COUNCIL,http://statistics.data.gov.uk/id/local-authority/00FC,People,Early Intervention,Childrens Centre Development,Other Agencies,Child Care Payments,PJ104,4/1/2014,270467,467.82,REVENUE,PRE-SCHOOL LEARNING ALLIANCE,107441
NORTH EAST LINCOLNSHIRE COUNCIL,http://statistics.data.gov.uk/id/local-authority/00FC,People,Early Intervention,Childrens Centre Development,Rep Alterations Maint Building,Buildings - Repairs And Maint,GA102,4/10/2014,272493,432,REVENUE,EXCELL ELECTRICAL CONTRACTORS,100601
NORTH EAST LINCOLNSHIRE COUNCIL,http://statistics.data.gov.uk/id/local-authority/00FC,People,Early Intervention,Childrens Centre Development,Energy Costs,Electricity,GB102,4/3/2014,271207,279.41,REVENUE,REYNOLDS PRIMARY ACADEMY,122175
NORTH EAST LINCOLNSHIRE COUNCIL,http://statistics.data.gov.uk/id/local-authority/00FC,People,Early Intervention,Childrens Centre Development,Energy Costs,Electricity,GB102,4/3/2014,271212,341.67,REVENUE,REYNOLDS PRIMARY ACADEMY,122175
NORTH EAST LINCOLNSHIRE COUNCIL,http://statistics.data.gov.uk/id/local-authority/00FC,People,Early Intervention,Childrens Centre Development,Energy Costs,Electricity,GB102,4/3/2014,271206,279.41,REVENUE,REYNOLDS PRIMARY ACADEMY,122175
NORTH EAST LINCOLNSHIRE COUNCIL,http://statistics.data.gov.uk/id/local-authority/00FC,People,Early Intervention,Childrens Centre Development,Energy Costs,Electricity,GB102,4/3/2014,271243,341.67,REVENUE,REYNOLDS PRIMARY ACADEMY,122175
NORTH EAST LINCOLNSHIRE COUNCIL,http://statistics.data.gov.uk/id/local-authority/00FC,People,Early Intervention,Childrens Centre Development,Cleaning And Domestic Supplies,Refuse Collection,GH104,4/15/2014,274284,320.32,REVENUE,BELL WASTE CONTROL,101433
NORTH EAST LINCOLNSHIRE COUNCIL,http://statistics.data.gov.uk/id/local-authority/00FC,People,Early Intervention,Childrens Centre Development,Equip / Furniture / Materials,Furniture - Purchase,LA105,4/14/2014,273846,395,REVENUE,K P GARDEN SERVICES,104202
NORTH EAST LINCOLNSHIRE COUNCIL,http://statistics.data.gov.uk/id/local-authority/00FC,People,Early Intervention,Childrens Centre Development,Equip / Furniture / Materials,Non-Teaching Resources,LA118,4/3/2014,270256,745,REVENUE,TRIPLE P UK LTD,109465
NORTH EAST LINCOLNSHIRE COUNCIL,http://statistics.data.gov.uk/id/local-authority/00FC,People,Early Intervention,Childrens Centre Development,Equip / Furniture / Materials,Non-Teaching Resources,LA118,4/3/2014,270256,354,REVENUE,TRIPLE P UK LTD,109465
NORTH EAST LINCOLNSHIRE COUNCIL,http://statistics.data.gov.uk/id/local-authority/00FC,People,Early Intervention,Childrens Centre Development,Other Agencies,Child Care Payments,PJ104,4/7/2014,270937,626.77,REVENUE,PRE SCHOOL LEARNING ALLIANCE,101437
NORTH EAST LINCOLNSHIRE COUNCIL,http://statistics.data.gov.uk/id/local-authority/00FC,People,Early Intervention,Childrens Centre Development,Other Agencies,Child Care Payments,PJ104,4/3/2014,270936,1020.98,REVENUE,PRE SCHOOL LEARNING ALLIANCE,101437
NORTH EAST LINCOLNSHIRE COUNCIL,http://statistics.data.gov.uk/id/local-authority/00FC,People,Early Intervention,Childrens Centre Development,Other Agencies,Educational Visits,PJ152,4/10/2014,272191,481.25,REVENUE,THE DEEP,124550
NORTH EAST LINCOLNSHIRE COUNCIL,http://statistics.data.gov.uk/id/local-authority/00FC,People,Early Intervention,Childrens Centre Development,Rep Alterations Maint Building,Buildings - Repairs And Maint,GA102,4/3/2014,270793,250,REVENUE,NEWBY LEISURE LTD,101227
NORTH EAST LINCOLNSHIRE COUNCIL,http://statistics.data.gov.uk/id/local-authority/00FC,People,Early Intervention,Childrens Centre Development,Rep Alterations Maint Building,Buildings - Repairs And Maint,GA102,4/3/2014,270759,635,REVENUE,NEWBY LEISURE LTD,101227
NORTH EAST LINCOLNSHIRE COUNCIL,http://statistics.data.gov.uk/id/local-authority/00FC,People,Early Intervention,Childrens Centre Development,Rep Alterations Maint Building,Buildings - Repairs And Maint,GA102,4/3/2014,270759,635,REVENUE,NEWBY LEISURE LTD,101227
NORTH EAST LINCOLNSHIRE COUNCIL,http://statistics.data.gov.uk/id/local-authority/00FC,People,Early Intervention,Childrens Centre Development,Rep Alterations Maint Building,Buildings - Repairs And Maint,GA102,4/16/2014,275116,537.5,REVENUE,FRED MARGARSON LTD,100592
NORTH EAST LINCOLNSHIRE COUNCIL,http://statistics.data.gov.uk/id/local-authority/00FC,People,Early Intervention,Childrens Centre Development,Rep Alterations Maint Building,Buildings - Repairs And Maint,GA102,4/16/2014,275117,302,REVENUE,UNIBUILD BUILDING CONT LTD,101469
NORTH EAST LINCOLNSHIRE COUNCIL,http://statistics.data.gov.uk/id/local-authority/00FC,People,Early Intervention,Childrens Centre Development,Rep Alterations Maint Building,Buildings - Repairs And Maint,GA102,4/3/2014,270761,990,REVENUE,NEWBY LEISURE LTD,101227
NORTH EAST LINCOLNSHIRE COUNCIL,http://statistics.data.gov.uk/id/local-authority/00FC,People,Early Intervention,Childrens Centre Development,Rep Alterations Maint Building,Buildings - Repairs And Maint,GA102,4/3/2014,270759,520,REVENUE,NEWBY LEISURE LTD,101227
NORTH EAST LINCOLNSHIRE COUNCIL,http://statistics.data.gov.uk/id/local-authority/00FC,People,Early Intervention,Childrens Centre Development,Energy Costs,Electricity,GB102,4/3/2014,270138,1113.02,REVENUE,EASTFIELD PRIMARY ACADEMY,121907
NORTH EAST LINCOLNSHIRE COUNCIL,http://statistics.data.gov.uk/id/local-authority/00FC,People,Early Intervention,Childrens Centre Development,Energy Costs,Heating Fuel,GB103,4/10/2014,271972,1117.49,REVENUE,EASTFIELD PRIMARY ACADEMY,121907
NORTH EAST LINCOLNSHIRE COUNCIL,http://statistics.data.gov.uk/id/local-authority/00FC,People,Early Intervention,Childrens Centre Development,Equip / Furniture / Materials,Equipment - Purchase,LA101,4/3/2014,270798,740,REVENUE,NEWBY LEISURE LTD,101227
NORTH EAST LINCOLNSHIRE COUNCIL,http://statistics.data.gov.uk/id/local-authority/00FC,People,Early Intervention,Childrens Centre Development,Equip / Furniture / Materials,Equipment - Purchase,LA101,4/7/2014,270886,650,REVENUE,NEWBY LEISURE LTD,101227
NORTH EAST LINCOLNSHIRE COUNCIL,http://statistics.data.gov.uk/id/local-authority/00FC,People,Early Intervention,Childrens Centre Development,Equip / Furniture / Materials,Equipment - Purchase,LA101,4/3/2014,270596,650,REVENUE,NEWBY LEISURE LTD,101227
NORTH EAST LINCOLNSHIRE COUNCIL,http://statistics.data.gov.uk/id/local-authority/00FC,People,Early Intervention,Childrens Centre Development,Equip / Furniture / Materials,Equipment - Purchase,LA101,4/7/2014,271345,995,REVENUE,NEWBY LEISURE LTD,101227
NORTH EAST LINCOLNSHIRE COUNCIL,http://statistics.data.gov.uk/id/local-authority/00FC,People,Early Intervention,Childrens Centre Development,Equip / Furniture / Materials,Equipment - Purchase,LA101,4/7/2014,270886,495,REVENUE,NEWBY LEISURE LTD,101227
NORTH EAST LINCOLNSHIRE COUNCIL,http://statistics.data.gov.uk/id/local-authority/00FC,People,Early Intervention,Childrens Centre Development,Equip / Furniture / Materials,Non-Teaching Resources,LA118,4/10/2014,273074,412.3,REVENUE,WRS GROUP LTD,102761
NORTH EAST LINCOLNSHIRE COUNCIL,http://statistics.data.gov.uk/id/local-authority/00FC,People,Early Intervention,Childrens Centre Development,Other Agencies,Child Care Payments,PJ104,4/7/2014,271336,1560,REVENUE,CHAPPILLS DAY NURSERY,100998
NORTH EAST LINCOLNSHIRE COUNCIL,http://statistics.data.gov.uk/id/local-authority/00FC,People,Early Intervention,Childrens Centre Development,Other Agencies,Further Ed Emp & Training,PJ130,4/1/2014,270046,2500,REVENUE,FAMILY LINKS,101506
NORTH EAST LINCOLNSHIRE COUNCIL,http://statistics.data.gov.uk/id/local-authority/00FC,People,Early Intervention,Childrens Centre Development,Direct Employee Expenses,Agency Staff,EA105,4/22/2014,275490,375.44,REVENUE,THRUNSCOE PRIMARY AND NURSERY ACADEMY,118749
NORTH EAST LINCOLNSHIRE COUNCIL,http://statistics.data.gov.uk/id/local-authority/00FC,People,Early Intervention,Childrens Centre Development,Direct Employee Expenses,Agency Staff,EA105,4/22/2014,275490,596.93,REVENUE,THRUNSCOE PRIMARY AND NURSERY ACADEMY,118749
NORTH EAST LINCOLNSHIRE COUNCIL,http://statistics.data.gov.uk/id/local-authority/00FC,People,Early Intervention,Childrens Centre Development,Energy Costs,Gas,GB101,4/22/2014,275490,472.49,REVENUE,THRUNSCOE PRIMARY AND NURSERY ACADEMY,118749
NORTH EAST LINCOLNSHIRE COUNCIL,http://statistics.data.gov.uk/id/local-authority/00FC,People,Early Intervention,Childrens Centre Development,Equip / Furniture / Materials,Non-Teaching Resources,LA118,4/3/2014,270523,480,REVENUE,NEWBY LEISURE LTD,101227
NORTH EAST LINCOLNSHIRE COUNCIL,http://statistics.data.gov.uk/id/local-authority/00FC,People,Early Intervention,Childrens Centre Development,Other Agencies,Child Care Payments,PJ104,4/10/2014,272492,934.88,REVENUE,FUTURE CLEANING SERVICES LTD,102557
NORTH EAST LINCOLNSHIRE COUNCIL,http://statistics.data.gov.uk/id/local-authority/00FC,People,Early Intervention,Childrens Centre Development,Energy Costs,Gas,GB101,4/10/2014,273011,3338.37,REVENUE,WILLOWS PRIMARY ACADEMY,120478
NORTH EAST LINCOLNSHIRE COUNCIL,http://statistics.data.gov.uk/id/local-authority/00FC,People,Early Intervention,Childrens Centre Development,Rates,Rates,GD101,4/16/2014,274753,11327,REVENUE,NORTH EAST LINCOLNSHIRE COUNCIL,100894
NORTH EAST LINCOLNSHIRE COUNCIL,http://statistics.data.gov.uk/id/local-authority/00FC,People,Early Intervention,Childrens Centre Development,Cleaning And Domestic Supplies,Cleaning - Services,GH102,4/15/2014,273014,650.4,REVENUE,WILLOWS PRIMARY ACADEMY,120478
NORTH EAST LINCOLNSHIRE COUNCIL,http://statistics.data.gov.uk/id/local-authority/00FC,People,Early Intervention,Childrens Centre Development,Cleaning And Domestic Supplies,Cleaning - Services,GH102,4/22/2014,275550,690.08,REVENUE,FUTURE CLEANING SERVICES LTD,102557
NORTH EAST LINCOLNSHIRE COUNCIL,http://statistics.data.gov.uk/id/local-authority/00FC,People,Early Intervention,Childrens Centre Development,Cleaning And Domestic Supplies,Cleaning - Services,GH102,4/3/2014,270371,690.08,REVENUE,FUTURE CLEANING SERVICES LTD,102557
NORTH EAST LINCOLNSHIRE COUNCIL,http://statistics.data.gov.uk/id/local-authority/00FC,People,Early Intervention,Childrens Centre Development,Energy Costs,Electricity,GB102,4/3/2014,270800,358.11,REVENUE,YARBOROUGH ACADEMY,112852
NORTH EAST LINCOLNSHIRE COUNCIL,http://statistics.data.gov.uk/id/local-authority/00FC,People,Early Intervention,Childrens Centre Development,Energy Costs,Gas,GB101,4/3/2014,270096,1801.26,REVENUE,YARBOROUGH ACADEMY,112852
NORTH EAST LINCOLNSHIRE COUNCIL,http://statistics.data.gov.uk/id/local-authority/00FC,People,Early Intervention,Childrens Centre Development,Rates,Rates,GD101,4/25/2014,274754,10845,REVENUE,NORTH EAST LINCOLNSHIRE COUNCIL,100894
NORTH EAST LINCOLNSHIRE COUNCIL,http://statistics.data.gov.uk/id/local-authority/00FC,People,Early Intervention,Childrens Centre Development,Cleaning And Domestic Supplies,Cleaning - Services,GH102,4/22/2014,275747,860,REVENUE,FUTURE CLEANING SERVICES LTD,102557
NORTH EAST LINCOLNSHIRE COUNCIL,http://statistics.data.gov.uk/id/local-authority/00FC,People,Early Intervention,Childrens Centre Development,Cleaning And Domestic Supplies,Cleaning - Services,GH102,4/3/2014,270431,860,REVENUE,FUTURE CLEANING SERVICES LTD,102557
NORTH EAST LINCOLNSHIRE COUNCIL,http://statistics.data.gov.uk/id/local-authority/00FC,People,Early Intervention,Childrens Centre Development,Cleaning And Domestic Supplies,Refuse Collection,GH104,4/1/2014,270098,356.98,REVENUE,BELL WASTE CONTROL,101433
NORTH EAST LINCOLNSHIRE COUNCIL,http://statistics.data.gov.uk/id/local-authority/00FC,People,Early Intervention,Childrens Centre Development,Equip / Furniture / Materials,Non-Teaching Resources,LA118,4/3/2014,270134,450,REVENUE,PENNELLS,100956
NORTH EAST LINCOLNSHIRE COUNCIL,http://statistics.data.gov.uk/id/local-authority/00FC,People,Early Intervention,Childrens Centre Development,Equip / Furniture / Materials,Non-Teaching Resources,LA118,4/3/2014,270089,360,REVENUE,YOUNG FUN,123302
NORTH EAST LINCOLNSHIRE COUNCIL,http://statistics.data.gov.uk/id/local-authority/00FC,People,Early Intervention,Childrens Centre Development,Rates,Rates,GD101,4/15/2014,274056,4003.5,REVENUE,NORTH EAST LINCOLNSHIRE COUNCIL,100894
NORTH EAST LINCOLNSHIRE COUNCIL,http://statistics.data.gov.uk/id/local-authority/00FC,People,Early Intervention,Childrens Centre Development,Equip / Furniture / Materials,Equipment - Purchase,LA101,4/15/2014,274325,1490,REVENUE,NEWBY LEISURE LTD,101227
NORTH EAST LINCOLNSHIRE COUNCIL,http://statistics.data.gov.uk/id/local-authority/00FC,People,Early Intervention,Childrens Centre Development,Equip / Furniture / Materials,Equipment - Purchase,LA101,4/10/2014,272088,965,REVENUE,NEWBY LEISURE LTD,101227
NORTH EAST LINCOLNSHIRE COUNCIL,http://statistics.data.gov.uk/id/local-authority/00FC,People,Early Intervention,Childrens Centre Development,Equip / Furniture / Materials,Equipment - Purchase,LA101,4/10/2014,272078,259.95,REVENUE,FINDEL EDUCATION LTD,101237
NORTH EAST LINCOLNSHIRE COUNCIL,http://statistics.data.gov.uk/id/local-authority/00FC,People,Early Intervention,Childrens Centre Development,Equip / Furniture / Materials,Equipment - Purchase,LA101,4/16/2014,274666,549.4,REVENUE,FINDEL EDUCATION LTD,101237
NORTH EAST LINCOLNSHIRE COUNCIL,http://statistics.data.gov.uk/id/local-authority/00FC,People,Early Intervention,Childrens Centre Development,Equip / Furniture / Materials,Furniture - Purchase,LA105,4/10/2014,272082,1430,REVENUE,COMMUNITY PRODUCTS (UK) LTD,101007
NORTH EAST LINCOLNSHIRE COUNCIL,http://statistics.data.gov.uk/id/local-authority/00FC,People,Early Intervention,Youth Offending Team,Indirect Employee Expenses,Staff Training,EB122,4/1/2014,270403,500,REVENUE,REAL JUSTICE LTD,109974
NORTH EAST LINCOLNSHIRE COUNCIL,http://statistics.data.gov.uk/id/local-authority/00FC,People,Early Intervention,Youth Offending Team,Indirect Employee Expenses,Staff Training,EB122,4/1/2014,270405,270,REVENUE,REAL JUSTICE LTD,109974
NORTH EAST LINCOLNSHIRE COUNCIL,http://statistics.data.gov.uk/id/local-authority/00FC,People,Early Intervention,Youth Offending Team,Indirect Employee Expenses,Staff Training,EB122,4/10/2014,273003,250,REVENUE,LEEDS CITY COUNCIL,100545
NORTH EAST LINCOLNSHIRE COUNCIL,http://statistics.data.gov.uk/id/local-authority/00FC,People,Early Intervention,Youth Offending Team,Public Transport,Public Transport - Employees,JD101,4/22/2014,275866,-21.98,,NYS CORPORATE,102444
NORTH EAST LINCOLNSHIRE COUNCIL,http://statistics.data.gov.uk/id/local-authority/00FC,People,Early Intervention,Youth Offending Team,Public Transport,Public Transport - Serv User,JD102,4/3/2014,270916,353.85,REVENUE,YOUTH OFFENDING SERVICES,110694
NORTH EAST LINCOLNSHIRE COUNCIL,http://statistics.data.gov.uk/id/local-authority/00FC,People,Early Intervention,Youth Offending Team,Catering,Provisions,LB101,4/3/2014,270926,277.32,REVENUE,YOUTH OFFENDING SERVICES,110694
NORTH EAST LINCOLNSHIRE COUNCIL,http://statistics.data.gov.uk/id/local-authority/00FC,People,Early Intervention,Youth Offending Team,Private Contractors,Third Party Prov - Private,PH101,4/25/2014,275689,1950,REVENUE,CUT LTD,105425
NORTH EAST LINCOLNSHIRE COUNCIL,http://statistics.data.gov.uk/id/local-authority/00FC,People,Early Intervention,Youth Offending Team,Private Contractors,Third Party Prov - Private,PH101,4/14/2014,273266,1480,REVENUE,DAVE FOULDS,101629
NORTH EAST LINCOLNSHIRE COUNCIL,http://statistics.data.gov.uk/id/local-authority/00FC,People,Early Intervention,Youth Offending Team,Private Contractors,Third Party Prov - Private,PH101,4/1/2014,270069,1180,REVENUE,DKM ASSESSMENT & VERIFICATION LTD,102543
NORTH EAST LINCOLNSHIRE COUNCIL,http://statistics.data.gov.uk/id/local-authority/00FC,People,Early Intervention,Youth Offending Team,Private Contractors,Third Party Prov - Private,PH101,4/10/2014,273026,20000,REVENUE,VOLUNTARY ACTION NORTH EAST LINCOLNSHIRE,103631
NORTH EAST LINCOLNSHIRE COUNCIL,http://statistics.data.gov.uk/id/local-authority/00FC,People,Early Intervention,Child Protection / Safeguardin,Direct Employee Expenses,Agency Staff,EA105,4/10/2014,273060,2306.95,REVENUE,ESP LTD,101231
NORTH EAST LINCOLNSHIRE COUNCIL,http://statistics.data.gov.uk/id/local-authority/00FC,People,Early Intervention,Child Protection / Safeguardin,Direct Employee Expenses,Agency Staff,EA105,4/25/2014,274342,2126.14,REVENUE,ESP LTD,101231
NORTH EAST LINCOLNSHIRE COUNCIL,http://statistics.data.gov.uk/id/local-authority/00FC,People,Early Intervention,Child Protection / Safeguardin,Direct Employee Expenses,Agency Staff,EA105,4/3/2014,270135,2219.66,REVENUE,ESP LTD,101231
NORTH EAST LINCOLNSHIRE COUNCIL,http://statistics.data.gov.uk/id/local-authority/00FC,People,Early Intervention,Child Protection / Safeguardin,Direct Employee Expenses,Agency Staff,EA105,4/10/2014,271999,2306.95,REVENUE,ESP LTD,101231
NORTH EAST LINCOLNSHIRE COUNCIL,http://statistics.data.gov.uk/id/local-authority/00FC,People,Early Intervention,Child Protection / Safeguardin,Direct Employee Expenses,Agency Staff,EA105,4/28/2014,275610,2126.14,REVENUE,ESP LTD,101231
NORTH EAST LINCOLNSHIRE COUNCIL,http://statistics.data.gov.uk/id/local-authority/00FC,People,Early Intervention,Child Protection / Safeguardin,Equip / Furniture / Materials,Equipment - Purchase,LA101,4/10/2014,272057,251.16,REVENUE,COMPUTACENTER UK LTD,101303
NORTH EAST LINCOLNSHIRE COUNCIL,http://statistics.data.gov.uk/id/local-authority/00FC,People,Early Intervention,Child Protection / Safeguardin,Print Stationery / Gen Off Exp,Printing And Stationery,LD103,4/14/2014,272532,-9.61,,LYRECO UK LIMITED,101120
NORTH EAST LINCOLNSHIRE COUNCIL,http://statistics.data.gov.uk/id/local-authority/00FC,People,Early Intervention,Child Protection / Safeguardin,Private Contractors,Third Party Prov - Private,PH101,4/15/2014,274310,576.1,REVENUE,SUE WOOLMORE,111635
NORTH EAST LINCOLNSHIRE COUNCIL,http://statistics.data.gov.uk/id/local-authority/00FC,People,Early Intervention,Child Protection / Safeguardin,Private Contractors,Third Party Prov - Private,PH101,4/3/2014,270452,REDACTED COMMERCIALLY SENSITIVE,REVENUE,MR D PEPLOW,124564
NORTH EAST LINCOLNSHIRE COUNCIL,http://statistics.data.gov.uk/id/local-authority/00FC,People,Early Intervention,Head Of Child Hlth - Fam Supp,Private Contractors,Third Party Prov - Private,PH101,4/30/2014,276239,9131.34,REVENUE,BEVAN ASSOCIATES LTD,125247
NORTH EAST LINCOLNSHIRE COUNCIL,http://statistics.data.gov.uk/id/local-authority/00FC,People,Early Intervention,Head Of Child Hlth - Fam Supp,Private Contractors,Third Party Prov - Private,PH101,4/10/2014,272524,7575,REVENUE,BEVAN ASSOCIATES LTD,125247
NORTH EAST LINCOLNSHIRE COUNCIL,http://statistics.data.gov.uk/id/local-authority/00FC,People,Early Intervention,Head Of Child Hlth - Fam Supp,Rents,Service Charge,GC102,4/8/2014,272456,303.77,REVENUE,E-ON (GAS),101983
NORTH EAST LINCOLNSHIRE COUNCIL,http://statistics.data.gov.uk/id/local-authority/00FC,People,Early Intervention,Head Of Child Hlth - Fam Supp,Rents,Service Charge,GC102,4/8/2014,272458,1387.08,REVENUE,ASSURA MEDICAL CENTRES LIMITED,125380
NORTH EAST LINCOLNSHIRE COUNCIL,http://statistics.data.gov.uk/id/local-authority/00FC,People,Early Intervention,Head Of Child Hlth - Fam Supp,Rents,Service Charge,GC102,4/10/2014,272459,278.49,REVENUE,AITCHISON RAFFETY,109865
NORTH EAST LINCOLNSHIRE COUNCIL,http://statistics.data.gov.uk/id/local-authority/00FC,People,Early Intervention,Head Of Child Hlth - Fam Supp,Rents,Service Charge,GC102,4/10/2014,272460,1527.93,REVENUE,THE ROXTON PRACTICE,104395
NORTH EAST LINCOLNSHIRE COUNCIL,http://statistics.data.gov.uk/id/local-authority/00FC,People,Early Intervention,Head Of Child Hlth - Fam Supp,Rents,Service Charge,GC102,4/8/2014,272470,273,REVENUE,R B SERVICES,108660
NORTH EAST LINCOLNSHIRE COUNCIL,http://statistics.data.gov.uk/id/local-authority/00FC,People,Adult Serv & Hlth Improvement,Supporting People,Other Agencies,Third Pp - Block Gross,PJ103,4/28/2014,276450,REDACTED COMMERCIALLY SENSITIVE,REVENUE,ANCHOR TRUST,100327
NORTH EAST LINCOLNSHIRE COUNCIL,http://statistics.data.gov.uk/id/local-authority/00FC,People,Adult Serv & Hlth Improvement,Supporting People,Other Agencies,Third Pp - Block Gross,PJ103,4/14/2014,273725,REDACTED COMMERCIALLY SENSITIVE,REVENUE,HUMBERCARE LTD,100311
NORTH EAST LINCOLNSHIRE COUNCIL,http://statistics.data.gov.uk/id/local-authority/00FC,People,Adult Serv & Hlth Improvement,Supporting People,Other Agencies,Third Pp - Block Gross,PJ103,4/14/2014,273726,REDACTED COMMERCIALLY SENSITIVE,REVENUE,HICA,100319
NORTH EAST LINCOLNSHIRE COUNCIL,http://statistics.data.gov.uk/id/local-authority/00FC,People,Adult Serv & Hlth Improvement,Supporting People,Other Agencies,Third Pp - Block Gross,PJ103,4/14/2014,273727,REDACTED COMMERCIALLY SENSITIVE,REVENUE,HOUSING & SUPPORT SOLUTIONS,100321
NORTH EAST LINCOLNSHIRE COUNCIL,http://statistics.data.gov.uk/id/local-authority/00FC,People,Adult Serv & Hlth Improvement,Supporting People,Other Agencies,Third Pp - Block Gross,PJ103,4/14/2014,273729,REDACTED COMMERCIALLY SENSITIVE,REVENUE,LONGHURST AND HAVELOK HOMES LTD,100342
NORTH EAST LINCOLNSHIRE COUNCIL,http://statistics.data.gov.uk/id/local-authority/00FC,People,Adult Serv & Hlth Improvement,Supporting People,Other Agencies,Third Pp - Block Gross,PJ103,4/14/2014,273730,REDACTED COMMERCIALLY SENSITIVE,REVENUE,NAVIGO,104262
NORTH EAST LINCOLNSHIRE COUNCIL,http://statistics.data.gov.uk/id/local-authority/00FC,People,Adult Serv & Hlth Improvement,Supporting People,Other Agencies,Third Pp - Block Gross,PJ103,4/14/2014,273731,REDACTED COMMERCIALLY SENSITIVE,REVENUE,CARE PLUS GROUP,106467
NORTH EAST LINCOLNSHIRE COUNCIL,http://statistics.data.gov.uk/id/local-authority/00FC,People,Adult Serv & Hlth Improvement,Supporting People,Other Agencies,Third Pp - Block Gross,PJ103,4/14/2014,273732,REDACTED COMMERCIALLY SENSITIVE,REVENUE,CREATIVE SUPPORT LTD,107198
NORTH EAST LINCOLNSHIRE COUNCIL,http://statistics.data.gov.uk/id/local-authority/00FC,People,Adult Serv & Hlth Improvement,Supporting People,Other Agencies,Third Pp - Block Gross,PJ103,4/28/2014,276445,REDACTED COMMERCIALLY SENSITIVE,REVENUE,CARE LTD,100314
NORTH EAST LINCOLNSHIRE COUNCIL,http://statistics.data.gov.uk/id/local-authority/00FC,People,Adult Serv & Hlth Improvement,Supporting People,Other Agencies,Third Pp - Block Gross,PJ103,4/28/2014,276442,REDACTED COMMERCIALLY SENSITIVE,REVENUE,DOORSTEP,100310
NORTH EAST LINCOLNSHIRE COUNCIL,http://statistics.data.gov.uk/id/local-authority/00FC,People,Adult Serv & Hlth Improvement,Supporting People,Other Agencies,Third Pp - Block Gross,PJ103,4/28/2014,276458,REDACTED COMMERCIALLY SENSITIVE,REVENUE,CARE PLUS GROUP,106467
NORTH EAST LINCOLNSHIRE COUNCIL,http://statistics.data.gov.uk/id/local-authority/00FC,People,Adult Serv & Hlth Improvement,Supporting People,Other Agencies,Third Pp - Block Gross,PJ103,4/28/2014,276459,REDACTED COMMERCIALLY SENSITIVE,REVENUE,CREATIVE SUPPORT LTD,107198
NORTH EAST LINCOLNSHIRE COUNCIL,http://statistics.data.gov.uk/id/local-authority/00FC,People,Adult Serv & Hlth Improvement,Supporting People,Other Agencies,Third Pp - Block Gross,PJ103,4/28/2014,276448,REDACTED COMMERCIALLY SENSITIVE,REVENUE,HOUSING & SUPPORT SOLUTIONS,100321
NORTH EAST LINCOLNSHIRE COUNCIL,http://statistics.data.gov.uk/id/local-authority/00FC,People,Adult Serv & Hlth Improvement,Supporting People,Other Agencies,Third Pp - Block Gross,PJ103,4/28/2014,276446,REDACTED COMMERCIALLY SENSITIVE,REVENUE,HICA,100319
NORTH EAST LINCOLNSHIRE COUNCIL,http://statistics.data.gov.uk/id/local-authority/00FC,People,Adult Serv & Hlth Improvement,Supporting People,Other Agencies,Third Pp - Block Gross,PJ103,4/28/2014,276443,REDACTED COMMERCIALLY SENSITIVE,REVENUE,HUMBERCARE LTD,100311
NORTH EAST LINCOLNSHIRE COUNCIL,http://statistics.data.gov.uk/id/local-authority/00FC,People,Adult Serv & Hlth Improvement,Supporting People,Other Agencies,Third Pp - Block Gross,PJ103,4/28/2014,276454,REDACTED COMMERCIALLY SENSITIVE,REVENUE,LONGHURST AND HAVELOK HOMES LTD,100342
NORTH EAST LINCOLNSHIRE COUNCIL,http://statistics.data.gov.uk/id/local-authority/00FC,People,Adult Serv & Hlth Improvement,Supporting People,Other Agencies,Third Pp - Block Gross,PJ103,4/28/2014,276457,REDACTED COMMERCIALLY SENSITIVE,REVENUE,NAVIGO,104262
NORTH EAST LINCOLNSHIRE COUNCIL,http://statistics.data.gov.uk/id/local-authority/00FC,People,Adult Serv & Hlth Improvement,Supporting People,Other Agencies,Third Pp - Block Gross,PJ103,4/28/2014,276439,REDACTED COMMERCIALLY SENSITIVE,REVENUE,GRIMSBY CLEETHORPES & HUMBER REGION YMCA,100305
NORTH EAST LINCOLNSHIRE COUNCIL,http://statistics.data.gov.uk/id/local-authority/00FC,People,Adult Serv & Hlth Improvement,Supporting People,Other Agencies,Third Pp - Block Gross,PJ103,4/28/2014,276440,REDACTED COMMERCIALLY SENSITIVE,REVENUE,HANOVER HOUSING ASSOCIATION,100307
NORTH EAST LINCOLNSHIRE COUNCIL,http://statistics.data.gov.uk/id/local-authority/00FC,People,Adult Serv & Hlth Improvement,Supporting People,Other Agencies,Third Pp - Block Gross,PJ103,4/28/2014,276447,REDACTED COMMERCIALLY SENSITIVE,REVENUE,HOUSING 21,100320
NORTH EAST LINCOLNSHIRE COUNCIL,http://statistics.data.gov.uk/id/local-authority/00FC,People,Adult Serv & Hlth Improvement,Supporting People,Other Agencies,Third Pp - Block Gross,PJ103,4/28/2014,276444,REDACTED COMMERCIALLY SENSITIVE,REVENUE,HUMBERCARE LTD,100311
NORTH EAST LINCOLNSHIRE COUNCIL,http://statistics.data.gov.uk/id/local-authority/00FC,People,Adult Serv & Hlth Improvement,Supporting People,Other Agencies,Third Pp - Block Gross,PJ103,4/28/2014,276453,REDACTED COMMERCIALLY SENSITIVE,REVENUE,LONGHURST AND HAVELOK HOMES LTD,100342
NORTH EAST LINCOLNSHIRE COUNCIL,http://statistics.data.gov.uk/id/local-authority/00FC,People,Adult Serv & Hlth Improvement,Supporting People,Other Agencies,Third Pp - Block Gross,PJ103,4/28/2014,276455,REDACTED COMMERCIALLY SENSITIVE,REVENUE,OPEN DOOR,103147
NORTH EAST LINCOLNSHIRE COUNCIL,http://statistics.data.gov.uk/id/local-authority/00FC,People,Adult Serv & Hlth Improvement,Supporting People,Other Agencies,Third Pp - Block Gross,PJ103,4/28/2014,276456,REDACTED COMMERCIALLY SENSITIVE,REVENUE,SANCTUARY HOUSING ASSOCIATION,103289
NORTH EAST LINCOLNSHIRE COUNCIL,http://statistics.data.gov.uk/id/local-authority/00FC,People,Adult Serv & Hlth Improvement,Supporting People,Other Agencies,Third Pp - Block Gross,PJ103,4/28/2014,276441,REDACTED COMMERCIALLY SENSITIVE,REVENUE,THE SALVATION ARMY,100309
NORTH EAST LINCOLNSHIRE COUNCIL,http://statistics.data.gov.uk/id/local-authority/00FC,People,Adult Serv & Hlth Improvement,Supporting People,Other Agencies,Third Pp - Block Gross,PJ103,4/28/2014,276449,REDACTED COMMERCIALLY SENSITIVE,REVENUE,WOMENS AID,100326
NORTH EAST LINCOLNSHIRE COUNCIL,http://statistics.data.gov.uk/id/local-authority/00FC,People,Adult Serv & Hlth Improvement,Supporting People,Other Agencies,Third Pp - Block Gross,PJ103,4/28/2014,276452,REDACTED COMMERCIALLY SENSITIVE,REVENUE,YORK HOUSING ASSOCIATION LTD,100341
NORTH EAST LINCOLNSHIRE COUNCIL,http://statistics.data.gov.uk/id/local-authority/00FC,People,Adult Serv & Hlth Improvement,Supporting People,Other Agencies,Third Pp - Block Subsidy,PJ102,4/14/2014,273733,REDACTED COMMERCIALLY SENSITIVE,REVENUE,HUMBERCARE LTD,100311
NORTH EAST LINCOLNSHIRE COUNCIL,http://statistics.data.gov.uk/id/local-authority/00FC,People,Adult Serv & Hlth Improvement,Supporting People,Other Agencies,Third Pp - Block Subsidy,PJ102,4/14/2014,273734,REDACTED COMMERCIALLY SENSITIVE,REVENUE,HICA,100319
NORTH EAST LINCOLNSHIRE COUNCIL,http://statistics.data.gov.uk/id/local-authority/00FC,People,Adult Serv & Hlth Improvement,Supporting People,Other Agencies,Third Pp - Block Subsidy,PJ102,4/14/2014,273735,REDACTED COMMERCIALLY SENSITIVE,REVENUE,HOUSING & SUPPORT SOLUTIONS,100321
NORTH EAST LINCOLNSHIRE COUNCIL,http://statistics.data.gov.uk/id/local-authority/00FC,People,Adult Serv & Hlth Improvement,Supporting People,Other Agencies,Third Pp - Block Subsidy,PJ102,4/14/2014,273737,REDACTED COMMERCIALLY SENSITIVE,REVENUE,LONGHURST AND HAVELOK HOMES LTD,100342
NORTH EAST LINCOLNSHIRE COUNCIL,http://statistics.data.gov.uk/id/local-authority/00FC,People,Adult Serv & Hlth Improvement,Supporting People,Other Agencies,Third Pp - Block Subsidy,PJ102,4/14/2014,273738,REDACTED COMMERCIALLY SENSITIVE,REVENUE,NAVIGO,104262
NORTH EAST LINCOLNSHIRE COUNCIL,http://statistics.data.gov.uk/id/local-authority/00FC,People,Adult Serv & Hlth Improvement,Supporting People,Other Agencies,Third Pp - Block Subsidy,PJ102,4/14/2014,273739,REDACTED COMMERCIALLY SENSITIVE,REVENUE,CARE PLUS GROUP,106467
NORTH EAST LINCOLNSHIRE COUNCIL,http://statistics.data.gov.uk/id/local-authority/00FC,People,Adult Serv & Hlth Improvement,Supporting People,Other Agencies,Third Pp - Block Subsidy,PJ102,4/14/2014,273740,REDACTED COMMERCIALLY SENSITIVE,REVENUE,CREATIVE SUPPORT LTD,107198
NORTH EAST LINCOLNSHIRE COUNCIL,http://statistics.data.gov.uk/id/local-authority/00FC,People,Adult Serv & Hlth Improvement,Supporting People,Other Agencies,Third Pp - Block Subsidy,PJ102,4/14/2014,273741,REDACTED COMMERCIALLY SENSITIVE,REVENUE,HUMBERCARE LTD,100311
NORTH EAST LINCOLNSHIRE COUNCIL,http://statistics.data.gov.uk/id/local-authority/00FC,People,Adult Serv & Hlth Improvement,Supporting People,Other Agencies,Third Pp - Block Subsidy,PJ102,4/14/2014,273742,REDACTED COMMERCIALLY SENSITIVE,REVENUE,HICA,100319
NORTH EAST LINCOLNSHIRE COUNCIL,http://statistics.data.gov.uk/id/local-authority/00FC,People,Adult Serv & Hlth Improvement,Supporting People,Other Agencies,Third Pp - Block Subsidy,PJ102,4/14/2014,273743,REDACTED COMMERCIALLY SENSITIVE,REVENUE,HOUSING & SUPPORT SOLUTIONS,100321
NORTH EAST LINCOLNSHIRE COUNCIL,http://statistics.data.gov.uk/id/local-authority/00FC,People,Adult Serv & Hlth Improvement,Supporting People,Other Agencies,Third Pp - Block Subsidy,PJ102,4/14/2014,273745,REDACTED COMMERCIALLY SENSITIVE,REVENUE,LONGHURST AND HAVELOK HOMES LTD,100342
NORTH EAST LINCOLNSHIRE COUNCIL,http://statistics.data.gov.uk/id/local-authority/00FC,People,Adult Serv & Hlth Improvement,Supporting People,Other Agencies,Third Pp - Block Subsidy,PJ102,4/14/2014,273746,REDACTED COMMERCIALLY SENSITIVE,REVENUE,NAVIGO,104262
NORTH EAST LINCOLNSHIRE COUNCIL,http://statistics.data.gov.uk/id/local-authority/00FC,People,Adult Serv & Hlth Improvement,Supporting People,Other Agencies,Third Pp - Block Subsidy,PJ102,4/14/2014,273747,REDACTED COMMERCIALLY SENSITIVE,REVENUE,CARE PLUS GROUP,106467
NORTH EAST LINCOLNSHIRE COUNCIL,http://statistics.data.gov.uk/id/local-authority/00FC,People,Adult Serv & Hlth Improvement,Supporting People,Other Agencies,Third Pp - Block Subsidy,PJ102,4/14/2014,273748,REDACTED COMMERCIALLY SENSITIVE,REVENUE,CREATIVE SUPPORT LTD,107198
NORTH EAST LINCOLNSHIRE COUNCIL,http://statistics.data.gov.uk/id/local-authority/00FC,People,Adult Serv & Hlth Improvement,Supporting People,Other Agencies,Third Pp - Block Subsidy,PJ102,4/3/2014,270257,REDACTED COMMERCIALLY SENSITIVE,REVENUE,KATE MCALLISTER CONSULTANCY LTD,109506
NORTH EAST LINCOLNSHIRE COUNCIL,http://statistics.data.gov.uk/id/local-authority/00FC,People,Adult Serv & Hlth Improvement,Strategic Housing,Private Contractors,Third Party Prov - Private,PH101,4/10/2014,272207,2827,REVENUE,CARE PLUS GROUP,106467
NORTH EAST LINCOLNSHIRE COUNCIL,http://statistics.data.gov.uk/id/local-authority/00FC,People,Adult Serv & Hlth Improvement,Strategic Housing,Private Contractors,Third Party Prov - Private,PH101,4/10/2014,272764,490.82,REVENUE,SHORELINE HOUSING PARTNERSHIP LTD,100139
NORTH EAST LINCOLNSHIRE COUNCIL,http://statistics.data.gov.uk/id/local-authority/00FC,People,Adult Serv & Hlth Improvement,Strategic Housing,Private Contractors,Third Party Prov - Private,PH101,4/7/2014,270757,250,REVENUE,SHORELINE HOUSING PARTNERSHIP LTD,100139
NORTH EAST LINCOLNSHIRE COUNCIL,http://statistics.data.gov.uk/id/local-authority/00FC,People,Adult Serv & Hlth Improvement,Strategic Housing,Rents,Service Charge,GC102,4/10/2014,272153,312.5,REVENUE,EMPOWER EMPLOYABILITY MENTORING PROGRAMME,118831
NORTH EAST LINCOLNSHIRE COUNCIL,http://statistics.data.gov.uk/id/local-authority/00FC,People,Adult Serv & Hlth Improvement,Strategic Housing,Rents,Service Charge,GC102,4/1/2014,270018,1215,REVENUE,LONGHURST AND HAVELOK HOMES LTD,100342
NORTH EAST LINCOLNSHIRE COUNCIL,http://statistics.data.gov.uk/id/local-authority/00FC,People,Adult Serv & Hlth Improvement,Strategic Housing,Rents,Rent,GC101,4/22/2014,275666,960,REVENUE,REDACTED PERSONAL INFORMATION,REDACTED PERSONAL INFORMATION
NORTH EAST LINCOLNSHIRE COUNCIL,http://statistics.data.gov.uk/id/local-authority/00FC,People,Adult Serv & Hlth Improvement,Strategic Housing,Rents,Rent,GC101,4/10/2014,272132,1260,REVENUE,REDACTED PERSONAL INFORMATION,REDACTED PERSONAL INFORMATION
NORTH EAST LINCOLNSHIRE COUNCIL,http://statistics.data.gov.uk/id/local-authority/00FC,People,Adult Serv & Hlth Improvement,Strategic Housing,Rents,Rent,GC101,4/22/2014,275673,750,REVENUE,REDACTED PERSONAL INFORMATION,REDACTED PERSONAL INFORMATION
NORTH EAST LINCOLNSHIRE COUNCIL,http://statistics.data.gov.uk/id/local-authority/00FC,People,Adult Serv & Hlth Improvement,Strategic Housing,Rents,Rent,GC101,4/22/2014,275664,1260,REVENUE,REDACTED PERSONAL INFORMATION,REDACTED PERSONAL INFORMATION
NORTH EAST LINCOLNSHIRE COUNCIL,http://statistics.data.gov.uk/id/local-authority/00FC,People,Adult Serv & Hlth Improvement,Strategic Housing,Rents,Rent,GC101,4/3/2014,270723,1470,REVENUE,REDACTED PERSONAL INFORMATION,REDACTED PERSONAL INFORMATION
NORTH EAST LINCOLNSHIRE COUNCIL,http://statistics.data.gov.uk/id/local-authority/00FC,People,Adult Serv & Hlth Improvement,Strategic Housing,Rents,Rent,GC101,4/1/2014,270164,420,REVENUE,REDACTED PERSONAL INFORMATION,REDACTED PERSONAL INFORMATION
NORTH EAST LINCOLNSHIRE COUNCIL,http://statistics.data.gov.uk/id/local-authority/00FC,People,Adult Serv & Hlth Improvement,Strategic Housing,Rents,Rent,GC101,4/3/2014,270736,350,REVENUE,REDACTED PERSONAL INFORMATION,REDACTED PERSONAL INFORMATION
NORTH EAST LINCOLNSHIRE COUNCIL,http://statistics.data.gov.uk/id/local-authority/00FC,People,Adult Serv & Hlth Improvement,Strategic Housing,Rents,Rent,GC101,4/3/2014,270739,280,REVENUE,REDACTED PERSONAL INFORMATION,REDACTED PERSONAL INFORMATION
NORTH EAST LINCOLNSHIRE COUNCIL,http://statistics.data.gov.uk/id/local-authority/00FC,People,Adult Serv & Hlth Improvement,Strategic Housing,Rents,Rent,GC101,4/3/2014,270752,712.5,REVENUE,REDACTED PERSONAL INFORMATION,REDACTED PERSONAL INFORMATION
NORTH EAST LINCOLNSHIRE COUNCIL,http://statistics.data.gov.uk/id/local-authority/00FC,People,Adult Serv & Hlth Improvement,Strategic Housing,Rents,Rent,GC101,4/3/2014,270751,350,REVENUE,REDACTED PERSONAL INFORMATION,REDACTED PERSONAL INFORMATION
NORTH EAST LINCOLNSHIRE COUNCIL,http://statistics.data.gov.uk/id/local-authority/00FC,People,Adult Serv & Hlth Improvement,Strategic Housing,Rents,Rent,GC101,4/3/2014,271043,540,REVENUE,REDACTED PERSONAL INFORMATION,REDACTED PERSONAL INFORMATION
NORTH EAST LINCOLNSHIRE COUNCIL,http://statistics.data.gov.uk/id/local-authority/00FC,People,Adult Serv & Hlth Improvement,Strategic Housing,Rents,Rent,GC101,4/8/2014,272128,262.5,REVENUE,REDACTED PERSONAL INFORMATION,REDACTED PERSONAL INFORMATION
NORTH EAST LINCOLNSHIRE COUNCIL,http://statistics.data.gov.uk/id/local-authority/00FC,People,Adult Serv & Hlth Improvement,Strategic Housing,Rents,Rent,GC101,4/8/2014,272130,525,REVENUE,REDACTED PERSONAL INFORMATION,REDACTED PERSONAL INFORMATION
NORTH EAST LINCOLNSHIRE COUNCIL,http://statistics.data.gov.uk/id/local-authority/00FC,People,Adult Serv & Hlth Improvement,Strategic Housing,Rents,Rent,GC101,4/8/2014,272131,379.17,REVENUE,REDACTED PERSONAL INFORMATION,REDACTED PERSONAL INFORMATION
NORTH EAST LINCOLNSHIRE COUNCIL,http://statistics.data.gov.uk/id/local-authority/00FC,People,Adult Serv & Hlth Improvement,Strategic Housing,Rents,Rent,GC101,4/8/2014,272147,612.5,REVENUE,REDACTED PERSONAL INFORMATION,REDACTED PERSONAL INFORMATION
NORTH EAST LINCOLNSHIRE COUNCIL,http://statistics.data.gov.uk/id/local-authority/00FC,People,Adult Serv & Hlth Improvement,Strategic Housing,Rents,Rent,GC101,4/10/2014,272202,408.33,REVENUE,REDACTED PERSONAL INFORMATION,REDACTED PERSONAL INFORMATION
NORTH EAST LINCOLNSHIRE COUNCIL,http://statistics.data.gov.uk/id/local-authority/00FC,People,Adult Serv & Hlth Improvement,Strategic Housing,Rents,Rent,GC101,4/10/2014,272141,810,REVENUE,REDACTED PERSONAL INFORMATION,REDACTED PERSONAL INFORMATION
NORTH EAST LINCOLNSHIRE COUNCIL,http://statistics.data.gov.uk/id/local-authority/00FC,People,Adult Serv & Hlth Improvement,Strategic Housing,Rents,Rent,GC101,4/14/2014,272959,455,REVENUE,REDACTED PERSONAL INFORMATION,REDACTED PERSONAL INFORMATION
NORTH EAST LINCOLNSHIRE COUNCIL,http://statistics.data.gov.uk/id/local-authority/00FC,People,Adult Serv & Hlth Improvement,Strategic Housing,Rents,Rent,GC101,4/14/2014,272960,550,REVENUE,REDACTED PERSONAL INFORMATION,REDACTED PERSONAL INFORMATION
NORTH EAST LINCOLNSHIRE COUNCIL,http://statistics.data.gov.uk/id/local-authority/00FC,People,Adult Serv & Hlth Improvement,Strategic Housing,Rents,Rent,GC101,4/14/2014,272962,379.17,REVENUE,REDACTED PERSONAL INFORMATION,REDACTED PERSONAL INFORMATION
NORTH EAST LINCOLNSHIRE COUNCIL,http://statistics.data.gov.uk/id/local-authority/00FC,People,Adult Serv & Hlth Improvement,Strategic Housing,Rents,Rent,GC101,4/14/2014,272963,408.33,REVENUE,REDACTED PERSONAL INFORMATION,REDACTED PERSONAL INFORMATION
NORTH EAST LINCOLNSHIRE COUNCIL,http://statistics.data.gov.uk/id/local-authority/00FC,People,Adult Serv & Hlth Improvement,Strategic Housing,Rents,Rent,GC101,4/25/2014,276396,280,REVENUE,REDACTED PERSONAL INFORMATION,REDACTED PERSONAL INFORMATION
NORTH EAST LINCOLNSHIRE COUNCIL,http://statistics.data.gov.uk/id/local-authority/00FC,People,Adult Serv & Hlth Improvement,Strategic Housing,Rents,Rent,GC101,4/25/2014,276397,280,REVENUE,REDACTED PERSONAL INFORMATION,REDACTED PERSONAL INFORMATION
NORTH EAST LINCOLNSHIRE COUNCIL,http://statistics.data.gov.uk/id/local-authority/00FC,People,Adult Serv & Hlth Improvement,Strategic Housing,Rents,Rent,GC101,4/25/2014,276393,280,REVENUE,REDACTED PERSONAL INFORMATION,REDACTED PERSONAL INFORMATION
NORTH EAST LINCOLNSHIRE COUNCIL,http://statistics.data.gov.uk/id/local-authority/00FC,People,Adult Serv & Hlth Improvement,Strategic Housing,Rents,Rent,GC101,4/25/2014,276394,280,REVENUE,REDACTED PERSONAL INFORMATION,REDACTED PERSONAL INFORMATION
NORTH EAST LINCOLNSHIRE COUNCIL,http://statistics.data.gov.uk/id/local-authority/00FC,People,Adult Serv & Hlth Improvement,Strategic Housing,Rents,Rent,GC101,4/28/2014,276321,1050,REVENUE,REDACTED PERSONAL INFORMATION,REDACTED PERSONAL INFORMATION
NORTH EAST LINCOLNSHIRE COUNCIL,http://statistics.data.gov.uk/id/local-authority/00FC,People,Adult Serv & Hlth Improvement,Strategic Housing,Contributions To Provisions,Bad Debt Provision,LK104,4/14/2014,272952,400,REVENUE,WILLOW ESTATES,104156
NORTH EAST LINCOLNSHIRE COUNCIL,http://statistics.data.gov.uk/id/local-authority/00FC,People,Adult Serv & Hlth Improvement,Strategic Housing,Private Contractors,Third Party Prov - Private,PH101,4/24/2014,276389,-38.4,,UCB HOME LOANS,125177
NORTH EAST LINCOLNSHIRE COUNCIL,http://statistics.data.gov.uk/id/local-authority/00FC,People,Adult Serv & Hlth Improvement,Strategic Housing,Private Contractors,Third Party Prov - Private,PH101,4/24/2014,276391,-399.3,,UCB HOME LOANS,125177
NORTH EAST LINCOLNSHIRE COUNCIL,http://statistics.data.gov.uk/id/local-authority/00FC,People,Adult Serv & Hlth Improvement,Strategic Housing,Private Contractors,Third Party Prov - Private,PH101,4/24/2014,276388,-465.09,,UCB HOME LOANS,125177
NORTH EAST LINCOLNSHIRE COUNCIL,http://statistics.data.gov.uk/id/local-authority/00FC,People,Adult Serv & Hlth Improvement,Strategic Housing,Private Contractors,Third Party Prov - Private,PH101,4/24/2014,276390,-688.37,,UCB HOME LOANS,125177
NORTH EAST LINCOLNSHIRE COUNCIL,http://statistics.data.gov.uk/id/local-authority/00FC,People,Adult Serv & Hlth Improvement,Strategic Housing,Private Contractors,Third Party Prov - Private,PH101,4/3/2014,270993,543.7,REVENUE,ACENDEN LTD,125290
NORTH EAST LINCOLNSHIRE COUNCIL,http://statistics.data.gov.uk/id/local-authority/00FC,People,Adult Serv & Hlth Improvement,Strategic Housing,Consultancy,Consultancy,PL101,4/10/2014,272175,423.54,REVENUE,ABRITAS LTD,102476
NORTH EAST LINCOLNSHIRE COUNCIL,http://statistics.data.gov.uk/id/local-authority/00FC,People,Adult Serv & Hlth Improvement,Improved Health Operational,Equip / Furniture / Materials,Health & Safety Supplies,LA116,4/22/2014,275283,273.8,REVENUE,DRIVE MEDICAL,101627
NORTH EAST LINCOLNSHIRE COUNCIL,http://statistics.data.gov.uk/id/local-authority/00FC,People,Adult Serv & Hlth Improvement,Improved Health Operational,Equip / Furniture / Materials,Health & Safety Supplies,LA116,4/22/2014,275281,378,REVENUE,DRIVE MEDICAL,101627
NORTH EAST LINCOLNSHIRE COUNCIL,http://statistics.data.gov.uk/id/local-authority/00FC,People,Adult Serv & Hlth Improvement,Improved Health Operational,Equip / Furniture / Materials,Health & Safety Supplies,LA116,4/29/2014,275831,368,REVENUE,CLARK & PARTNERS LTD,101269
NORTH EAST LINCOLNSHIRE COUNCIL,http://statistics.data.gov.uk/id/local-authority/00FC,People,Adult Serv & Hlth Improvement,Improved Health Operational,Equip / Furniture / Materials,Health & Safety Supplies,LA116,4/16/2014,273953,299.95,REVENUE,ARJO MED AB LTD,103268
NORTH EAST LINCOLNSHIRE COUNCIL,http://statistics.data.gov.uk/id/local-authority/00FC,People,Adult Serv & Hlth Improvement,Improved Health Operational,Equip / Furniture / Materials,Health & Safety Supplies,LA116,4/16/2014,273953,299.95,REVENUE,ARJO MED AB LTD,103268
NORTH EAST LINCOLNSHIRE COUNCIL,http://statistics.data.gov.uk/id/local-authority/00FC,People,Adult Serv & Hlth Improvement,Improved Health Operational,Equip / Furniture / Materials,Health & Safety Supplies,LA116,4/25/2014,274292,299.95,REVENUE,ARJO MED AB LTD,103268
NORTH EAST LINCOLNSHIRE COUNCIL,http://statistics.data.gov.uk/id/local-authority/00FC,People,Adult Serv & Hlth Improvement,Improved Health Operational,Equip / Furniture / Materials,Health & Safety Supplies,LA116,4/22/2014,275184,590,REVENUE,CLARK & PARTNERS LTD,101269
NORTH EAST LINCOLNSHIRE COUNCIL,http://statistics.data.gov.uk/id/local-authority/00FC,People,Adult Serv & Hlth Improvement,Improved Health Operational,Equip / Furniture / Materials,Health & Safety Supplies,LA116,4/22/2014,275067,-1490,,CLARK & PARTNERS LTD,101269
NORTH EAST LINCOLNSHIRE COUNCIL,http://statistics.data.gov.uk/id/local-authority/00FC,People,Adult Serv & Hlth Improvement,Improved Health Operational,Equip / Furniture / Materials,Health & Safety Supplies,LA116,4/25/2014,270832,1490,REVENUE,CLARK & PARTNERS LTD,101269
NORTH EAST LINCOLNSHIRE COUNCIL,http://statistics.data.gov.uk/id/local-authority/00FC,People,Adult Serv & Hlth Improvement,Improved Health Operational,Equip / Furniture / Materials,Health & Safety Supplies,LA116,4/22/2014,275281,270,REVENUE,DRIVE MEDICAL,101627
NORTH EAST LINCOLNSHIRE COUNCIL,http://statistics.data.gov.uk/id/local-authority/00FC,People,Adult Serv & Hlth Improvement,Improved Health Operational,Equip / Furniture / Materials,Health & Safety Supplies,LA116,4/16/2014,273953,359.92,REVENUE,ARJO MED AB LTD,103268
NORTH EAST LINCOLNSHIRE COUNCIL,http://statistics.data.gov.uk/id/local-authority/00FC,People,Adult Serv & Hlth Improvement,Improved Health Operational,Equip / Furniture / Materials,Health & Safety Supplies,LA116,4/3/2014,269990,3217.5,REVENUE,LISCLARE LTD,101785
NORTH EAST LINCOLNSHIRE COUNCIL,http://statistics.data.gov.uk/id/local-authority/00FC,People,Adult Serv & Hlth Improvement,Improved Health Operational,Equip / Furniture / Materials,Health & Safety Supplies,LA116,4/14/2014,262513,722.25,REVENUE,LISCLARE LTD,101785
NORTH EAST LINCOLNSHIRE COUNCIL,http://statistics.data.gov.uk/id/local-authority/00FC,People,Adult Serv & Hlth Improvement,Improved Health Operational,Equip / Furniture / Materials,Health & Safety Supplies,LA116,4/3/2014,269990,296.25,REVENUE,LISCLARE LTD,101785
NORTH EAST LINCOLNSHIRE COUNCIL,http://statistics.data.gov.uk/id/local-authority/00FC,People,Adult Serv & Hlth Improvement,Improved Health Operational,Equip / Furniture / Materials,Health & Safety Supplies,LA116,4/3/2014,269992,296.25,REVENUE,LISCLARE LTD,101785
NORTH EAST LINCOLNSHIRE COUNCIL,http://statistics.data.gov.uk/id/local-authority/00FC,People,Adult Serv & Hlth Improvement,Improved Health Operational,Equip / Furniture / Materials,Health & Safety Supplies,LA116,4/22/2014,275281,399,REVENUE,DRIVE MEDICAL,101627
NORTH EAST LINCOLNSHIRE COUNCIL,http://statistics.data.gov.uk/id/local-authority/00FC,People,Adult Serv & Hlth Improvement,Improved Health Operational,Equip / Furniture / Materials,Health & Safety Supplies,LA116,4/16/2014,274647,418.88,REVENUE,SUNRISE MEDICAL LTD,100990
NORTH EAST LINCOLNSHIRE COUNCIL,http://statistics.data.gov.uk/id/local-authority/00FC,People,Adult Serv & Hlth Improvement,Improved Health Operational,Equip / Furniture / Materials,Health & Safety Supplies,LA116,4/25/2014,266845,-61.15,,CLARK & PARTNERS LTD,101269
NORTH EAST LINCOLNSHIRE COUNCIL,http://statistics.data.gov.uk/id/local-authority/00FC,People,Adult Serv & Hlth Improvement,Improved Health Operational,Equip / Furniture / Materials,Health & Safety Supplies,LA116,4/22/2014,275546,1780,REVENUE,AQUAJOY BATHLIFTS LTD,101315
NORTH EAST LINCOLNSHIRE COUNCIL,http://statistics.data.gov.uk/id/local-authority/00FC,People,Adult Serv & Hlth Improvement,Improved Health Operational,Equip / Furniture / Materials,Health & Safety Supplies,LA116,4/22/2014,275546,790,REVENUE,AQUAJOY BATHLIFTS LTD,101315
NORTH EAST LINCOLNSHIRE COUNCIL,http://statistics.data.gov.uk/id/local-authority/00FC,People,Adult Serv & Hlth Improvement,Improved Health Operational,Equip / Furniture / Materials,Health & Safety Supplies,LA116,4/14/2014,273397,506,REVENUE,AIDAPT BATHROOMS LTD,101164
NORTH EAST LINCOLNSHIRE COUNCIL,http://statistics.data.gov.uk/id/local-authority/00FC,People,Adult Serv & Hlth Improvement,Improved Health Operational,Equip / Furniture / Materials,Health & Safety Supplies,LA116,4/22/2014,275165,397.2,REVENUE,CEFNDY HEALTHCARE,103209
NORTH EAST LINCOLNSHIRE COUNCIL,http://statistics.data.gov.uk/id/local-authority/00FC,People,Adult Serv & Hlth Improvement,Improved Health Operational,Equip / Furniture / Materials,Health & Safety Supplies,LA116,4/25/2014,274769,335,REVENUE,DOLPHIN MOBILITY EAST MIDLANDS LTD,101317
NORTH EAST LINCOLNSHIRE COUNCIL,http://statistics.data.gov.uk/id/local-authority/00FC,People,Adult Serv & Hlth Improvement,Improved Health Operational,Equip / Furniture / Materials,Health & Safety Supplies,LA116,4/1/2014,270476,285,REVENUE,DOLPHIN MOBILITY EAST MIDLANDS LTD,101317
NORTH EAST LINCOLNSHIRE COUNCIL,http://statistics.data.gov.uk/id/local-authority/00FC,People,Adult Serv & Hlth Improvement,Improved Health Operational,Equip / Furniture / Materials,Health & Safety Supplies,LA116,4/3/2014,270805,-1160,,CLARK & PARTNERS LTD,101269
NORTH EAST LINCOLNSHIRE COUNCIL,http://statistics.data.gov.uk/id/local-authority/00FC,People,Adult Serv & Hlth Improvement,Improved Health Operational,Equip / Furniture / Materials,Health & Safety Supplies,LA116,4/7/2014,271346,1160,REVENUE,CLARK & PARTNERS LTD,101269
NORTH EAST LINCOLNSHIRE COUNCIL,http://statistics.data.gov.uk/id/local-authority/00FC,People,Adult Serv & Hlth Improvement,Improved Health Operational,Equip / Furniture / Materials,Health & Safety Supplies,LA116,4/28/2014,276288,257.5,REVENUE,MANGAR INTERNATIONAL,101004
NORTH EAST LINCOLNSHIRE COUNCIL,http://statistics.data.gov.uk/id/local-authority/00FC,People,Adult Serv & Hlth Improvement,Improved Health Operational,Equip / Furniture / Materials,Health & Safety Supplies,LA116,4/28/2014,276288,495,REVENUE,MANGAR INTERNATIONAL,101004
NORTH EAST LINCOLNSHIRE COUNCIL,http://statistics.data.gov.uk/id/local-authority/00FC,People,Adult Serv & Hlth Improvement,Improved Health Operational,Equip / Furniture / Materials,Health & Safety Supplies,LA116,4/25/2014,274290,585,REVENUE,NOTTINGHAM REHAB LIMITED,101715
NORTH EAST LINCOLNSHIRE COUNCIL,http://statistics.data.gov.uk/id/local-authority/00FC,People,Adult Serv & Hlth Improvement,Improved Health Operational,Equip / Furniture / Materials,Health & Safety Supplies,LA116,4/29/2014,276689,339.5,REVENUE,NOTTINGHAM REHAB LIMITED,101715
NORTH EAST LINCOLNSHIRE COUNCIL,http://statistics.data.gov.uk/id/local-authority/00FC,People,Adult Serv & Hlth Improvement,Improved Health Operational,Equip / Furniture / Materials,Health & Safety Supplies,LA116,4/29/2014,276689,325,REVENUE,NOTTINGHAM REHAB LIMITED,101715
NORTH EAST LINCOLNSHIRE COUNCIL,http://statistics.data.gov.uk/id/local-authority/00FC,People,Adult Serv & Hlth Improvement,Improved Health Operational,Equip / Furniture / Materials,Health & Safety Supplies,LA116,4/16/2014,273953,305.97,REVENUE,ARJO MED AB LTD,103268
NORTH EAST LINCOLNSHIRE COUNCIL,http://statistics.data.gov.uk/id/local-authority/00FC,People,Adult Serv & Hlth Improvement,Improved Health Operational,Equip / Furniture / Materials,Health & Safety Supplies,LA116,4/22/2014,273817,320,REVENUE,NORTHERN HEALTHCARE,120177
NORTH EAST LINCOLNSHIRE COUNCIL,http://statistics.data.gov.uk/id/local-authority/00FC,People,Adult Serv & Hlth Improvement,Improved Health Operational,Equip / Furniture / Materials,Health & Safety Supplies,LA116,4/22/2014,275286,495,REVENUE,ARJO MED AB LTD,103268
NORTH EAST LINCOLNSHIRE COUNCIL,http://statistics.data.gov.uk/id/local-authority/00FC,People,Adult Serv & Hlth Improvement,Improved Health Operational,Equip / Furniture / Materials,Health & Safety Supplies,LA116,4/22/2014,275286,640,REVENUE,ARJO MED AB LTD,103268
NORTH EAST LINCOLNSHIRE COUNCIL,http://statistics.data.gov.uk/id/local-authority/00FC,People,Adult Serv & Hlth Improvement,Improved Health Operational,Equip / Furniture / Materials,Health & Safety Supplies,LA116,4/14/2014,272965,583,REVENUE,VIKING HARDWARE LTD,101792
NORTH EAST LINCOLNSHIRE COUNCIL,http://statistics.data.gov.uk/id/local-authority/00FC,People,Adult Serv & Hlth Improvement,Improved Health Operational,Equip / Furniture / Materials,Health & Safety Supplies,LA116,4/3/2014,269992,2883.75,REVENUE,LISCLARE LTD,101785
NORTH EAST LINCOLNSHIRE COUNCIL,http://statistics.data.gov.uk/id/local-authority/00FC,People,Adult Serv & Hlth Improvement,Improved Health Operational,Equip / Furniture / Materials,Health & Safety Supplies,LA116,4/25/2014,276202,1105,REVENUE,NEATER SOLUTIONS LTD,125286
NORTH EAST LINCOLNSHIRE COUNCIL,http://statistics.data.gov.uk/id/local-authority/00FC,People,Adult Serv & Hlth Improvement,Improved Health Operational,Equip / Furniture / Materials,Health & Safety Supplies,LA116,4/7/2014,271331,-296,,THE HELPING HAND COMPANY (LEDBURY) LTD,101134
NORTH EAST LINCOLNSHIRE COUNCIL,http://statistics.data.gov.uk/id/local-authority/00FC,People,Adult Serv & Hlth Improvement,Improved Health Operational,Equip / Furniture / Materials,Health & Safety Supplies,LA116,4/7/2014,270935,419,REVENUE,JAMES LECKEY DESIGN LIMITED,100949
NORTH EAST LINCOLNSHIRE COUNCIL,http://statistics.data.gov.uk/id/local-authority/00FC,People,Adult Serv & Hlth Improvement,Improved Health Operational,Equip / Furniture / Materials,Health & Safety Supplies,LA116,4/22/2014,275283,381.36,REVENUE,DRIVE MEDICAL,101627
NORTH EAST LINCOLNSHIRE COUNCIL,http://statistics.data.gov.uk/id/local-authority/00FC,People,Adult Serv & Hlth Improvement,Improved Health Operational,Equip / Furniture / Materials,Health & Safety Supplies,LA116,4/25/2014,276204,293.94,REVENUE,DRIVE MEDICAL,101627
NORTH EAST LINCOLNSHIRE COUNCIL,http://statistics.data.gov.uk/id/local-authority/00FC,People,Adult Serv & Hlth Improvement,Improved Health Operational,Equip / Furniture / Materials,Health & Safety Supplies,LA116,4/22/2014,275281,378,REVENUE,DRIVE MEDICAL,101627
NORTH EAST LINCOLNSHIRE COUNCIL,http://statistics.data.gov.uk/id/local-authority/00FC,People,Adult Serv & Hlth Improvement,Improved Health Operational,Equip / Furniture / Materials,Health & Safety Supplies,LA116,4/14/2014,273816,360,REVENUE,ULTIMATE CARE GROUP LTD,103469
NORTH EAST LINCOLNSHIRE COUNCIL,http://statistics.data.gov.uk/id/local-authority/00FC,People,Adult Serv & Hlth Improvement,Prevention And Wellbeing,Health Authorities,Third Pp - Health Auth,PD101,4/1/2014,270223,11472.25,REVENUE,CARERS FEDERATION LTD,121719
NORTH EAST LINCOLNSHIRE COUNCIL,http://statistics.data.gov.uk/id/local-authority/00FC,People,Adult Serv & Hlth Improvement,Prevention And Wellbeing,Private Contractors,Contract Payments,PH105,4/29/2014,275882,1183.27,REVENUE,MP CONSULTING (UK) LTD,123037
NORTH EAST LINCOLNSHIRE COUNCIL,http://statistics.data.gov.uk/id/local-authority/00FC,People,Adult Serv & Hlth Improvement,Prevention And Wellbeing,Private Contractors,Contract Payments,PH105,4/25/2014,275881,1197.98,REVENUE,MP CONSULTING (UK) LTD,123037
NORTH EAST LINCOLNSHIRE COUNCIL,http://statistics.data.gov.uk/id/local-authority/00FC,People,Adult Serv & Hlth Improvement,Prevention And Wellbeing,Private Contractors,Contract Payments,PH105,4/25/2014,276212,1000,REVENUE,MP CONSULTING (UK) LTD,123037
NORTH EAST LINCOLNSHIRE COUNCIL,http://statistics.data.gov.uk/id/local-authority/00FC,People,Adult Serv & Hlth Improvement,Prevention And Wellbeing,Private Contractors,Contract Payments,PH105,4/28/2014,276647,31632,REVENUE,UNI CONSULTING UNIQUE IMPROVEMENTS LTD,112344
NORTH EAST LINCOLNSHIRE COUNCIL,http://statistics.data.gov.uk/id/local-authority/00FC,People,Adult Serv & Hlth Improvement,Lifestyle Services Team,Clothes Uniforms And Laundry,Uniforms,LC102,4/3/2014,254709,304,REVENUE,E H ADVERTISING LIMITED,101403
NORTH EAST LINCOLNSHIRE COUNCIL,http://statistics.data.gov.uk/id/local-authority/00FC,People,Adult Serv & Hlth Improvement,Lifestyle Services Team,Communications And Computing,Computer H/Ware - Purchases,LF105,4/3/2014,271079,4450,REVENUE,NHS CENTRAL MIDLANDS CSU,119910
NORTH EAST LINCOLNSHIRE COUNCIL,http://statistics.data.gov.uk/id/local-authority/00FC,People,Adult Serv & Hlth Improvement,Lifestyle Services Team,Miscellaneous Expenses,Medical Supplies And Services,LL109,4/7/2014,271850,370.34,REVENUE,PERIVILLE CHEMIST,103960
NORTH EAST LINCOLNSHIRE COUNCIL,http://statistics.data.gov.uk/id/local-authority/00FC,People,Adult Serv & Hlth Improvement,Lifestyle Services Team,Miscellaneous Expenses,Medical Supplies And Services,LL109,4/7/2014,271853,296.12,REVENUE,ASDA PHARMACY,104011
NORTH EAST LINCOLNSHIRE COUNCIL,http://statistics.data.gov.uk/id/local-authority/00FC,People,Adult Serv & Hlth Improvement,Lifestyle Services Team,Miscellaneous Expenses,Medical Supplies And Services,LL109,4/7/2014,271861,673.91,REVENUE,LLOYDS PHARMACY,106385
NORTH EAST LINCOLNSHIRE COUNCIL,http://statistics.data.gov.uk/id/local-authority/00FC,People,Adult Serv & Hlth Improvement,Lifestyle Services Team,Miscellaneous Expenses,Medical Supplies And Services,LL109,4/7/2014,271863,988.88,REVENUE,COHENS CHEMIST,108177
NORTH EAST LINCOLNSHIRE COUNCIL,http://statistics.data.gov.uk/id/local-authority/00FC,People,Adult Serv & Hlth Improvement,Lifestyle Services Team,Miscellaneous Expenses,Medical Supplies And Services,LL109,4/15/2014,274714,1372.68,REVENUE,BIRMINGHAM CHEMIST,103907
NORTH EAST LINCOLNSHIRE COUNCIL,http://statistics.data.gov.uk/id/local-authority/00FC,People,Adult Serv & Hlth Improvement,Lifestyle Services Team,Miscellaneous Expenses,Medical Supplies And Services,LL109,4/15/2014,274717,377.44,REVENUE,ASDA PHARMACY,104011
NORTH EAST LINCOLNSHIRE COUNCIL,http://statistics.data.gov.uk/id/local-authority/00FC,People,Adult Serv & Hlth Improvement,Lifestyle Services Team,Miscellaneous Expenses,Other Expenses General,LL119,4/15/2014,272067,464,REVENUE,GEM UK MAILING SOLUTIONS LTD,108851
NORTH EAST LINCOLNSHIRE COUNCIL,http://statistics.data.gov.uk/id/local-authority/00FC,People,Adult Serv & Hlth Improvement,Lifestyle Services Team,Miscellaneous Expenses,Medical Supplies And Services,LL109,4/7/2014,271854,259.45,REVENUE,SEDGEMILL LTD,104018
NORTH EAST LINCOLNSHIRE COUNCIL,http://statistics.data.gov.uk/id/local-authority/00FC,People,Adult Serv & Hlth Improvement,Lifestyle Services Team,Miscellaneous Expenses,Medical Supplies And Services,LL109,4/7/2014,271858,385.11,REVENUE,LINCOLNSHIRE CO-OP CHEMIST LTD,104883
NORTH EAST LINCOLNSHIRE COUNCIL,http://statistics.data.gov.uk/id/local-authority/00FC,People,Adult Serv & Hlth Improvement,Developing Healthier Comm,Private Contractors,Third Party Prov - Private,PH101,4/3/2014,271011,991.93,REVENUE,SCHOOL PARTNERSHIP TRUST ACADEMIES,125298
NORTH EAST LINCOLNSHIRE COUNCIL,http://statistics.data.gov.uk/id/local-authority/00FC,People,Adult Serv & Hlth Improvement,Developing Healthier Comm,Private Contractors,Third Party Prov - Private,PH101,4/3/2014,270994,900,REVENUE,GREAT COATES VILLAGE NURSERY SCHOOL,107996
NORTH EAST LINCOLNSHIRE COUNCIL,http://statistics.data.gov.uk/id/local-authority/00FC,People,Adult Serv & Hlth Improvement,Developing Healthier Comm,Private Contractors,Third Party Prov - Private,PH101,4/3/2014,271010,1000,REVENUE,STANFORD JUNIOR & INFANTS SCHOOL,125297
NORTH EAST LINCOLNSHIRE COUNCIL,http://statistics.data.gov.uk/id/local-authority/00FC,People,Adult Serv & Hlth Improvement,Developing Healthier Comm,Private Contractors,Third Party Prov - Private,PH101,4/3/2014,271009,700,REVENUE,OASIS COMMUNITY HUB IMMINGHAM,125296
NORTH EAST LINCOLNSHIRE COUNCIL,http://statistics.data.gov.uk/id/local-authority/00FC,People,Adult Serv & Hlth Improvement,Developing Healthier Comm,Private Contractors,Third Party Prov - Private,PH101,4/3/2014,270992,1000,REVENUE,YARBOROUGH ACADEMY,112240
NORTH EAST LINCOLNSHIRE COUNCIL,http://statistics.data.gov.uk/id/local-authority/00FC,People,Adult Serv & Hlth Improvement,Developing Healthier Comm,Other Agencies,Fees And Commission All Pay,PJ144,4/3/2014,271291,2492.5,REVENUE,PCC HUMBERSIDE,120398
NORTH EAST LINCOLNSHIRE COUNCIL,http://statistics.data.gov.uk/id/local-authority/00FC,People,Childrens Services,School Access Governor Student,Indirect Employee Expenses,Staff Training,EB122,4/29/2014,276287,399,REVENUE,CAPITA BUSINESS SERVICES LTD,102314
NORTH EAST LINCOLNSHIRE COUNCIL,http://statistics.data.gov.uk/id/local-authority/00FC,People,Childrens Services,School Access Governor Student,Contract Hire-Operating Leases,Vehicles - Contract Hire,JC101,4/1/2014,269966,REDACTED COMMERCIALLY SENSITIVE,REVENUE,COXONS CARS LIMITED,100578
NORTH EAST LINCOLNSHIRE COUNCIL,http://statistics.data.gov.uk/id/local-authority/00FC,People,Childrens Services,School Access Governor Student,Contract Hire-Operating Leases,Vehicles - Contract Hire,JC101,4/1/2014,269967,REDACTED COMMERCIALLY SENSITIVE,REVENUE,COXONS CARS LIMITED,100578
NORTH EAST LINCOLNSHIRE COUNCIL,http://statistics.data.gov.uk/id/local-authority/00FC,People,Childrens Services,School Access Governor Student,Private Contractors,Concessionary Fares,PH104,4/14/2014,273848,REDACTED COMMERCIALLY SENSITIVE,REVENUE,STAGECOACH SERVICES,101404
NORTH EAST LINCOLNSHIRE COUNCIL,http://statistics.data.gov.uk/id/local-authority/00FC,People,Childrens Services,School Access Governor Student,Contract Hire-Operating Leases,Vehicles - Contract Hire,JC101,4/7/2014,271328,REDACTED COMMERCIALLY SENSITIVE,REVENUE,AMVALE LIMITED,101030
NORTH EAST LINCOLNSHIRE COUNCIL,http://statistics.data.gov.uk/id/local-authority/00FC,People,Childrens Services,School Access Governor Student,Contract Hire-Operating Leases,Vehicles - Contract Hire,JC101,4/3/2014,270584,REDACTED COMMERCIALLY SENSITIVE,REVENUE,AMVALE LIMITED,101030
NORTH EAST LINCOLNSHIRE COUNCIL,http://statistics.data.gov.uk/id/local-authority/00FC,People,Childrens Services,School Access Governor Student,Contract Hire-Operating Leases,Vehicles - Contract Hire,JC101,4/3/2014,270577,REDACTED COMMERCIALLY SENSITIVE,REVENUE,AMVALE LIMITED,101030
NORTH EAST LINCOLNSHIRE COUNCIL,http://statistics.data.gov.uk/id/local-authority/00FC,People,Childrens Services,School Access Governor Student,Contract Hire-Operating Leases,Vehicles - Contract Hire,JC101,4/3/2014,270093,REDACTED COMMERCIALLY SENSITIVE,REVENUE,FISHERS OF GRIMSBY,111965
NORTH EAST LINCOLNSHIRE COUNCIL,http://statistics.data.gov.uk/id/local-authority/00FC,People,Childrens Services,School Access Governor Student,Contract Hire-Operating Leases,Vehicles - Contract Hire,JC101,4/7/2014,271337,REDACTED COMMERCIALLY SENSITIVE,REVENUE,AMVALE LIMITED,101030
NORTH EAST LINCOLNSHIRE COUNCIL,http://statistics.data.gov.uk/id/local-authority/00FC,People,Childrens Services,School Access Governor Student,Contract Hire-Operating Leases,Vehicles - Contract Hire,JC101,4/7/2014,271339,REDACTED COMMERCIALLY SENSITIVE,REVENUE,AMVALE LIMITED,101030
NORTH EAST LINCOLNSHIRE COUNCIL,http://statistics.data.gov.uk/id/local-authority/00FC,People,Childrens Services,School Access Governor Student,Contract Hire-Operating Leases,Vehicles - Contract Hire,JC101,4/1/2014,269991,REDACTED COMMERCIALLY SENSITIVE,REVENUE,MILLMAN COACHES,100700
NORTH EAST LINCOLNSHIRE COUNCIL,http://statistics.data.gov.uk/id/local-authority/00FC,People,Childrens Services,School Access Governor Student,Private Contractors,Concessionary Fares,PH104,4/14/2014,273848,REDACTED COMMERCIALLY SENSITIVE,REVENUE,STAGECOACH SERVICES,101404
NORTH EAST LINCOLNSHIRE COUNCIL,http://statistics.data.gov.uk/id/local-authority/00FC,People,Childrens Services,School Access Governor Student,Indirect Employee Expenses,Staff Training,EB122,4/3/2014,271145,980,REVENUE,PHOENIX TRAINING,108095
NORTH EAST LINCOLNSHIRE COUNCIL,http://statistics.data.gov.uk/id/local-authority/00FC,People,Childrens Services,School Access Governor Student,Indirect Employee Expenses,Staff Training,EB122,4/3/2014,271145,840,REVENUE,PHOENIX TRAINING,108095
NORTH EAST LINCOLNSHIRE COUNCIL,http://statistics.data.gov.uk/id/local-authority/00FC,People,Childrens Services,School Access Governor Student,Contract Hire-Operating Leases,Vehicles - Contract Hire,JC101,4/1/2014,269993,REDACTED COMMERCIALLY SENSITIVE,REVENUE,MILLMAN COACHES,100700
NORTH EAST LINCOLNSHIRE COUNCIL,http://statistics.data.gov.uk/id/local-authority/00FC,People,Childrens Services,School Access Governor Student,Contract Hire-Operating Leases,Vehicles - Contract Hire,JC101,4/1/2014,270032,REDACTED COMMERCIALLY SENSITIVE,REVENUE,COXONS CARS LIMITED,100578
NORTH EAST LINCOLNSHIRE COUNCIL,http://statistics.data.gov.uk/id/local-authority/00FC,People,Childrens Services,School Access Governor Student,Contract Hire-Operating Leases,Vehicles - Contract Hire,JC101,4/3/2014,270521,REDACTED COMMERCIALLY SENSITIVE,REVENUE,AMVALE LIMITED,101030
NORTH EAST LINCOLNSHIRE COUNCIL,http://statistics.data.gov.uk/id/local-authority/00FC,People,Childrens Services,School Access Governor Student,Contract Hire-Operating Leases,Vehicles - Contract Hire,JC101,4/3/2014,270514,REDACTED COMMERCIALLY SENSITIVE,REVENUE,AMVALE LIMITED,101030
NORTH EAST LINCOLNSHIRE COUNCIL,http://statistics.data.gov.uk/id/local-authority/00FC,People,Childrens Services,School Access Governor Student,Contract Hire-Operating Leases,Vehicles - Contract Hire,JC101,4/14/2014,270052,REDACTED COMMERCIALLY SENSITIVE,REVENUE,CABBYCARS,100847
NORTH EAST LINCOLNSHIRE COUNCIL,http://statistics.data.gov.uk/id/local-authority/00FC,People,Childrens Services,School Access Governor Student,Contract Hire-Operating Leases,Vehicles - Contract Hire,JC101,4/1/2014,270011,REDACTED COMMERCIALLY SENSITIVE,REVENUE,THE BUS RUN,101522
NORTH EAST LINCOLNSHIRE COUNCIL,http://statistics.data.gov.uk/id/local-authority/00FC,People,Childrens Services,School Access Governor Student,Contract Hire-Operating Leases,Vehicles - Contract Hire,JC101,4/3/2014,268214,REDACTED COMMERCIALLY SENSITIVE,REVENUE,AMVALE LIMITED,101030
NORTH EAST LINCOLNSHIRE COUNCIL,http://statistics.data.gov.uk/id/local-authority/00FC,People,Childrens Services,School Access Governor Student,Contract Hire-Operating Leases,Vehicles - Contract Hire,JC101,4/30/2014,273809,REDACTED COMMERCIALLY SENSITIVE,REVENUE,AMVALE LIMITED,101030
NORTH EAST LINCOLNSHIRE COUNCIL,http://statistics.data.gov.uk/id/local-authority/00FC,People,Childrens Services,School Access Governor Student,Contract Hire-Operating Leases,Vehicles - Contract Hire,JC101,4/3/2014,270513,REDACTED COMMERCIALLY SENSITIVE,REVENUE,AMVALE LIMITED,101030
NORTH EAST LINCOLNSHIRE COUNCIL,http://statistics.data.gov.uk/id/local-authority/00FC,People,Childrens Services,School Access Governor Student,Contract Hire-Operating Leases,Vehicles - Contract Hire,JC101,4/1/2014,269977,REDACTED COMMERCIALLY SENSITIVE,REVENUE,COXONS CARS LIMITED,100578
NORTH EAST LINCOLNSHIRE COUNCIL,http://statistics.data.gov.uk/id/local-authority/00FC,People,Childrens Services,School Access Governor Student,Contract Hire-Operating Leases,Vehicles - Contract Hire,JC101,4/3/2014,270029,REDACTED COMMERCIALLY SENSITIVE,REVENUE,REDACTED PERSONAL INFORMATION,REDACTED PERSONAL INFORMATION
NORTH EAST LINCOLNSHIRE COUNCIL,http://statistics.data.gov.uk/id/local-authority/00FC,People,Childrens Services,School Access Governor Student,Contract Hire-Operating Leases,Vehicles - Contract Hire,JC101,4/7/2014,268149,REDACTED COMMERCIALLY SENSITIVE,REVENUE,AMVALE LIMITED,101030
NORTH EAST LINCOLNSHIRE COUNCIL,http://statistics.data.gov.uk/id/local-authority/00FC,People,Childrens Services,School Access Governor Student,Contract Hire-Operating Leases,Vehicles - Contract Hire,JC101,4/7/2014,270589,REDACTED COMMERCIALLY SENSITIVE,REVENUE,AMVALE LIMITED,101030
NORTH EAST LINCOLNSHIRE COUNCIL,http://statistics.data.gov.uk/id/local-authority/00FC,People,Childrens Services,School Access Governor Student,Contract Hire-Operating Leases,Vehicles - Contract Hire,JC101,4/3/2014,270512,REDACTED COMMERCIALLY SENSITIVE,REVENUE,AMVALE LIMITED,101030
NORTH EAST LINCOLNSHIRE COUNCIL,http://statistics.data.gov.uk/id/local-authority/00FC,People,Childrens Services,School Access Governor Student,Contract Hire-Operating Leases,Vehicles - Contract Hire,JC101,4/3/2014,270588,REDACTED COMMERCIALLY SENSITIVE,REVENUE,AMVALE LIMITED,101030
NORTH EAST LINCOLNSHIRE COUNCIL,http://statistics.data.gov.uk/id/local-authority/00FC,People,Childrens Services,School Access Governor Student,Contract Hire-Operating Leases,Vehicles - Contract Hire,JC101,4/3/2014,270520,REDACTED COMMERCIALLY SENSITIVE,REVENUE,AMVALE LIMITED,101030
NORTH EAST LINCOLNSHIRE COUNCIL,http://statistics.data.gov.uk/id/local-authority/00FC,People,Childrens Services,School Access Governor Student,Contract Hire-Operating Leases,Vehicles - Contract Hire,JC101,4/7/2014,268145,REDACTED COMMERCIALLY SENSITIVE,REVENUE,AMVALE LIMITED,101030
NORTH EAST LINCOLNSHIRE COUNCIL,http://statistics.data.gov.uk/id/local-authority/00FC,People,Childrens Services,School Access Governor Student,Contract Hire-Operating Leases,Vehicles - Contract Hire,JC101,4/7/2014,270587,REDACTED COMMERCIALLY SENSITIVE,REVENUE,AMVALE LIMITED,101030
NORTH EAST LINCOLNSHIRE COUNCIL,http://statistics.data.gov.uk/id/local-authority/00FC,People,Childrens Services,School Access Governor Student,Contract Hire-Operating Leases,Vehicles - Contract Hire,JC101,4/7/2014,268144,REDACTED COMMERCIALLY SENSITIVE,REVENUE,AMVALE LIMITED,101030
NORTH EAST LINCOLNSHIRE COUNCIL,http://statistics.data.gov.uk/id/local-authority/00FC,People,Childrens Services,School Access Governor Student,Contract Hire-Operating Leases,Vehicles - Contract Hire,JC101,4/3/2014,270511,REDACTED COMMERCIALLY SENSITIVE,REVENUE,AMVALE LIMITED,101030
NORTH EAST LINCOLNSHIRE COUNCIL,http://statistics.data.gov.uk/id/local-authority/00FC,People,Childrens Services,School Access Governor Student,Contract Hire-Operating Leases,Vehicles - Contract Hire,JC101,4/3/2014,270585,REDACTED COMMERCIALLY SENSITIVE,REVENUE,AMVALE LIMITED,101030
NORTH EAST LINCOLNSHIRE COUNCIL,http://statistics.data.gov.uk/id/local-authority/00FC,People,Childrens Services,School Access Governor Student,Contract Hire-Operating Leases,Vehicles - Contract Hire,JC101,4/28/2014,275589,REDACTED COMMERCIALLY SENSITIVE,REVENUE,AMVALE LIMITED,101030
NORTH EAST LINCOLNSHIRE COUNCIL,http://statistics.data.gov.uk/id/local-authority/00FC,People,Childrens Services,School Access Governor Student,Contributions To Provisions,Contributions - Other,LK103,4/14/2014,224986,581.63,REVENUE,REDACTED PERSONAL INFORMATION,REDACTED PERSONAL INFORMATION
NORTH EAST LINCOLNSHIRE COUNCIL,http://statistics.data.gov.uk/id/local-authority/00FC,People,Childrens Services,Strategic Management,Indirect Employee Expenses,Allowances - Employees,EB110,4/8/2014,272668,567,REVENUE,GRIMSBY & DISTRICT TEACHERS ASSOCIATION,107358
NORTH EAST LINCOLNSHIRE COUNCIL,http://statistics.data.gov.uk/id/local-authority/00FC,People,Childrens Services,Strategic Management,Indirect Employee Expenses,Allowances - Employees,EB110,4/15/2014,274838,1215,REVENUE,NASUWT G76 GRIMSBY & DISTRICT,107363
NORTH EAST LINCOLNSHIRE COUNCIL,http://statistics.data.gov.uk/id/local-authority/00FC,People,Childrens Services,Strategic Management,Expenses,Course/Conf Accom - Employees,LH102,4/3/2014,270012,780,REVENUE,THE ASSOCIATION OF DIRECTORS OF CHILDREN'S,101800
NORTH EAST LINCOLNSHIRE COUNCIL,http://statistics.data.gov.uk/id/local-authority/00FC,People,Childrens Services,Strategic Management,Contributions To Provisions,Contributions - Other,LK103,4/7/2014,270953,490,REVENUE,ROTHERHAM METROPOLITAN BOROUGH COUNCIL,104253
NORTH EAST LINCOLNSHIRE COUNCIL,http://statistics.data.gov.uk/id/local-authority/00FC,People,Childrens Services,Sen/Inclusion,Direct Employee Expenses,Agency Staff,EA105,4/3/2014,270478,1161.09,REVENUE,IDM CONSULTING,119926
NORTH EAST LINCOLNSHIRE COUNCIL,http://statistics.data.gov.uk/id/local-authority/00FC,People,Childrens Services,Sen/Inclusion,Direct Employee Expenses,Agency Staff,EA105,4/15/2014,273001,1458.62,REVENUE,IDM CONSULTING,119926
NORTH EAST LINCOLNSHIRE COUNCIL,http://statistics.data.gov.uk/id/local-authority/00FC,People,Childrens Services,Sen/Inclusion,Consultancy,Consultancy,PL101,4/10/2014,270784,2472.24,REVENUE,GLENN ALLGOOD,109255
NORTH EAST LINCOLNSHIRE COUNCIL,http://statistics.data.gov.uk/id/local-authority/00FC,People,Childrens Services,Sen/Inclusion,Consultancy,Consultancy,PL101,4/22/2014,275294,252.83,REVENUE,GLENN ALLGOOD,109255
NORTH EAST LINCOLNSHIRE COUNCIL,http://statistics.data.gov.uk/id/local-authority/00FC,People,Childrens Services,Sen/Inclusion,Consultancy,Consultancy,PL101,4/30/2014,275301,2700,REVENUE,GLENN ALLGOOD,109255
NORTH EAST LINCOLNSHIRE COUNCIL,http://statistics.data.gov.uk/id/local-authority/00FC,People,Childrens Services,Sen/Inclusion,Direct Employee Expenses,Agency Staff,EA105,4/22/2014,275534,2325,REVENUE,THE EDUCATIONAL GUIDANCE SERVICE,123054
NORTH EAST LINCOLNSHIRE COUNCIL,http://statistics.data.gov.uk/id/local-authority/00FC,People,Childrens Services,Sen/Inclusion,Direct Employee Expenses,Agency Staff,EA105,4/22/2014,275535,2325,REVENUE,THE EDUCATIONAL GUIDANCE SERVICE,123054
NORTH EAST LINCOLNSHIRE COUNCIL,http://statistics.data.gov.uk/id/local-authority/00FC,People,Childrens Services,Sen/Inclusion,Direct Employee Expenses,Agency Staff,EA105,4/22/2014,275534,2325,REVENUE,THE EDUCATIONAL GUIDANCE SERVICE,123054
NORTH EAST LINCOLNSHIRE COUNCIL,http://statistics.data.gov.uk/id/local-authority/00FC,People,Childrens Services,Sen/Inclusion,Direct Employee Expenses,Agency Staff,EA105,4/22/2014,275535,2325,REVENUE,THE EDUCATIONAL GUIDANCE SERVICE,123054
NORTH EAST LINCOLNSHIRE COUNCIL,http://statistics.data.gov.uk/id/local-authority/00FC,People,Childrens Services,Sen/Inclusion,Other Local Authorities,Third Pp - Other Local Auth,PC101,4/22/2014,275532,4554.89,REVENUE,NEW OPTIONS LTD,105590
NORTH EAST LINCOLNSHIRE COUNCIL,http://statistics.data.gov.uk/id/local-authority/00FC,People,Childrens Services,Sen/Inclusion,Other Local Authorities,Third Pp - Other Local Auth,PC101,4/22/2014,275531,1842.1,REVENUE,NEW OPTIONS LTD,105590
NORTH EAST LINCOLNSHIRE COUNCIL,http://statistics.data.gov.uk/id/local-authority/00FC,People,Childrens Services,Sen/Inclusion,Other Local Authorities,Third Pp - Other Local Auth,PC101,4/22/2014,275533,5101.2,REVENUE,NEW OPTIONS LTD,105590
NORTH EAST LINCOLNSHIRE COUNCIL,http://statistics.data.gov.uk/id/local-authority/00FC,People,Childrens Services,Sen/Inclusion,Other Local Authorities,Third Pp - Other Local Auth,PC101,4/15/2014,274028,3077.85,REVENUE,REFLEXION CARE GROUP LIMITED,106975
NORTH EAST LINCOLNSHIRE COUNCIL,http://statistics.data.gov.uk/id/local-authority/00FC,People,Childrens Services,Sen/Inclusion,Other Local Authorities,Third Pp - Other Local Auth,PC101,4/22/2014,275525,9000,REVENUE,REDACTED PERSONAL INFORMATION,REDACTED PERSONAL INFORMATION
NORTH EAST LINCOLNSHIRE COUNCIL,http://statistics.data.gov.uk/id/local-authority/00FC,People,Childrens Services,Sen/Inclusion,Other Local Authorities,Third Pp - Other Local Auth,PC101,4/22/2014,275526,15000,REVENUE,REDACTED PERSONAL INFORMATION,REDACTED PERSONAL INFORMATION
NORTH EAST LINCOLNSHIRE COUNCIL,http://statistics.data.gov.uk/id/local-authority/00FC,People,Childrens Services,Sen/Inclusion,Other Local Authorities,Third Pp - Other Local Auth,PC101,4/22/2014,275528,9000,REVENUE,REDACTED PERSONAL INFORMATION,REDACTED PERSONAL INFORMATION
NORTH EAST LINCOLNSHIRE COUNCIL,http://statistics.data.gov.uk/id/local-authority/00FC,People,Childrens Services,Sen/Inclusion,Other Local Authorities,Third Pp - Other Local Auth,PC101,4/22/2014,275529,9000,REVENUE,REDACTED PERSONAL INFORMATION,REDACTED PERSONAL INFORMATION
NORTH EAST LINCOLNSHIRE COUNCIL,http://statistics.data.gov.uk/id/local-authority/00FC,People,Childrens Services,Sen/Inclusion,Other Local Authorities,Third Pp - Other Local Auth,PC101,4/22/2014,275522,9000,REVENUE,REDACTED PERSONAL INFORMATION,REDACTED PERSONAL INFORMATION
NORTH EAST LINCOLNSHIRE COUNCIL,http://statistics.data.gov.uk/id/local-authority/00FC,People,Childrens Services,Sen/Inclusion,Other Local Authorities,Third Pp - Other Local Auth,PC101,4/22/2014,275523,9000,REVENUE,REDACTED PERSONAL INFORMATION,REDACTED PERSONAL INFORMATION
NORTH EAST LINCOLNSHIRE COUNCIL,http://statistics.data.gov.uk/id/local-authority/00FC,People,Childrens Services,Sen/Inclusion,Other Local Authorities,Third Pp - Other Local Auth,PC101,4/22/2014,275530,9000,REVENUE,REDACTED PERSONAL INFORMATION,REDACTED PERSONAL INFORMATION
NORTH EAST LINCOLNSHIRE COUNCIL,http://statistics.data.gov.uk/id/local-authority/00FC,People,Childrens Services,Sen/Inclusion,Other Local Authorities,Third Pp - Other Local Auth,PC101,4/3/2014,271092,96899.12,REVENUE,REDACTED PERSONAL INFORMATION,REDACTED PERSONAL INFORMATION
NORTH EAST LINCOLNSHIRE COUNCIL,http://statistics.data.gov.uk/id/local-authority/00FC,People,Childrens Services,Sen/Inclusion,Other Local Authorities,Third Pp - Other Local Auth,PC101,4/3/2014,271093,51300.67,REVENUE,REDACTED PERSONAL INFORMATION,REDACTED PERSONAL INFORMATION
NORTH EAST LINCOLNSHIRE COUNCIL,http://statistics.data.gov.uk/id/local-authority/00FC,People,Childrens Services,Sen/Inclusion,Other Local Authorities,Third Pp - Other Local Auth,PC101,4/10/2014,272999,5028.92,REVENUE,DKM ASSESSMENT & VERIFICATION LTD,101643
NORTH EAST LINCOLNSHIRE COUNCIL,http://statistics.data.gov.uk/id/local-authority/00FC,People,Childrens Services,Sen/Inclusion,Other Local Authorities,Third Pp - Other Local Auth,PC101,4/15/2014,272998,351,REVENUE,DKM ASSESSMENT & VERIFICATION LTD,101643
NORTH EAST LINCOLNSHIRE COUNCIL,http://statistics.data.gov.uk/id/local-authority/00FC,People,Childrens Services,Sen/Inclusion,Other Local Authorities,Third Pp - Other Local Auth,PC101,4/22/2014,275293,3563.75,REVENUE,LINCOLNSHIRE COUNTY COUNCIL,100389
NORTH EAST LINCOLNSHIRE COUNCIL,http://statistics.data.gov.uk/id/local-authority/00FC,People,Childrens Services,Sen/Inclusion,Other Local Authorities,Third Pp - Other Local Auth,PC101,4/3/2014,270463,3047.07,REVENUE,REFLEXION CARE GROUP LIMITED,106975
NORTH EAST LINCOLNSHIRE COUNCIL,http://statistics.data.gov.uk/id/local-authority/00FC,People,Childrens Services,Sen/Inclusion,Other Local Authorities,Third Pp - Other Local Auth,PC101,4/3/2014,270576,1166.67,REVENUE,REDACTED PERSONAL INFORMATION,REDACTED PERSONAL INFORMATION
NORTH EAST LINCOLNSHIRE COUNCIL,http://statistics.data.gov.uk/id/local-authority/00FC,People,Childrens Services,Sen/Inclusion,Other Local Authorities,Third Pp - Other Local Auth,PC101,4/7/2014,270762,1166.67,REVENUE,REDACTED PERSONAL INFORMATION,REDACTED PERSONAL INFORMATION
NORTH EAST LINCOLNSHIRE COUNCIL,http://statistics.data.gov.uk/id/local-authority/00FC,People,Childrens Services,Sen/Inclusion,Other Local Authorities,Third Pp - Other Local Auth,PC101,4/15/2014,274019,5356,REVENUE,REDACTED PERSONAL INFORMATION,REDACTED PERSONAL INFORMATION
NORTH EAST LINCOLNSHIRE COUNCIL,http://statistics.data.gov.uk/id/local-authority/00FC,People,Childrens Services,Sen/Inclusion,Other Local Authorities,Third Pp - Other Local Auth,PC101,4/3/2014,271088,19990,REVENUE,REDACTED PERSONAL INFORMATION,REDACTED PERSONAL INFORMATION
NORTH EAST LINCOLNSHIRE COUNCIL,http://statistics.data.gov.uk/id/local-authority/00FC,People,Childrens Services,Sen/Inclusion,Other Local Authorities,Third Pp - Other Local Auth,PC101,4/3/2014,271090,19990,REVENUE,REDACTED PERSONAL INFORMATION,REDACTED PERSONAL INFORMATION
NORTH EAST LINCOLNSHIRE COUNCIL,http://statistics.data.gov.uk/id/local-authority/00FC,People,Childrens Services,Sen/Inclusion,Private Contractors,Third Party Prov - Private,PH101,4/10/2014,272055,16802.52,REVENUE,ST HELENS COUNCIL,122955
NORTH EAST LINCOLNSHIRE COUNCIL,http://statistics.data.gov.uk/id/local-authority/00FC,People,Childrens Services,Sen/Inclusion,Private Contractors,Third Party Prov - Private,PH101,4/22/2014,275319,12842.99,REVENUE,ADVANCED CHILDCARE,119448
NORTH EAST LINCOLNSHIRE COUNCIL,http://statistics.data.gov.uk/id/local-authority/00FC,People,Childrens Services,Sen/Inclusion,Private Contractors,Third Party Prov - Private,PH101,4/15/2014,274028,3100,REVENUE,REFLEXION CARE GROUP LIMITED,106975
NORTH EAST LINCOLNSHIRE COUNCIL,http://statistics.data.gov.uk/id/local-authority/00FC,People,Childrens Services,Sen/Inclusion,Private Contractors,Third Party Prov - Private,PH101,4/15/2014,274028,13285.71,REVENUE,REFLEXION CARE GROUP LIMITED,106975
NORTH EAST LINCOLNSHIRE COUNCIL,http://statistics.data.gov.uk/id/local-authority/00FC,People,Childrens Services,Sen/Inclusion,Private Contractors,Third Party Prov - Private,PH101,4/10/2014,270477,21478.66,REVENUE,PHYSIS QUANTUM,118777
NORTH EAST LINCOLNSHIRE COUNCIL,http://statistics.data.gov.uk/id/local-authority/00FC,People,Childrens Services,Sen/Inclusion,Private Contractors,Third Party Prov - Private,PH101,4/10/2014,273204,19400.08,REVENUE,PHYSIS QUANTUM,118777
NORTH EAST LINCOLNSHIRE COUNCIL,http://statistics.data.gov.uk/id/local-authority/00FC,People,Childrens Services,Sen/Inclusion,Private Contractors,Third Party Prov - Private,PH101,4/22/2014,275521,8142.9,REVENUE,KEYS CHILDCARE LTD,122934
NORTH EAST LINCOLNSHIRE COUNCIL,http://statistics.data.gov.uk/id/local-authority/00FC,People,Childrens Services,Sen/Inclusion,Private Contractors,Third Party Prov - Private,PH101,4/7/2014,268365,15500,REVENUE,MEADOWS CARE LTD,120773
NORTH EAST LINCOLNSHIRE COUNCIL,http://statistics.data.gov.uk/id/local-authority/00FC,People,Childrens Services,Sen/Inclusion,Private Contractors,Third Party Prov - Private,PH101,4/15/2014,274026,17160.67,REVENUE,MEADOWS CARE LTD,120773
NORTH EAST LINCOLNSHIRE COUNCIL,http://statistics.data.gov.uk/id/local-authority/00FC,People,Childrens Services,Sen/Inclusion,Private Contractors,Third Party Prov - Private,PH101,4/22/2014,275315,600,REVENUE,ROCK FOUNDATION UK LTD,100481
NORTH EAST LINCOLNSHIRE COUNCIL,http://statistics.data.gov.uk/id/local-authority/00FC,People,Childrens Services,Sen/Inclusion,Private Contractors,Third Party Prov - Private,PH101,4/22/2014,273797,18602.79,REVENUE,ST HELENS COUNCIL,122955
NORTH EAST LINCOLNSHIRE COUNCIL,http://statistics.data.gov.uk/id/local-authority/00FC,People,Childrens Services,Sen/Inclusion,Private Contractors,Third Party Prov - Private,PH101,4/3/2014,270463,18852.41,REVENUE,REFLEXION CARE GROUP LIMITED,106975
NORTH EAST LINCOLNSHIRE COUNCIL,http://statistics.data.gov.uk/id/local-authority/00FC,People,Childrens Services,Sen/Inclusion,Private Contractors,Third Party Prov - Private,PH101,4/10/2014,272997,19928.66,REVENUE,TIMEOUT HOMES LTD,110615
NORTH EAST LINCOLNSHIRE COUNCIL,http://statistics.data.gov.uk/id/local-authority/00FC,People,Childrens Services,Sen/Inclusion,Private Contractors,Third Party Prov - Private,PH101,4/15/2014,274027,1050,REVENUE,LINKAGE COMMUNITY TRUST LTD,104471
NORTH EAST LINCOLNSHIRE COUNCIL,http://statistics.data.gov.uk/id/local-authority/00FC,People,Childrens Services,Sen/Inclusion,Direct Employee Expenses,Agency Staff,EA105,4/22/2014,275308,868.75,REVENUE,CASH FRIDAY,124740
NORTH EAST LINCOLNSHIRE COUNCIL,http://statistics.data.gov.uk/id/local-authority/00FC,People,Childrens Services,Sen/Inclusion,Direct Employee Expenses,Agency Staff,EA105,4/22/2014,275308,1390,REVENUE,CASH FRIDAY,124740
NORTH EAST LINCOLNSHIRE COUNCIL,http://statistics.data.gov.uk/id/local-authority/00FC,People,Childrens Services,Sen/Inclusion,Direct Employee Expenses,Agency Staff,EA105,4/1/2014,270241,2597.5,REVENUE,CASH FRIDAY,124740
NORTH EAST LINCOLNSHIRE COUNCIL,http://statistics.data.gov.uk/id/local-authority/00FC,People,Childrens Services,Sen/Inclusion,Direct Employee Expenses,Agency Staff,EA105,4/15/2014,274031,775,REVENUE,THE EDUCATIONAL GUIDANCE SERVICE,123054
NORTH EAST LINCOLNSHIRE COUNCIL,http://statistics.data.gov.uk/id/local-authority/00FC,People,Childrens Services,Sen/Inclusion,Direct Employee Expenses,Agency Staff,EA105,4/15/2014,274008,1550,REVENUE,THE EDUCATIONAL GUIDANCE SERVICE,123054
NORTH EAST LINCOLNSHIRE COUNCIL,http://statistics.data.gov.uk/id/local-authority/00FC,People,Childrens Services,Sen/Inclusion,Direct Employee Expenses,Agency Staff,EA105,4/15/2014,274008,1550,REVENUE,THE EDUCATIONAL GUIDANCE SERVICE,123054
NORTH EAST LINCOLNSHIRE COUNCIL,http://statistics.data.gov.uk/id/local-authority/00FC,People,Childrens Services,Sen/Inclusion,Direct Employee Expenses,Agency Staff,EA105,4/15/2014,274031,775,REVENUE,THE EDUCATIONAL GUIDANCE SERVICE,123054
NORTH EAST LINCOLNSHIRE COUNCIL,http://statistics.data.gov.uk/id/local-authority/00FC,People,Childrens Services,Sen/Inclusion,Direct Employee Expenses,Agency Staff,EA105,4/15/2014,274008,775,REVENUE,THE EDUCATIONAL GUIDANCE SERVICE,123054
NORTH EAST LINCOLNSHIRE COUNCIL,http://statistics.data.gov.uk/id/local-authority/00FC,People,Childrens Services,Sen/Inclusion,Direct Employee Expenses,Agency Staff,EA105,4/15/2014,274031,775,REVENUE,THE EDUCATIONAL GUIDANCE SERVICE,123054
NORTH EAST LINCOLNSHIRE COUNCIL,http://statistics.data.gov.uk/id/local-authority/00FC,People,Childrens Services,Sen/Inclusion,Direct Employee Expenses,Agency Staff,EA105,4/14/2014,273720,4650,REVENUE,THE EDUCATIONAL GUIDANCE SERVICE,123054
NORTH EAST LINCOLNSHIRE COUNCIL,http://statistics.data.gov.uk/id/local-authority/00FC,People,Childrens Services,Sen/Inclusion,Direct Employee Expenses,Agency Staff,EA105,4/14/2014,273720,2325,REVENUE,THE EDUCATIONAL GUIDANCE SERVICE,123054
NORTH EAST LINCOLNSHIRE COUNCIL,http://statistics.data.gov.uk/id/local-authority/00FC,People,Childrens Services,Sen/Inclusion,Direct Employee Expenses,Agency Staff,EA105,4/28/2014,275594,1800,REVENUE,JD CONSULTANTS (LANCASHIRE) LTD,122344
NORTH EAST LINCOLNSHIRE COUNCIL,http://statistics.data.gov.uk/id/local-authority/00FC,People,Childrens Services,Sen/Inclusion,Direct Employee Expenses,Agency Staff,EA105,4/22/2014,275317,1200,REVENUE,JD CONSULTANTS (LANCASHIRE) LTD,122344
NORTH EAST LINCOLNSHIRE COUNCIL,http://statistics.data.gov.uk/id/local-authority/00FC,People,Childrens Services,Sen/Inclusion,Direct Employee Expenses,Agency Staff,EA105,4/22/2014,275316,1800,REVENUE,JD CONSULTANTS (LANCASHIRE) LTD,122344
NORTH EAST LINCOLNSHIRE COUNCIL,http://statistics.data.gov.uk/id/local-authority/00FC,People,Childrens Services,Sen/Inclusion,Indirect Employee Expenses,Staff Advertising,EB113,4/25/2014,262206,745,REVENUE,PENNA COMMUNICATIONS,102320
NORTH EAST LINCOLNSHIRE COUNCIL,http://statistics.data.gov.uk/id/local-authority/00FC,People,Childrens Services,Sen/Inclusion,Equip / Furniture / Materials,Teaching Materials,LA117,4/14/2014,272183,307.6,REVENUE,REAL GROUP (UK) lTD,125240
NORTH EAST LINCOLNSHIRE COUNCIL,http://statistics.data.gov.uk/id/local-authority/00FC,People,Childrens Services,Sen/Inclusion,Contributions To Provisions,Contributions - Other,LK103,4/10/2014,272481,651,REVENUE,CHEADLE ROYAL HOSPITAL,125234
NORTH EAST LINCOLNSHIRE COUNCIL,http://statistics.data.gov.uk/id/local-authority/00FC,People,Childrens Services,Sen/Inclusion,Contributions To Provisions,Contributions - Other,LK103,4/7/2014,271344,3880,REVENUE,N LINCS & GOOLE HOSPITALS NHS,111074
NORTH EAST LINCOLNSHIRE COUNCIL,http://statistics.data.gov.uk/id/local-authority/00FC,People,Childrens Services,Sen/Inclusion,Contributions To Provisions,Contributions - Other,LK103,4/10/2014,273000,3880,REVENUE,N LINCS & GOOLE HOSPITALS NHS,111074
NORTH EAST LINCOLNSHIRE COUNCIL,http://statistics.data.gov.uk/id/local-authority/00FC,People,Childrens Services,Sen/Inclusion,Contributions To Provisions,Contributions - Other,LK103,4/22/2014,275215,3880,REVENUE,N LINCS & GOOLE HOSPITALS NHS,111074
NORTH EAST LINCOLNSHIRE COUNCIL,http://statistics.data.gov.uk/id/local-authority/00FC,People,Childrens Services,Sen/Inclusion,Contributions To Provisions,Contributions - Other,LK103,4/3/2014,271205,595.6,REVENUE,NEWCASTLE CITY COUNCIL,124716
NORTH EAST LINCOLNSHIRE COUNCIL,http://statistics.data.gov.uk/id/local-authority/00FC,People,Childrens Services,Sen/Inclusion,Other Local Authorities,Third Pp - Other Local Auth,PC101,4/25/2014,276247,3880,REVENUE,N LINCS & GOOLE HOSPITALS NHS,111074
NORTH EAST LINCOLNSHIRE COUNCIL,http://statistics.data.gov.uk/id/local-authority/00FC,People,Childrens Services,Sen/Inclusion,Direct Employee Expenses,Agency Staff,EA105,4/3/2014,270735,365.95,REVENUE,MATRIX SCM LTD,108117
NORTH EAST LINCOLNSHIRE COUNCIL,http://statistics.data.gov.uk/id/local-authority/00FC,People,Childrens Services,Sen/Inclusion,Direct Employee Expenses,Agency Staff,EA105,4/10/2014,273016,3570,REVENUE,FIONA MACAULAY EDUCATION CONSULTANT -SEN,112087
NORTH EAST LINCOLNSHIRE COUNCIL,http://statistics.data.gov.uk/id/local-authority/00FC,People,Childrens Services,Sen/Inclusion,Direct Employee Expenses,Agency Staff,EA105,4/22/2014,275114,334.68,REVENUE,MATRIX SCM LTD,108117
NORTH EAST LINCOLNSHIRE COUNCIL,http://statistics.data.gov.uk/id/local-authority/00FC,People,Childrens Services,Sen/Inclusion,Direct Employee Expenses,Agency Staff,EA105,4/3/2014,270958,365.95,REVENUE,MATRIX SCM LTD,108117
NORTH EAST LINCOLNSHIRE COUNCIL,http://statistics.data.gov.uk/id/local-authority/00FC,People,Childrens Services,Sen/Inclusion,Direct Employee Expenses,Agency Staff,EA105,4/7/2014,271867,296.72,REVENUE,MATRIX SCM LTD,108117
NORTH EAST LINCOLNSHIRE COUNCIL,http://statistics.data.gov.uk/id/local-authority/00FC,People,Childrens Services,Sen/Inclusion,Direct Employee Expenses,Agency Staff,EA105,4/10/2014,272432,381.49,REVENUE,MATRIX SCM LTD,108117
NORTH EAST LINCOLNSHIRE COUNCIL,http://statistics.data.gov.uk/id/local-authority/00FC,People,Childrens Services,Sen/Inclusion,Equip / Furniture / Materials,Teaching Materials,LA117,4/7/2014,269969,695,REVENUE,PEARSON EDUCATION,101979
NORTH EAST LINCOLNSHIRE COUNCIL,http://statistics.data.gov.uk/id/local-authority/00FC,People,Childrens Services,Sen/Inclusion,Equip / Furniture / Materials,Teaching Materials,LA117,4/7/2014,269969,502,REVENUE,PEARSON EDUCATION,101979
NORTH EAST LINCOLNSHIRE COUNCIL,http://statistics.data.gov.uk/id/local-authority/00FC,People,Childrens Services,Sen/Inclusion,Equip / Furniture / Materials,Teaching Materials,LA117,4/7/2014,269969,468,REVENUE,PEARSON EDUCATION,101979
NORTH EAST LINCOLNSHIRE COUNCIL,http://statistics.data.gov.uk/id/local-authority/00FC,People,Childrens Services,Sen/Inclusion,Equip / Furniture / Materials,Teaching Materials,LA117,4/7/2014,269969,421.2,REVENUE,PEARSON EDUCATION,101979
NORTH EAST LINCOLNSHIRE COUNCIL,http://statistics.data.gov.uk/id/local-authority/00FC,People,Childrens Services,Sen/Inclusion,Private Contractors,Concessionary Fares,PH104,4/7/2014,271891,REDACTED COMMERCIALLY SENSITIVE,REVENUE,DKM ASSESSMENT & VERIFICATION LTD,101643
NORTH EAST LINCOLNSHIRE COUNCIL,http://statistics.data.gov.uk/id/local-authority/00FC,People,Childrens Services,Sen/Inclusion,Private Contractors,Third Party Prov - Private,PH101,4/10/2014,272005,6512,REVENUE,THE GRIMSBY INSTITUTE OF FURTHER,102742
NORTH EAST LINCOLNSHIRE COUNCIL,http://statistics.data.gov.uk/id/local-authority/00FC,People,Childrens Services,Sen/Inclusion,Private Contractors,Third Party Prov - Private,PH101,4/29/2014,276670,8787,REVENUE,THE GRIMSBY INSTITUTE OF FURTHER,102742
NORTH EAST LINCOLNSHIRE COUNCIL,http://statistics.data.gov.uk/id/local-authority/00FC,People,Childrens Services,Sen/Inclusion,Private Contractors,Third Party Prov - Private,PH101,4/14/2014,273049,28249.8,REVENUE,PLAYSPORTS,107535
NORTH EAST LINCOLNSHIRE COUNCIL,http://statistics.data.gov.uk/id/local-authority/00FC,People,Childrens Services,Sen/Inclusion,Private Contractors,Third Party Prov - Private,PH101,4/22/2014,275264,9956,REVENUE,A4E CONSULT LTD,101656
NORTH EAST LINCOLNSHIRE COUNCIL,http://statistics.data.gov.uk/id/local-authority/00FC,People,Childrens Services,Sen/Inclusion,Private Contractors,Third Party Prov - Private,PH101,4/29/2014,275883,378,REVENUE,DKM ASSESSMENT & VERIFICATION LTD,101643
NORTH EAST LINCOLNSHIRE COUNCIL,http://statistics.data.gov.uk/id/local-authority/00FC,People,Childrens Services,Sen/Inclusion,Private Contractors,Third Party Prov - Private,PH101,4/15/2014,273949,3496,REVENUE,NORTH EAST LINCS MOTOR PROJECT,101121
NORTH EAST LINCOLNSHIRE COUNCIL,http://statistics.data.gov.uk/id/local-authority/00FC,People,Childrens Services,Sen/Inclusion,Private Contractors,Third Party Prov - Private,PH101,4/7/2014,271889,1050,REVENUE,DKM ASSESSMENT & VERIFICATION LTD,101643
NORTH EAST LINCOLNSHIRE COUNCIL,http://statistics.data.gov.uk/id/local-authority/00FC,People,Childrens Services,Sen/Inclusion,Private Contractors,Third Party Prov - Private,PH101,4/7/2014,271890,1050,REVENUE,DKM ASSESSMENT & VERIFICATION LTD,101643
NORTH EAST LINCOLNSHIRE COUNCIL,http://statistics.data.gov.uk/id/local-authority/00FC,People,Childrens Services,Sen/Inclusion,Private Contractors,Third Party Prov - Private,PH101,4/7/2014,271887,950,REVENUE,DKM ASSESSMENT & VERIFICATION LTD,101643
NORTH EAST LINCOLNSHIRE COUNCIL,http://statistics.data.gov.uk/id/local-authority/00FC,People,Childrens Services,Sen/Inclusion,Private Contractors,Third Party Prov - Private,PH101,4/7/2014,271323,300,REVENUE,DKM ASSESSMENT & VERIFICATION LTD,101643
NORTH EAST LINCOLNSHIRE COUNCIL,http://statistics.data.gov.uk/id/local-authority/00FC,People,Childrens Services,Sen/Inclusion,Private Contractors,Third Party Prov - Private,PH101,4/7/2014,271888,1050,REVENUE,DKM ASSESSMENT & VERIFICATION LTD,101643
NORTH EAST LINCOLNSHIRE COUNCIL,http://statistics.data.gov.uk/id/local-authority/00FC,People,Childrens Services,Sen/Inclusion,Private Contractors,Third Party Prov - Private,PH101,4/7/2014,271324,1050,REVENUE,DKM ASSESSMENT & VERIFICATION LTD,101643
NORTH EAST LINCOLNSHIRE COUNCIL,http://statistics.data.gov.uk/id/local-authority/00FC,People,Childrens Services,Sen/Inclusion,Private Contractors,Third Party Prov - Private,PH101,4/7/2014,271318,2940,REVENUE,DKM ASSESSMENT & VERIFICATION LTD,101643
NORTH EAST LINCOLNSHIRE COUNCIL,http://statistics.data.gov.uk/id/local-authority/00FC,People,Childrens Services,Sen/Inclusion,Private Contractors,Third Party Prov - Private,PH101,4/7/2014,271319,2940,REVENUE,DKM ASSESSMENT & VERIFICATION LTD,101643
NORTH EAST LINCOLNSHIRE COUNCIL,http://statistics.data.gov.uk/id/local-authority/00FC,People,Childrens Services,Sen/Inclusion,Private Contractors,Third Party Prov - Private,PH101,4/7/2014,271320,1050,REVENUE,DKM ASSESSMENT & VERIFICATION LTD,101643
NORTH EAST LINCOLNSHIRE COUNCIL,http://statistics.data.gov.uk/id/local-authority/00FC,People,Childrens Services,Sen/Inclusion,Private Contractors,Third Party Prov - Private,PH101,4/7/2014,271321,2940,REVENUE,DKM ASSESSMENT & VERIFICATION LTD,101643
NORTH EAST LINCOLNSHIRE COUNCIL,http://statistics.data.gov.uk/id/local-authority/00FC,People,Childrens Services,Sen/Inclusion,Private Contractors,Third Party Prov - Private,PH101,4/7/2014,271317,2940,REVENUE,DKM ASSESSMENT & VERIFICATION LTD,101643
NORTH EAST LINCOLNSHIRE COUNCIL,http://statistics.data.gov.uk/id/local-authority/00FC,People,Childrens Services,Sen/Inclusion,Private Contractors,Third Party Prov - Private,PH101,4/7/2014,271322,1050,REVENUE,DKM ASSESSMENT & VERIFICATION LTD,101643
NORTH EAST LINCOLNSHIRE COUNCIL,http://statistics.data.gov.uk/id/local-authority/00FC,People,Childrens Services,Sen/Inclusion,Private Contractors,Third Party Prov - Private,PH101,4/7/2014,271326,1050,REVENUE,DKM ASSESSMENT & VERIFICATION LTD,101643
NORTH EAST LINCOLNSHIRE COUNCIL,http://statistics.data.gov.uk/id/local-authority/00FC,People,Childrens Services,Sen/Inclusion,Private Contractors,Third Party Prov - Private,PH101,4/7/2014,271327,1050,REVENUE,DKM ASSESSMENT & VERIFICATION LTD,101643
NORTH EAST LINCOLNSHIRE COUNCIL,http://statistics.data.gov.uk/id/local-authority/00FC,People,Childrens Services,Sen/Inclusion,Private Contractors,Third Party Prov - Private,PH101,4/7/2014,271329,1050,REVENUE,DKM ASSESSMENT & VERIFICATION LTD,101643
NORTH EAST LINCOLNSHIRE COUNCIL,http://statistics.data.gov.uk/id/local-authority/00FC,People,Childrens Services,Sen/Inclusion,Private Contractors,Third Party Prov - Private,PH101,4/10/2014,273194,2940,REVENUE,DKM ASSESSMENT & VERIFICATION LTD,101643
NORTH EAST LINCOLNSHIRE COUNCIL,http://statistics.data.gov.uk/id/local-authority/00FC,People,Childrens Services,Sen/Inclusion,Private Contractors,Third Party Prov - Private,PH101,4/10/2014,272020,700,REVENUE,DKM ASSESSMENT & VERIFICATION LTD,101643
NORTH EAST LINCOLNSHIRE COUNCIL,http://statistics.data.gov.uk/id/local-authority/00FC,People,Childrens Services,Sen/Inclusion,Private Contractors,Third Party Prov - Private,PH101,4/14/2014,273193,450,REVENUE,DKM ASSESSMENT & VERIFICATION LTD,101643
NORTH EAST LINCOLNSHIRE COUNCIL,http://statistics.data.gov.uk/id/local-authority/00FC,People,Childrens Services,Sen/Inclusion,Private Contractors,Third Party Prov - Private,PH101,4/15/2014,274020,11644.6,REVENUE,CPO MEDIA,102186
NORTH EAST LINCOLNSHIRE COUNCIL,http://statistics.data.gov.uk/id/local-authority/00FC,People,Childrens Services,Sen/Inclusion,Direct Employee Expenses,Agency Staff,EA105,4/7/2014,271325,1601.4,REVENUE,IRWIN EDUCATION LTD,106910
NORTH EAST LINCOLNSHIRE COUNCIL,http://statistics.data.gov.uk/id/local-authority/00FC,People,Childrens Services,Sen/Inclusion,Direct Employee Expenses,Agency Staff,EA105,4/7/2014,270766,1601.4,REVENUE,IRWIN EDUCATION LTD,106910
NORTH EAST LINCOLNSHIRE COUNCIL,http://statistics.data.gov.uk/id/local-authority/00FC,People,Childrens Services,Sen/Inclusion,Direct Employee Expenses,Agency Staff,EA105,4/15/2014,274029,1601.4,REVENUE,IRWIN EDUCATION LTD,106910
NORTH EAST LINCOLNSHIRE COUNCIL,http://statistics.data.gov.uk/id/local-authority/00FC,People,Childrens Services,Sen/Inclusion,Direct Employee Expenses,Agency Staff,EA105,4/22/2014,275536,1601.4,REVENUE,IRWIN EDUCATION LTD,106910
NORTH EAST LINCOLNSHIRE COUNCIL,http://statistics.data.gov.uk/id/local-authority/00FC,People,Childrens Services,Sen/Inclusion,Direct Employee Expenses,Agency Staff,EA105,4/10/2014,272099,REDACTED COMMERCIALLY SENSITIVE,REVENUE,SERCO SHARED SERVICES CENTRE,101875
NORTH EAST LINCOLNSHIRE COUNCIL,http://statistics.data.gov.uk/id/local-authority/00FC,People,Childrens Services,Sen/Inclusion,Direct Employee Expenses,Agency Staff,EA105,4/3/2014,270768,452,REVENUE,RANDSTAD EDUCATION LTD,102465
NORTH EAST LINCOLNSHIRE COUNCIL,http://statistics.data.gov.uk/id/local-authority/00FC,People,Childrens Services,Sen/Inclusion,Direct Employee Expenses,Agency Staff,EA105,4/3/2014,270769,565,REVENUE,RANDSTAD EDUCATION LTD,102465
NORTH EAST LINCOLNSHIRE COUNCIL,http://statistics.data.gov.uk/id/local-authority/00FC,People,Childrens Services,Sen/Inclusion,Direct Employee Expenses,Agency Staff,EA105,4/3/2014,270770,565,REVENUE,RANDSTAD EDUCATION LTD,102465
NORTH EAST LINCOLNSHIRE COUNCIL,http://statistics.data.gov.uk/id/local-authority/00FC,People,Childrens Services,Sen/Inclusion,Direct Employee Expenses,Agency Staff,EA105,4/7/2014,270475,565,REVENUE,RANDSTAD EDUCATION LTD,102465
NORTH EAST LINCOLNSHIRE COUNCIL,http://statistics.data.gov.uk/id/local-authority/00FC,People,Childrens Services,Sen/Inclusion,Direct Employee Expenses,Agency Staff,EA105,4/10/2014,272480,565,REVENUE,RANDSTAD EDUCATION LTD,102465
NORTH EAST LINCOLNSHIRE COUNCIL,http://statistics.data.gov.uk/id/local-authority/00FC,People,Childrens Services,Sen/Inclusion,Direct Employee Expenses,Agency Staff,EA105,4/22/2014,275541,565,REVENUE,RANDSTAD EDUCATION LTD,102465
NORTH EAST LINCOLNSHIRE COUNCIL,http://statistics.data.gov.uk/id/local-authority/00FC,People,Childrens Services,Sen/Inclusion,Direct Employee Expenses,Agency Staff,EA105,4/3/2014,270372,700,REVENUE,TEACHING PERSONNEL LTD,101305
NORTH EAST LINCOLNSHIRE COUNCIL,http://statistics.data.gov.uk/id/local-authority/00FC,People,Childrens Services,Sen/Inclusion,Direct Employee Expenses,Agency Staff,EA105,4/10/2014,272513,700,REVENUE,TEACHING PERSONNEL LTD,101305
NORTH EAST LINCOLNSHIRE COUNCIL,http://statistics.data.gov.uk/id/local-authority/00FC,People,Childrens Services,Sen/Inclusion,Direct Employee Expenses,Agency Staff,EA105,4/10/2014,272486,700,REVENUE,TEACHING PERSONNEL LTD,101305
NORTH EAST LINCOLNSHIRE COUNCIL,http://statistics.data.gov.uk/id/local-authority/00FC,People,Childrens Services,Sen/Inclusion,Direct Employee Expenses,Agency Staff,EA105,4/3/2014,270374,700,REVENUE,TEACHING PERSONNEL LTD,101305
NORTH EAST LINCOLNSHIRE COUNCIL,http://statistics.data.gov.uk/id/local-authority/00FC,People,Childrens Services,Sen/Inclusion,Direct Employee Expenses,Agency Staff,EA105,4/10/2014,272514,700,REVENUE,TEACHING PERSONNEL LTD,101305
NORTH EAST LINCOLNSHIRE COUNCIL,http://statistics.data.gov.uk/id/local-authority/00FC,People,Childrens Services,Sen/Inclusion,Direct Employee Expenses,Agency Staff,EA105,4/10/2014,272111,700,REVENUE,TEACHING PERSONNEL LTD,101305
NORTH EAST LINCOLNSHIRE COUNCIL,http://statistics.data.gov.uk/id/local-authority/00FC,People,Childrens Services,Sen/Inclusion,Direct Employee Expenses,Agency Staff,EA105,4/3/2014,270579,563.75,REVENUE,TEACHING PERSONNEL LTD,101305
NORTH EAST LINCOLNSHIRE COUNCIL,http://statistics.data.gov.uk/id/local-authority/00FC,People,Childrens Services,Sen/Inclusion,Direct Employee Expenses,Agency Staff,EA105,4/3/2014,270771,563.75,REVENUE,TEACHING PERSONNEL LTD,101305
NORTH EAST LINCOLNSHIRE COUNCIL,http://statistics.data.gov.uk/id/local-authority/00FC,People,Childrens Services,Sen/Inclusion,Direct Employee Expenses,Agency Staff,EA105,4/10/2014,272112,563.75,REVENUE,TEACHING PERSONNEL LTD,101305
NORTH EAST LINCOLNSHIRE COUNCIL,http://statistics.data.gov.uk/id/local-authority/00FC,People,Childrens Services,Sen/Inclusion,Direct Employee Expenses,Agency Staff,EA105,4/10/2014,272113,563.75,REVENUE,TEACHING PERSONNEL LTD,101305
NORTH EAST LINCOLNSHIRE COUNCIL,http://statistics.data.gov.uk/id/local-authority/00FC,People,Childrens Services,Sen/Inclusion,Direct Employee Expenses,Agency Staff,EA105,4/10/2014,272533,563.75,REVENUE,TEACHING PERSONNEL LTD,101305
NORTH EAST LINCOLNSHIRE COUNCIL,http://statistics.data.gov.uk/id/local-authority/00FC,People,Childrens Services,Sen/Inclusion,Direct Employee Expenses,Agency Staff,EA105,4/10/2014,272494,563.75,REVENUE,TEACHING PERSONNEL LTD,101305
NORTH EAST LINCOLNSHIRE COUNCIL,http://statistics.data.gov.uk/id/local-authority/00FC,People,Childrens Services,Sen/Inclusion,Direct Employee Expenses,Agency Staff,EA105,4/10/2014,272500,563.75,REVENUE,TEACHING PERSONNEL LTD,101305
NORTH EAST LINCOLNSHIRE COUNCIL,http://statistics.data.gov.uk/id/local-authority/00FC,People,Childrens Services,Sen/Inclusion,Direct Employee Expenses,Agency Staff,EA105,4/10/2014,272487,563.75,REVENUE,TEACHING PERSONNEL LTD,101305
